Workbook

Sheet Disclaimer
A1: Draft spreadsheet, according to template for all EPB standards
A2: Concerns EPB standard:
A3: ISO/WD 52000-1, Energy performance of buildings — Overarching EPB assessment – Part 1: General framework and procedures
A6: DISCLAIMER:
A7: · This spreadsheet has been developed in the framework of the preparation and revision of the set of EN or ISO standards on the energy performance of buildings, to support the European "Energy Performance of Buildings Directive" recast (EPBD-recast, directive 2010/31/EU).
A8: · It is meant for use by CEN and ISO technical committee(s) and the working group(s) working on the preparation or revision of the EPB-standard to which this spreadsheet applies. The spreadsheet supports checking that all equations in the developed standard are consistent and can be linked with other relevant standards. It is not meant to perform a full or partial energy performance calculation.
A9: · The spreadsheet supports the expert user of the standards, in particular those who want to review the content of the standard and those who want to translate the standard to a software, to understand the correct interpretation of the equations and calculation steps in the standard.
A10: · Although it has been developed with care, neither the technical committee(s), nor the working group(s) and experts related to the EPB- standard to which this spreadsheet applies warrant that the calculations and procedures in this spreadsheet are free of errors. The technical committees as well as the working groups and their respective members expressly disclaim any liability or responsibility arising from use of this spreadsheet, or any consequences thereof. Any responsibility arising from the use of this spreadsheet lies with the user.
A11: DRAFT VERSION:
A12: · As long as the associated EPB standard or any of the other EPB standards to which it is directly linked are in a draft stage, this spreadsheet is also a draft version only.
A13: WARNINGS:
A14: · Note that the spreadsheet may not allow testing all calculation options that are possible according to the standard to which it applies. This remark applies in particular but not only to limitations on the number instances of a variable that can be considered.
A15: · In case of differences, the standard should be regarded as the reference, not the spreadsheet. However, during the standard's drafting phase, shortcomings in the draft standard may have been detected and dealt with in the spreadsheets (ideally, such differences are marked).
A16: · Note also that these spreadsheets are purely intended for testing and demonstration and therefore not aiming to be user friendly or to be protected against wrong or improper use.
A17: TERMS OF USE:
A18: · The user is not allowed to redistribute a modified version of this spreadsheet.
A19: · The author(s) would appreciate your feed back on the spreadsheet via the comment sheets for the associated draft standard to be prepared by the national standards bodies during enquiry of the draft standard(s),
A23: Intended use of this document Those responsible for the drafting of actual individual EPB standards shall - read and understand the following documents - prCEN/TS 16628 Basic Principles (in short "BP") - prCEN/TS 16629 Detailed Technical Rules (in short "DTR") - prEN 15603:2013 ("Overarching Standard", in short "OA")) - prCEN/TR 15615:2013 Technical report to overarching standard; - Prepare their individual EPB standard according to CEN rules, BP, DTR and OA - Prepare the accompanying technical report using the dedicated template - Prepare an accompanying XLS spreadsheet, to demonstrate inputs, output and calculation chain. This sample excel spreadsheet provides a template to help in this task.
A24: Why an Excel spreadsheet? To demonstrate the validity and required data I/O for the calculation procedure defined in the standard: - list of all input needed --> sheet "Method_input" - list of intended output --> sheet "Method_output" - calculation sequence --> sheet "Method_calculation"
A25: Method_input List in this sheet all the input required for the calculation in one time step. THIS SHEET IS REQUIRED TO DEMONSTRATE THE REQUIRED DATA INPUT.
A26: Method_calculation Detail in this sheet your calculation procedure. There should be one calculation in one cell for each equation in the standard. THIS SHEET IS REQUIRED TO DEMONSTRATE THE CALCULATION PROCEDURE.
A27: Method_output List in this sheet all the intended output of the procedure. THIS SHEET IS REQUIRED TO DEMONSTRATE THE AVAILABLE DATA OUTPUT.
A28: THIS SHEET HAS ADDITIONAL FEATURES THAT ARE CURRENTLY BEING DEVELOPED The calculation is repeated for multiple time steps. There is one column per time step. Weighting factors are concentrated in the sheet "ConvFactors" A temporary dummy matching function was defined in the sheet "Fmatch" The calculation will be linked to a diagram (sheet "Diagram") via an interface sheet ("Base calc") The sheet will be multi-lingual - Currently only English is supported Next releases will be more complete.

Sheet INFO
A1: Sheet: INFO
A2: This sheet. It starts with a description of all sheets. Then a simple procedure is given to use the spreadsheet
A3: Sheet: Language
A4: It will contain the strings to have the spreadsheet translated into other languages. It is currently not working. The strings will be updated after completion.
A5: Sheet: Diagram new
A6: This sheet displays graphically the values of the needs, input/outputs of generation devices, electric erngy flow. The up/down buttons allow to change the input data of the calculation. This feature works only if the correct base calculation is selected.
A7: The display of results will be connected later.
A8: Sheet: Base calculation
A9: This sheet contains the definition of the input data to ISO 52001. It acts as an interface to the grphical display in Diagram_New sheet.
A10: Three fixed data set can be defined in columns K to M. The "case shown" combo at row 6, column C selects which case is used for the calculation in the following sheets. The 3 test cases cannot be influenced by the graphic interface. The fourth selection of the combo is the currently displayed case on the graphical interface (sheet Diagram_New)
A11: Columns R to AC are used to define and store 12 test cases that can be displayed and controlled via the graphic interface (Diagram_New sheet) The "calculation example shown" combo at row 9 column D controls which test case is displayed. The test case on the graphic interface is used in the calcualtion only if the previous conmbo is set on the 4th case.
A12: NOTE: for most data of the test case, 12 values are required because the calculation is repeated 12 times.
A13: Sheet: National options
A14: Options about priority for export, krdel and kexp factors, matching factor and perimeters are selected in this sheet.
A15: Use the "custom" option to specify your priority for electricity export.
A16: Sheet: ConvFactors
A17: Weighting factors are input in this sheet. Several weighting factor sets can be defined in columns J to P. Then use the combo box to select one.
A18: Only non-renewable and renewable primary energy weighting is active now.
A19: Sheet: Method_input
A20: This sheet contains the input for the calculation.
A21: The calculation is repeated for 12 calculation intervals to demonstrate interactione between time intervals.
A22: Columns G to R contain the data for each calculation interval
A23: Column S contains the data for the calculation period
A24: Column T contains relevant identifiers for the calculation
A25: All data are connected to other sheets. Data can be input manuallly here but this would disrupt the spreadsheet.
A26: Sheet: Method_calculation
A27: This sheet contains the calculation sequence.
A28: This sheet demonstrates the order inwhich equations in the standard shall be used.
A29: The calculation is repeated for 12 calculation intervals to demonstrate interactione between time intervals.
A30: Columns E to P contain the data for each calculation interval
A31: Column Q contains the data for the calculation period
A32: Column R contains relevant identifiers for the calculation
A33: All data are connected to the sheet method input. Do not change any data manually here since this would disrupt the spreadsheet.
A34: Sheet: Method_output
A35: This sheet contains the calulation results
A36: Results per service and per building part are not yet available. They are demonstrated in a dedicated spread-sheet
A37: Sheet: Fmatch
A38: This sheet contains a sample function for the matching factor
A39: Sheet: History
A40: Story of the development of this spreadsheet.

Sheet Language
A2: CHOOSE LANGUAGE: | D2: Language translation table
A3: 1
A4: =+_language-1 -> 0 | D4: English | E4: French | F4: German | G4: Dutch | H4: Greek | I4: Future option | J4: Future option | K4: Future option | L4: Future option | M4: Future option | N4: Future option | O4: Selected text for combo boxes
A5: =INDEX(Language!$D$5:$M$5,1,_language) -> English | B5: 1 | D5: English | E5: Francais | F5: Deutch | G5: Nederlands | H5: Ελληνικά
D6: Comments | E6: Commentaires | F6: Bemerkungen | G6: Opmerkingen
D7: energy needs | G7: energiebehoefte
D8: energy use | G8: energiegebruik
A9: =+D4 -> English | D9: heating | G9: verwarming
A10: =+E4 -> French | D10: hot water | G10: warmtapwater
A11: =+F4 -> German | D11: humidification | G11: bevochtiging
A12: =+G4 -> Dutch | D12: cooling | G12: koeling
A13: =+H4 -> Greek | D13: dehumidification | G13: ontvochtiging
A14: =+I4 -> Future option | D14: ventilation | G14: ventilatie
A15: =+J4 -> Future option | D15: lighting | G15: verlichting
A16: =+K4 -> Future option | D16: transport (people) in bldng | G16: transport van mensen in gebw
A17: =+L4 -> Future option | D17: appliances | G17: apparatuur
A18: =+M4 -> Future option | D18: if not included in heating | G18: als niet inbegrepen in verwarming
A19: =+N4 -> Future option | D19: if not included in cooling | G19: als niet inbegrepen in koeling
D20: if part of EP | G20: indien onderdeel van EP
D21: other appliances | G21: overige apparatuur
D22: not included in the energy performance | G22: niet inbegrepen in de energieprestatie
D23: the annual used | G23: de jaarlijks gebruikte
D24: for the energy performance | G24: voor de energieprestatie
D25: per energy carrier | G25: per energiedrager
D26: First fuel type (in addition to electricity) | G26: Eerste type brandstof (naast elektriciteit)
D27: Second fuel type (in addition to electricity) | G27: Tweede type brandstof (naast elektriciteit)
D28: type in: "gas" or "oil" or "coal" or "wood" or "custom" or "DH"or "DC" | G28: tik in: "gas" of "oil" of "coal" of "wood" of "custom" of "DH"of "DC"
D29: air transport and -circulation | G29: luchttransport en -circulatie
D30: the annual produced | G30: de jaarlijks geproduceerde
D31: at the building site | G31: op eigen perceel
D32: by CHP | G32: van WKK
D33: by PV | G33: van PV (zonnestroom)
D34: part | G34: gedeelte
D35: from renewable sources | G35: van duurzame bronnen
D36: the fraction of | G36: de fractie van
D37: that, on annual basis, is usable at the building site | G37: dat, op jaarbasis, gebruikt kan worden op eigen perceel
D38: that is used at the building site | G38: dat op het eigen perceel gebruikt wordt
D39: the annual exported | G39: de jaarlijks geëxporteerde
D40: the part of | G40: het deel van
D41: for other energy uses | G41: voor overige energiefuncties
D42: of which | G42: waarvan
D43: the annual delivered energy | G43: de jaarlijkse afgenomen energie
D44: including (if any) energy used to produce electricity at the building site | G44: inclusief (indien van toepassing) energie gebruikt om elektriciteit op het eigen perceel te produceren
D45: including (if any) energy used to produce electricity at the building site | G45: inclusief (indien van toepassing) energie gebruikt om elektriciteit op het eigen perceel te produceren
D46: as electricity | G46: in de vorm van elektriciteit
D47: energy performance | G47: energieprestatie
D48: building | G48: gebouw
D49: system | G49: installatie
D50: of | G50: van
D51: losses | G51: verliezen
D52: non-recovered | G52: niet-teruggewonnen
D53: total | G53: totaal
D54: energy | G54: energie
D55: electricity | G55: elektriciteit
D56: thermal | G56: thermische
D57: sum | G57: som
D58: avoided | G58: vermeden
D59: contribution | G59: bijdrage
D60: by | G60: door
D61: for | G61: voor
D62: Shown fuel choice is for case "Showcase" | G62: Getoonde brandstofkeuze is voor case: "Showcase"
D63: Shown in left columns and in diagram | G63: Getoond in linker kolommen en in diagram
D64: Case | G64: Case
D65: not to scale | G65: niet op schaal
D66: only | G66: uitsluitend
D67: for the moment | G67: vooralsnog
D70: Aggregation | G70: Aggregatie
D71: Conversion type | G71: Conversiesoort
D72: Conversion factor | G72: Conversiefactor
D73: primary energy | G73: primaire energie
D74: CO2-emission | G74: CO2-uitstoot
D75: ISO weighted energy | G75: ISO gewogen energie
D76: electricity equivalent | G76: elektriciteitsequivalent
D77: for delivered fuel | G77: voor aangeleverde brandstof
D78: for delivered heat | G78: voor aangeleverde warmte
D79: for delivered cold | G79: voor aangeleverde koude
D80: for delivered electricity | G80: voor aangeleverde elektriciteit
D81: from the grid | G81: van het landelijke net
D82: for exported electricity | G82: voor geëxporteerde elektriciteit
D83: for exported thermal energy | G83: voor geëxporteerde thermische energie
D84: converted to | G84: geconverteerd naar
D85: reduction for | G85: aftrek voor
D86: factor | G86: factor
D87: annual numbers | G87: jaarlijkse cijfers
D88: matrix | G88: matrix
D89: breakdown | G89: uitsplitsing
D92: heat pump | G92: warmtepomp
D93: windturbines | G93: windturbines
D94: daylight | G94: daglichttoetreding
D95: passive solar | G95: passieve zonne-
D97: Technical systems, without generation | G97: Technical systems, without generation
D98: Generation systems | G98: Generation systems
D102: Description | G102: Omschrijving
D103: Symbol | G103: Symbool
D104: Fuel | G104: Brandstof
D105: Unit | G105: Eenheid
D106: Value | G106: Getalswaarde
D107: Comments | G107: Opmerkingen
D108: Type | G108: Type
D109: Result expressed as | G109: Resultaat uitgedrukt als
D110: Energy carrier | G110: Energiedrager
D112: Conversion | G112: Conversie
D113: Type | G113: Type
D114: Unit | G114: Eenheid
D115: Input data | G115: invoergegevens
D116: Results | G116: Resultaten
D117: policy related | G117: beleidsgerelateerd
D118: not calculated | G118: niet berekend
D119: not provided | G119: niet in voorzien
D120: n.a. | G120: n.v.t.
D121: implicitly calculated as part of | G121: impliciet verrekend als onderdeel van
D122: each generator can have it's own conversion factor | G122: elke opwekker kan eigen conversiefactor hebben
D123: due to many influencing factors the contribution can only be calculated as the difference between a calculation with the renewable energy provision and with a conventional reference provision (as a "black box") | G123: wegens vele invloedsfactoren kan de bijdrage uitsluitend berekend worden als het verschil tussen berekening met de duurzeme voorziening en met een conventionele referentievoorziening (als een "black box")
D124: matrix | G124: matrix
D125: breakdown | G125: uitsplitsing
D126: absolute | G126: absolute
D127: relative | G127: relatieve
D128: values | G128: waarden
D132: Test calculation 1 | G132: Test calculation 1 | O132: =INDEX(D132:N132,,_language) -> Test calculation 1
D133: Test calculation 2 | G133: Test calculation 2 | O133: =INDEX(D133:N133,,_language) -> Test calculation 2
D134: Test calculation 3 | G134: Test calculation 3 | O134: =INDEX(D134:N134,,_language) -> Test calculation 3
D135: Calculation example | G135: Calculation example | O135: =INDEX(D135:N135,,_language) -> Calculation example
D136: OK | E136: Not yet available! | F136: Not yet available! | G136: OK | H136: Not yet available! | I136: Not yet available! | J136: Not yet available! | K136: Not yet available! | L136: Not yet available! | M136: Not yet available! | N136: Not yet available!
D138: Non renewable primary energy factor | G138: Non renewable primary energy factor
D139: Renewable primary energy factor | G139: Renewable primary energy factor
D140: Total primary energy factor | G140: Total primary energy factor
D145: gas | G145: gas
D146: oil | G146: oil
D147: coal | G147: coal
D148: wood | G148: wood
D149: biomass | G149: biomass
D150: custom | G150: custom
D151: District heating | G151: District heating
D152: District cooling | G152: District cooling
D153: Environment heat | G153: Environment heat
D154: Rejected heat
D155: Delivered electricity from the grid | G155: Delivered electricity from the grid
D156: Exported electricity by CHP | G156: Exported electricity by CHP
D157: Exported electricity by PV | G157: Exported electricity by PV
D158: Conversion factor for exported thermal energy | G158: Conversion factor for exported thermal energy
D159: Exported electricity to the grid | G159: Exported electricity to the grid
D160: Redelivered electricity | G160: Redelivered electricity
D164: red: input (unlocked) | G164: red: input (unlocked)
D165: purple: mixed technical / policy choice | G165: purple: mixed technical / policy choice
D166: black: calculated using the equations | G166: black: calculated using the equations
D167: Energy unit | G167: Energy unit
D168: Case shown | G168: Case shown
D169: Worked out example of | G169: Worked out example of
D170: full set of equations overall energy performance | G170: full set of equations overall energy performance
D174: Raw CO2 conversion factors | G174: Raw CO2 conversion factors
D175: Adapted CO2 conversion factor | G175: Adapted CO2 conversion factor
D176: CO2 Unit conversion table | G176: CO2 Unit conversion table
D177: From to --> | G177: From to -->
D178: Unit index | G178: Unit index
D182: Heating system efficiency except generation | G182: Heating system efficiency except generation
D183: Cooling system efficiency except generation
D184: Dhw system efficiency except generation
D185: Generation output for dhw | G185: Generation output for dhw
D186: Maximum thermal solar contribution | G186: Maximum thermal solar contribution
D187: Base maximum thermal solar contribution | G187: Base maximum thermal solar contribution
D188: Thermal solar contribution multiplier
D189: PV solar contribution multiplier
D190: PV solar max contribution per time step
D191: PV solar contribution profile
D192: PV electric generation
D193: Solar thermal efficiency
D194: Solar delivered energy
D195: Free cooling contribution
D196: Thermal solar output to dhw | G196: Thermal solar output to dhw
D197: Heat generator output for dhw | G197: Heat generator output for dhw
D198: Heating generation output for heating and hum | G198: Heat generator output for heating and hum
D199: Cooling generation output for cooling and dhum | G199: Cooling generator output for cooling and dhum
D200: Heating system auxiliaries except generation | G200: Heating system auxiliaries except generation
D201: Cooling system auxiliaries except generation | G201: Cooling system auxiliaries except generation
D202: Dhw system auxiliaries except generation | G202: Dhw system auxiliaries except generation
D203: Thermal solar auxiliaries | G203: Thermal solar auxiliaries
D204: Heat generator output for heating, hum and dhw | G204: Heat generator output for heating, hum and dhw
D205: Cogenerator max output | G205: Cogenerator max output
D206: Cogenerator heat output | G206: Cogenerator heat output
D207: Cogenerator thermal efficiency | G207: Cogenerator thermal efficiency
D208: Cogenerator electric efficiency | G208: Cogenerator electric efficiency
D209: Cogenerator fuel | G209: Cogenerator fuel
D210: Cogenerator input | G210: Cogenerator input
D211: Cogenerator electric output | G211: Cogenerator electric output
D213: Remaining heat to be generated | G213: Remaining heat to be generated
D214: Heat pump maximum output | G214: Heat pump maximum output
D215: COP | G215: COP
D216: Heat pump fuel | G216: Heat pump fuel
D217: Heat pump output | G217: Heat pump output
D218: Heat pump input | G218: Heat pump input
D219: Heat pump auxiliaries | G219: Heat pump auxiliaries
D220: Environmental heat | G220: Environmental heat
D221: Boiler heat output | G221: Boiler heat output
D222: Boiler fuel | G222: Boiler fuel
D223: Boiler efficiency | G223: Boiler efficiency
D224: Boiler auxiliary energy | G224: Boiler auxiliary energy
D225: Boiler input | G225: Boiler input
D227: Chiller energy carrier | G227: Chiller energy carrier
D228: Chiller EER | G228: Chiller EER
D229: Chiller auxiliary energy | G229: Chiller auxiliary energy
... 109 more rows

Sheet Diagram_NEW
B2: version: | J2: =MID(CELL("filename"),SEARCH("[",CELL("filename"))+1, SEARCH("]",CELL("filename"))-SEARCH("[",CELL("filename"))-1) -> ISO_DIS_52000-1_SS_2015_05_13.xlsm | BD2: =INDEX(Language!D349:M349,1,_language) -> Interval to show
AB3: Displayed time-step | AL3: Heat | BD3: Total
B4: =+ConvFactors!B1 -> Choose your language at sheet "Language" | N4: <-- Not yet functional | AC4: 1 | AL4: Cool | BD4: =INDEX(Language!D351:M351,1,_language) -> Time-step 1
AL5: Electricity | BD5: =INDEX(Language!D352:M352,1,_language) -> Time-step 2
BD6: =INDEX(Language!D353:M353,1,_language) -> Time-step 3
B7: =+Base_calc!N16 -> 1 | C7: =+Base_calc!J15 -> Boiler + thermal solar + cooling | BD7: =INDEX(Language!D354:M354,1,_language) -> Time-step 4
BD8: =INDEX(Language!D355:M355,1,_language) -> Time-step 5
D9: PRIMARY ENERGY BALANCE | U9: Primary energy | AX9: EPBD services | BD9: =INDEX(Language!D356:M356,1,_language) -> Time-step 6
D10: Conversion factor set: | E10: =Base_calc!J935 -> CEN | U10: by generator | AC10: Generation subsystems | AI10: Thermal and electric energy dispatching | AQ10: Systems, except generation QX,ngen,in) | AX10: =INDEX(Language!$D$364:$M$364,1,_language) -> Building energy needs | BD10: =INDEX(Language!D357:M357,1,_language) -> Time-step 7
C11: Energy carrier | D11: Delivered | E11: fP,tot | F11: EP,tot | G11: fP,ren | H11: EP,ren | I11: fP,nren | J11: EP,nren | U11: Type | V11: kWh | AA11: Thermal solar | AC11: Nren eff. | AE11: Tot eff. | AT11: Heating | BD11: =INDEX(Language!D360:M360,1,_language) -> Time-step 10
D12: =_En_unit -> kWh | F12: =_En_unit -> kWh | H12: =_En_unit -> kWh | J12: =_En_unit -> kWh | U12: Ren | AA12: =+BD17 -> 1 | AB12: Input | AE12: Output | AS12: Input | AT12: =INDEX(Base_calc!$J$92:$J$104,Diagram_NEW!$AC$4) -> 10625 | AU12: =_En_unit -> kWh | AW12: Heating | AX12: =INDEX(Base_calc!$J$18:$J$30,Diagram_NEW!$AC$4) -> 8500 | AY12: =_En_unit -> kWh | BB12: 100 | BD12: =INDEX(Language!D361:M361,1,_language) -> Time-step 11
U13: Nren | AA13: solar | AB13: =INDEX(Base_calc!$J$229:$J$241,Diagram_NEW!$AC$4) -> 1042.352941 | AC13: =_En_unit -> kWh | AE13: Thermal | AF13: =INDEX(Base_calc!$J$200:$J$212,Diagram_NEW!$AC$4) -> 886 | AG13: =_En_unit -> kWh | AM13: =+AF13 -> 886 | AS13: Aux | AT13: =INDEX(Base_calc!$J$106:$J$118,Diagram_NEW!$AC$4) -> 318.75 | AU13: =_En_unit -> kWh | AW13: Humidif. | AX13: =INDEX(Base_calc!$J$44:$J$56,Diagram_NEW!$AC$4) -> 0 | AY13: =_En_unit -> kWh | BB13: =+BB12/100 -> 1 | BD13: =INDEX(Language!D362:M362,1,_language) -> Time-step 12
C14: Gas | U14: Total | AA14: aux | AB14: =INDEX(Base_calc!$J$215:$J$227,Diagram_NEW!$AC$4) -> 26.58 | AC14: =_En_unit -> kWh
C15: oil | AA15: Boiler | AC15: Nren eff. | AE15: Tot eff. | AT15: DHW
C16: coal | U16: Ren | AB16: Input | AE16: Output | AM16: =INDEX(Base_calc!$J$242:$J$254,Diagram_NEW!$AC$4) -> 1514 | AS16: Input | AT16: =INDEX(Base_calc!$J$119:$J$131,Diagram_NEW!$AC$4) -> 2400 | AU16: =_En_unit -> kWh | AW16: Dhw | AX16: =INDEX(Base_calc!$J$31:$J$43,Diagram_NEW!$AC$4) -> 1800 | AY16: =_En_unit -> kWh | BB16: 100 | BD16: 100
C17: wood | U17: Nren | AA17: =+Base_calc!J410 -> gas | AB17: =INDEX(Base_calc!$J$412:$J$424,Diagram_NEW!$AC$4) -> 11965.55556 | AC17: =_En_unit -> kWh | AE17: Thermal | AF17: =INDEX(Base_calc!$J$389:$J$401,Diagram_NEW!$AC$4) -> 10769 | AG17: =_En_unit -> kWh | AQ17: EPB | AS17: Aux | AT17: =INDEX(Base_calc!$J$133:$J$145,Diagram_NEW!$AC$4) -> 48 | AU17: =_En_unit -> kWh | BB17: =+BB16/100 -> 1 | BD17: =+BD16/100 -> 1
C18: biomass | U18: Total | AA18: aux | AB18: =INDEX(Base_calc!$J$426:$J$438,Diagram_NEW!$AC$4) -> 358.9666667 | AC18: =_En_unit -> kWh | AQ18: =INDEX(Base_calc!$J$612:$J$624,Diagram_NEW!$AC$4) -> 2327.439524
C19: custom | AA19: Heat pump | AC19: Nren eff. | AE19: Tot eff. | AQ19: =_En_unit -> kWh | AT19: Cooling
C20: District heating | U20: Ren | AA20: =+BD24 -> 1 | AB20: Input | AE20: Output | AS20: Input | AT20: =INDEX(Base_calc!$J$146:$J$158,Diagram_NEW!$AC$4) -> 1357.142857 | AU20: =_En_unit -> kWh | AW20: Cooling | AX20: =INDEX(Base_calc!$J$57:$J$69,Diagram_NEW!$AC$4) -> 950 | AY20: =_En_unit -> kWh | BB20: 100 | BD20: 100
C21: District cooling | U21: Nren | AA21: =+Base_calc!J334 -> el | AB21: =INDEX(Base_calc!$J$349:$J$361,Diagram_NEW!$AC$4) -> 120 | AC21: =_En_unit -> kWh | AE21: Thermal | AF21: =INDEX(Base_calc!$J$336:$J$348,Diagram_NEW!$AC$4) -> 360 | AG21: =_En_unit -> kWh | AS21: Aux | AT21: =INDEX(Base_calc!$J$160:$J$172,Diagram_NEW!$AC$4) -> 27.14285714 | AU21: =_En_unit -> kWh | AW21: Dehum | AX21: =INDEX(Base_calc!$J$70:$J$82,Diagram_NEW!$AC$4) -> 0 | AY21: =_En_unit -> kWh | BB21: =+BB20/100 -> 1 | BD21: =+BD20/100 -> 1
C22: Env. heat | U22: Total | AA22: env | AB22: =INDEX(Base_calc!$J$376:$J$388,Diagram_NEW!$AC$4) -> 240 | AC22: =_En_unit -> kWh
C23: Solar radiation | AA23: aux | AB23: =INDEX(Base_calc!$J$363:$J$375,Diagram_NEW!$AC$4) -> 18 | AC23: =_En_unit -> kWh | BD23: 100
C24: Rejected heat | U24: Ren | AA24: Cogenerator | AC24: Nren eff. | AE24: Tot eff. | AW24: Ventilation | AX24: =INDEX(Base_calc!$J$485:$J$497,Diagram_NEW!$AC$4) -> 600 | AY24: =_En_unit -> kWh | BD24: =+BD23/100 -> 1
U25: Nren | AA25: =+BD21 -> 1 | AB25: Input | AE25: Output
C26: Delivered electr. | U26: Total | AA26: =+Base_calc!J277 -> gas | AB26: =INDEX(Base_calc!$J$291:$J$303,Diagram_NEW!$AC$4) -> 1836.363636 | AC26: =_En_unit -> kWh | AE26: Thermal | AF26: =INDEX(Base_calc!$J$278:$J$290,Diagram_NEW!$AC$4) -> 1010 | AG26: =_En_unit -> kWh | AW26: Lighting | AX26: =INDEX(Base_calc!$J$498:$J$510,Diagram_NEW!$AC$4) -> 240 | AY26: =_En_unit -> kWh | BD26: 100
AA27: aux | AB27: 0 | AC27: =_En_unit -> kWh | AE27: el | AF27: =INDEX(Base_calc!$J$304:$J$316,Diagram_NEW!$AC$4) -> 642.7272727 | AG27: =_En_unit -> kWh | BD27: =+BD26/100 -> 1
C28: PV del,el,rdel | U28: Ren | AA28: Chiller | AC28: Nren eff. | AE28: Tot eff. | AW28: Transport | AY28: =_En_unit -> kWh
C29: CHP,del,el,rdel | U29: Nren | AB29: Input | AE29: Output
C30: PV del,el,used | U30: Total | AA30: =+Base_calc!J444 -> el | AB30: =INDEX(Base_calc!$J$445:$J$457,Diagram_NEW!$AC$4) -> 542.8571429 | AC30: =_En_unit -> kWh | AE30: Cooling | AF30: =+AT20+AT21 -> 1384.285714 | AG30: =_En_unit -> kWh | AW30: Appliances | AX30: =INDEX(Base_calc!$J$511:$J$523,Diagram_NEW!$AC$4) -> 0 | AY30: =_En_unit -> kWh
C31: CHP,del,el,used | AA31: rej | AB31: =INDEX(Base_calc!$J$472:$J$484,Diagram_NEW!$AC$4) -> 1927.142857 | AC31: =_En_unit -> kWh | BB31: 1
U32: Ren | AA32: aux | AB32: =INDEX(Base_calc!$J$459:$J$471,Diagram_NEW!$AC$4) -> 27.14285714 | AC32: =_En_unit -> kWh | AK32: CHP,nEP,us | AM32: =_En_unit -> kWh | AX32: NON EPBD services | BB32: =+BB31/100 -> 0.01
U33: Nren | AA33: Photovoltaic | AC33: Nren eff. | AE33: Tot eff. | AK33: PV,nEP,us | AM33: =_En_unit -> kWh | AW33: Non EPBD | AX33: =INDEX(Base_calc!$J$626:$J$638,Diagram_NEW!$AC$4) -> 0 | AY33: =_En_unit -> kWh
U34: Total | AA34: =+BD27 -> 1 | AB34: Input | AE34: Output
AE35: Thermal | AF35: 0 | AG35: =_En_unit -> kWh
AA36: solar | AB36: =INDEX(Base_calc!$J$565:$J$577,Diagram_NEW!$AC$4) -> 2205 | AC36: =_En_unit -> kWh | AE36: el_prod | AF36: =INDEX(Base_calc!$J$552:$J$564,Diagram_NEW!$AC$4) -> 2205 | AG36: =_En_unit -> kWh
AA37: aux | AB37: 0 | AC37: =_En_unit -> kWh | AE37: el_EPBD | AF37: =INDEX(Base_calc!$J$647:$J$659,Diagram_NEW!$AC$4) -> 2205 | AG37: =_En_unit -> kWh
AA38: Other electricity
T39: del,grid
T40: PV,del,rdel
C41: Average el. | T41: CHP,del,rdel
C42: Avg. el. without CHP | T42: PV,del,used
T43: CHP,del,used
B44: BALANCE (EP) | F44: =SUM(F14:F31)-SUM(F48:F53) -> 0 | H44: =SUM(H14:H31)-SUM(H48:H53) -> 0 | J44: =SUM(J14:J31)-SUM(J48:J53) -> 0
T45: Immediate use
C46: Energy carrier | D46: Exported | E46: fP,tot | F46: EP,tot | G46: fP,ren | H46: EP,ren | I46: fP,nren | J46: EP,nren
D47: =_En_unit -> kWh | F47: =_En_unit -> kWh | H47: =_En_unit -> kWh | J47: =_En_unit -> kWh
C48: CHP exp,used | T48: CHP,exp,used
C49: PV exp,used | T49: PV,exp,used
C50: CHP temp exp el | T50: CHP,exp,tmp
C51: PV temp exp el | T51: PV,exp,tmp
C52: CHP exp. elec. | T52: CHP,exp,grid
C53: PV exp. elec. | T53: PV,exp,grid
B56: Exceeding energy
C58: RER | F58: =+H44/F44 -> 

Sheet Base_calc
B1: Dick van Dijk, TNO (NL) | C1: File name | D1: =MID(CELL("filename"),SEARCH("[",CELL("filename"))+1, SEARCH("]",CELL("filename"))-SEARCH("[",CELL("filename"))-1) -> ISO_DIS_52000-1_SS_2015_05_13.xlsm
B2: Laurent Socal
B3: =INDEX(Language!$D$169:$M$169,1,_language) -> Worked out example of | C3: =INDEX(Language!$D$164:$M$164,1,_language) -> red: input (unlocked)
B4: =INDEX(Language!$D$170:$M$170,1,_language) -> full set of equations overall energy performance | C4: yellow: input data
C5: =INDEX(Language!$D$166:$M$166,1,_language) -> black: calculated using the equations
B6: CHOOSE LANGUAGE: | C6: =INDEX(Language!$D$167:$M$167,1,_language) -> Energy unit | D6: =INDEX(AM19:AM20,I6) -> kWh | I6: 2
B7: 1
B8: -- Not yet functional --
B9: =INDEX(Language!$D$136:$M$136,1,_language) -> OK | C9: =INDEX(Language!$D$168:$M$168,1,_language) -> Case shown | E9: <-- "Calculation example" shall be selected
H10: This value shall be 4 to control values via the diagram --> | I10: 4
B11: =+HLOOKUP(Lan,Language!$D$3:$I$211,85) ->  | C11: =IF(_case_en=4,"Calculation example shown","NOT RELEVANT") -> Calculation example shown
B12: time step numbers | C12: =IF(_case_en=4,"from the diagram","") -> from the diagram
B14: =INDEX(Language!$D$102:$N$102,1,_language) -> Description | C14: =INDEX(Language!$D$103:$N$103,1,_language) -> Symbol | D14: =INDEX(Language!$D$110:$N$110,1,_language) -> Energy carrier | E14: Aux 1 | F14: Aux 2 | I14: =INDEX(Language!$D$105:$N$105,1,_language) -> Unit | J14: =INDEX(Language!$D$106:$N$106,1,_language) -> Value | K14: =INDEX(Language!$D$106:$N$106,1,_language) -> Value | L14: =INDEX(Language!$D$106:$N$106,1,_language) -> Value | M14: =INDEX(Language!$D$106:$N$106,1,_language) -> Value | N14: =INDEX(Language!$D$106:$N$106,1,_language) -> Value | O14: =INDEX(Language!$D$107:$N$107,1,_language) -> Comments | R14: Value | S14: Value | T14: Value
J15: =INDEX(K15:N15,,_case_en) -> Boiler + thermal solar + cooling | K15: =+Language!O132 -> Test calculation 1 | L15: =+Language!O133 -> Test calculation 2 | M15: =+Language!O134 -> Test calculation 3 | N15: =INDEX(R15:AC15,1,N$16) -> Boiler + thermal solar + cooling | R15: Boiler + thermal solar + cooling | S15: Heat pump and PV with cooling | T15: Cogen without cooling | U15: CASEx | V15: CASEx | W15: CASEx | X15: CASEx | Y15: CASEx | Z15: CASEx | AA15: CASEx | AB15: CASEx | AC15: Last case | AJ15: case list below for selection
B16: =INDEX(Language!$D$115:$M$115,1,_language) -> Input data | N16: 1 | O16: Case selection: takes input from the array on the right | R16: 1 | S16: =COLUMNS($R$16:S16) -> 2 | T16: =COLUMNS($R$16:T16) -> 3 | U16: =COLUMNS($R$16:U16) -> 4 | V16: =COLUMNS($R$16:V16) -> 5 | W16: =COLUMNS($R$16:W16) -> 6 | X16: =COLUMNS($R$16:X16) -> 7 | Y16: =COLUMNS($R$16:Y16) -> 8 | Z16: =COLUMNS($R$16:Z16) -> 9 | AA16: =COLUMNS($R$16:AA16) -> 10 | AB16: =COLUMNS($R$16:AB16) -> 11 | AC16: =COLUMNS($R$16:AC16) -> 12
B17: =INDEX(Language!$D$7:$M$7,1,_language) -> energy needs
B18: =" "&INDEX(Language!$D$237:$M$237,1,_language) -> Heating need | C18: QH;nd | D18: =INDEX(E18:H18,,_case_en) -> th_y | E18: th_y | F18: th_y | G18: th_y | H18: th_y | I18: =+_En_unit -> kWh | J18: =INDEX(K18:N18,,_case_en) -> 8500 | K18: =SUM(K19:K30) -> 8500 | L18: =SUM(L19:L30) -> 8500 | M18: =SUM(M19:M30) -> 8500 | N18: =SUM(N19:N30) -> 8500 | AF18: _y
C19: QH;nd,1 | D19: th_t1 | E19: th_t1 | F19: th_t1 | G19: th_t1 | H19: th_t1 | I19: kWh | J19: 2000 | K19: 2000 | L19: 2000 | M19: 2000 | N19: =INDEX(R19:AC19,1,N$16)*Diagram_NEW!$BB$13 -> 2000 | R19: 2000 | S19: 2000 | T19: 2000 | U19: 2000 | V19: 2000 | W19: 2000 | X19: 2000 | Y19: 2000 | Z19: 2000 | AA19: 2000 | AB19: 2000 | AC19: 2000 | AF19: _t1 | AI19: =IF(_case_en=4,AJ19,"NOT RELEVANT") -> Boiler + thermal solar + cooling | AJ19: =+R15 -> Boiler + thermal solar + cooling | AM19: MJ
C20: QH;nd,2 | D20: th_t2 | E20: th_t2 | F20: th_t2 | G20: th_t2 | H20: th_t2 | I20: kWh | J20: 1500 | K20: 1500 | L20: 1500 | M20: 1500 | N20: =INDEX(R20:AC20,1,N$16)*Diagram_NEW!$BB$13 -> 1500 | R20: 1500 | S20: 1500 | T20: 1500 | U20: 1500 | V20: 1500 | W20: 1500 | X20: 1500 | Y20: 1500 | Z20: 1500 | AA20: 1500 | AB20: 1500 | AC20: 1500 | AF20: _t2 | AI20: Heat pump and PV with cooling | AJ20: =+S15 -> Heat pump and PV with cooling | AM20: kWh
C21: QH;nd,3 | D21: th_t3 | E21: th_t3 | F21: th_t3 | G21: th_t3 | H21: th_t3 | I21: kWh | J21: 1000 | K21: 1000 | L21: 1000 | M21: 1000 | N21: =INDEX(R21:AC21,1,N$16)*Diagram_NEW!$BB$13 -> 1000 | R21: 1000 | S21: 1000 | T21: 1000 | U21: 1000 | V21: 1000 | W21: 1000 | X21: 1000 | Y21: 1000 | Z21: 1000 | AA21: 1000 | AB21: 1000 | AC21: 1000 | AF21: _t3 | AI21: Cogen without cooling | AJ21: =+T15 -> Cogen without cooling
C22: QH;nd,4 | D22: th_t4 | E22: th_t4 | F22: th_t4 | G22: th_t4 | H22: th_t4 | I22: kWh | J22: 500 | K22: 500 | L22: 500 | M22: 500 | N22: =INDEX(R22:AC22,1,N$16)*Diagram_NEW!$BB$13 -> 500 | R22: 500 | S22: 500 | T22: 500 | U22: 500 | V22: 500 | W22: 500 | X22: 500 | Y22: 500 | Z22: 500 | AA22: 500 | AB22: 500 | AC22: 500 | AF22: _t4 | AI22: CASEx | AJ22: =+U15 -> CASEx
C23: QH;nd,5 | D23: th_t5 | E23: th_t5 | F23: th_t5 | G23: th_t5 | H23: th_t5 | I23: kWh | J23: 0 | N23: =INDEX(R23:AC23,1,N$16)*Diagram_NEW!$BB$13 -> 0 | AF23: _t5 | AI23: CASEx | AJ23: =+V15 -> CASEx
C24: QH;nd,6 | D24: th_t6 | E24: th_t6 | F24: th_t6 | G24: th_t6 | H24: th_t6 | I24: kWh | J24: 0 | N24: =INDEX(R24:AC24,1,N$16)*Diagram_NEW!$BB$13 -> 0 | AF24: _t6 | AI24: CASEx | AJ24: =+W15 -> CASEx
C25: QH;nd,7 | D25: th_t7 | E25: th_t7 | F25: th_t7 | G25: th_t7 | H25: th_t7 | I25: kWh | J25: 0 | N25: =INDEX(R25:AC25,1,N$16)*Diagram_NEW!$BB$13 -> 0 | AF25: _t7 | AI25: CASEx | AJ25: =+X15 -> CASEx
C26: QH;nd,8 | D26: th_t8 | E26: th_t8 | F26: th_t8 | G26: th_t8 | H26: th_t8 | I26: kWh | J26: 0 | N26: =INDEX(R26:AC26,1,N$16)*Diagram_NEW!$BB$13 -> 0 | AF26: _t8 | AI26: CASEx | AJ26: =+Y15 -> CASEx
C27: QH;nd,9 | D27: th_t9 | E27: th_t9 | F27: th_t9 | G27: th_t9 | H27: th_t9 | I27: kWh | J27: 0 | N27: =INDEX(R27:AC27,1,N$16)*Diagram_NEW!$BB$13 -> 0 | AF27: _t9 | AI27: CASEx | AJ27: =+Z15 -> CASEx
C28: QH;nd,10 | D28: th_t10 | E28: th_t10 | F28: th_t10 | G28: th_t10 | H28: th_t10 | I28: kWh | J28: 600 | K28: 600 | L28: 600 | M28: 600 | N28: =INDEX(R28:AC28,1,N$16)*Diagram_NEW!$BB$13 -> 600 | R28: 600 | S28: 600 | T28: 600 | U28: 600 | V28: 600 | W28: 600 | X28: 600 | Y28: 600 | Z28: 600 | AA28: 600 | AB28: 600 | AC28: 600 | AF28: _t10 | AI28: CASEx | AJ28: =+AA15 -> CASEx
C29: QH;nd,11 | D29: th_t11 | E29: th_t11 | F29: th_t11 | G29: th_t11 | H29: th_t11 | I29: kWh | J29: 1300 | K29: 1300 | L29: 1300 | M29: 1300 | N29: =INDEX(R29:AC29,1,N$16)*Diagram_NEW!$BB$13 -> 1300 | R29: 1300 | S29: 1300 | T29: 1300 | U29: 1300 | V29: 1300 | W29: 1300 | X29: 1300 | Y29: 1300 | Z29: 1300 | AA29: 1300 | AB29: 1300 | AC29: 1300 | AF29: _t11 | AI29: CASEx | AJ29: =+AB15 -> CASEx
C30: QH;nd,12 | D30: th_t12 | E30: th_t12 | F30: th_t12 | G30: th_t12 | H30: th_t12 | I30: kWh | J30: 1600 | K30: 1600 | L30: 1600 | M30: 1600 | N30: =INDEX(R30:AC30,1,N$16)*Diagram_NEW!$BB$13 -> 1600 | R30: 1600 | S30: 1600 | T30: 1600 | U30: 1600 | V30: 1600 | W30: 1600 | X30: 1600 | Y30: 1600 | Z30: 1600 | AA30: 1600 | AB30: 1600 | AC30: 1600 | AF30: _t12 | AI30: Last case | AJ30: =+AC15 -> Last case
B31: =" "&INDEX(Language!$D$10:$M$10,1,_language) -> hot water | C31: QW;nd | D31: th_y | E31: th_y | F31: th_y | G31: th_y | H31: th_y | I31: kWh | J31: 1800 | K31: =SUM(K32:K43) -> 6000 | L31: =SUM(L32:L43) -> 6000 | M31: =SUM(M32:M43) -> 6000 | N31: =SUM(N32:N43) -> 1800
C32: QW;nd,1 | D32: th_t1 | E32: th_t1 | F32: th_t1 | G32: th_t1 | H32: th_t1 | I32: kWh | J32: 150 | K32: 500 | L32: 500 | M32: 500 | N32: =INDEX(R32:AC32,1,N$16)*Diagram_NEW!$BB$17 -> 150 | R32: 150 | S32: 150 | T32: 150 | U32: 150 | V32: 150 | W32: 150 | X32: 150 | Y32: 150 | Z32: 150 | AA32: 150 | AB32: 150 | AC32: 150
C33: QW;nd,2 | D33: th_t2 | E33: th_t2 | F33: th_t2 | G33: th_t2 | H33: th_t2 | I33: kWh | J33: 150 | K33: =+K32 -> 500 | L33: =+L32 -> 500 | M33: =+M32 -> 500 | N33: =INDEX(R33:AC33,1,N$16)*Diagram_NEW!$BB$17 -> 150 | R33: 150 | S33: 150 | T33: 150 | U33: 150 | V33: 150 | W33: 150 | X33: 150 | Y33: 150 | Z33: 150 | AA33: 150 | AB33: 150 | AC33: 150
C34: QW;nd,3 | D34: th_t3 | E34: th_t3 | F34: th_t3 | G34: th_t3 | H34: th_t3 | I34: kWh | J34: 150 | K34: 500 | L34: 500 | M34: 500 | N34: =INDEX(R34:AC34,1,N$16)*Diagram_NEW!$BB$17 -> 150 | R34: 150 | S34: 150 | T34: 150 | U34: 150 | V34: 150 | W34: 150 | X34: 150 | Y34: 150 | Z34: 150 | AA34: 150 | AB34: 150 | AC34: 150
C35: QW;nd,4 | D35: th_t4 | E35: th_t4 | F35: th_t4 | G35: th_t4 | H35: th_t4 | I35: kWh | J35: 150 | K35: 500 | L35: 500 | M35: 500 | N35: =INDEX(R35:AC35,1,N$16)*Diagram_NEW!$BB$17 -> 150 | R35: 150 | S35: 150 | T35: 150 | U35: 150 | V35: 150 | W35: 150 | X35: 150 | Y35: 150 | Z35: 150 | AA35: 150 | AB35: 150 | AC35: 150
C36: QW;nd,5 | D36: th_t5 | E36: th_t5 | F36: th_t5 | G36: th_t5 | H36: th_t5 | I36: kWh | J36: 150 | K36: 500 | L36: 500 | M36: 500 | N36: =INDEX(R36:AC36,1,N$16)*Diagram_NEW!$BB$17 -> 150 | R36: 150 | S36: 150 | T36: 150 | U36: 150 | V36: 150 | W36: 150 | X36: 150 | Y36: 150 | Z36: 150 | AA36: 150 | AB36: 150 | AC36: 150
C37: QW;nd,6 | D37: th_t6 | E37: th_t6 | F37: th_t6 | G37: th_t6 | H37: th_t6 | I37: kWh | J37: 150 | K37: 500 | L37: 500 | M37: 500 | N37: =INDEX(R37:AC37,1,N$16)*Diagram_NEW!$BB$17 -> 150 | R37: 150 | S37: 150 | T37: 150 | U37: 150 | V37: 150 | W37: 150 | X37: 150 | Y37: 150 | Z37: 150 | AA37: 150 | AB37: 150 | AC37: 150
C38: QW;nd,7 | D38: th_t7 | E38: th_t7 | F38: th_t7 | G38: th_t7 | H38: th_t7 | I38: kWh | J38: 150 | K38: 500 | L38: 500 | M38: 500 | N38: =INDEX(R38:AC38,1,N$16)*Diagram_NEW!$BB$17 -> 150 | R38: 150 | S38: 150 | T38: 150 | U38: 150 | V38: 150 | W38: 150 | X38: 150 | Y38: 150 | Z38: 150 | AA38: 150 | AB38: 150 | AC38: 150
C39: QW;nd,8 | D39: th_t8 | E39: th_t8 | F39: th_t8 | G39: th_t8 | H39: th_t8 | I39: kWh | J39: 150 | K39: 500 | L39: 500 | M39: 500 | N39: =INDEX(R39:AC39,1,N$16)*Diagram_NEW!$BB$17 -> 150 | R39: 150 | S39: 150 | T39: 150 | U39: 150 | V39: 150 | W39: 150 | X39: 150 | Y39: 150 | Z39: 150 | AA39: 150 | AB39: 150 | AC39: 150
C40: QW;nd,9 | D40: th_t9 | E40: th_t9 | F40: th_t9 | G40: th_t9 | H40: th_t9 | I40: kWh | J40: 150 | K40: 500 | L40: 500 | M40: 500 | N40: =INDEX(R40:AC40,1,N$16)*Diagram_NEW!$BB$17 -> 150 | R40: 150 | S40: 150 | T40: 150 | U40: 150 | V40: 150 | W40: 150 | X40: 150 | Y40: 150 | Z40: 150 | AA40: 150 | AB40: 150 | AC40: 150
C41: QW;nd,10 | D41: th_t10 | E41: th_t10 | F41: th_t10 | G41: th_t10 | H41: th_t10 | I41: kWh | J41: 150 | K41: 500 | L41: 500 | M41: 500 | N41: =INDEX(R41:AC41,1,N$16)*Diagram_NEW!$BB$17 -> 150 | R41: 150 | S41: 150 | T41: 150 | U41: 150 | V41: 150 | W41: 150 | X41: 150 | Y41: 150 | Z41: 150 | AA41: 150 | AB41: 150 | AC41: 150
C42: QW;nd,11 | D42: th_t11 | E42: th_t11 | F42: th_t11 | G42: th_t11 | H42: th_t11 | I42: kWh | J42: 150 | K42: 500 | L42: 500 | M42: 500 | N42: =INDEX(R42:AC42,1,N$16)*Diagram_NEW!$BB$17 -> 150 | R42: 150 | S42: 150 | T42: 150 | U42: 150 | V42: 150 | W42: 150 | X42: 150 | Y42: 150 | Z42: 150 | AA42: 150 | AB42: 150 | AC42: 150
C43: QW;nd,12 | D43: th_t12 | E43: th_t12 | F43: th_t12 | G43: th_t12 | H43: th_t12 | I43: kWh | J43: 150 | K43: 500 | L43: 500 | M43: 500 | N43: =INDEX(R43:AC43,1,N$16)*Diagram_NEW!$BB$17 -> 150 | R43: 150 | S43: 150 | T43: 150 | U43: 150 | V43: 150 | W43: 150 | X43: 150 | Y43: 150 | Z43: 150 | AA43: 150 | AB43: 150 | AC43: 150
B44: =" "&INDEX(Language!$D$11:$M$11,1,_language)&" "&INDEX(Language!$D$18:$M$18,1,_language) -> humidification if not included in heating | C44: Qhum;nd | D44: th_y | E44: th_y | F44: th_y | G44: th_y | H44: th_y | I44: kWh | J44: 0 | K44: =SUM(K45:K56) -> 0 | L44: =SUM(L45:L56) -> 0 | M44: =SUM(M45:M56) -> 0 | N44: =SUM(N45:N56) -> 0
C45: Qhum;nd,1 | D45: th_t1 | E45: th_t1 | F45: th_t1 | G45: th_t1 | H45: th_t1 | I45: kWh | J45: 0 | K45: 0 | L45: 0 | M45: 0 | N45: =INDEX(R45:AC45,1,N$16) -> 0 | R45: 0 | S45: 0 | T45: 0 | U45: 0 | V45: 0 | W45: 0 | X45: 0 | Y45: 0 | Z45: 0 | AA45: 0 | AB45: 0 | AC45: 0
C46: Qhum;nd,2 | D46: th_t2 | E46: th_t2 | F46: th_t2 | G46: th_t2 | H46: th_t2 | I46: kWh | J46: 0 | K46: =+K45 -> 0 | L46: =+L45 -> 0 | M46: =+M45 -> 0 | N46: 0 | R46: =+R45 -> 0 | S46: =+S45 -> 0 | T46: 0 | U46: 0 | V46: 0 | W46: 0 | X46: 0 | Y46: 0 | Z46: 0 | AA46: 0 | AB46: 0 | AC46: 0
C47: Qhum;nd,3 | D47: th_t3 | E47: th_t3 | F47: th_t3 | G47: th_t3 | H47: th_t3 | I47: kWh | J47: 0 | K47: 0 | L47: 0 | M47: 0 | N47: 0 | R47: 0 | S47: 0 | T47: 0 | U47: 0 | V47: 0 | W47: 0 | X47: 0 | Y47: 0 | Z47: 0 | AA47: 0 | AB47: 0 | AC47: 0
C48: Qhum;nd,4 | D48: th_t4 | E48: th_t4 | F48: th_t4 | G48: th_t4 | H48: th_t4 | I48: kWh | J48: 0 | K48: 0 | L48: 0 | M48: 0 | N48: 0 | R48: 0 | S48: 0 | T48: 0 | U48: 0 | V48: 0 | W48: 0 | X48: 0 | Y48: 0 | Z48: 0 | AA48: 0 | AB48: 0 | AC48: 0
C49: Qhum;nd,5 | D49: th_t5 | E49: th_t5 | F49: th_t5 | G49: th_t5 | H49: th_t5 | I49: kWh | J49: 0 | K49: 0 | L49: 0 | M49: 0 | N49: 0 | R49: 0 | S49: 0 | T49: 0 | U49: 0 | V49: 0 | W49: 0 | X49: 0 | Y49: 0 | Z49: 0 | AA49: 0 | AB49: 0 | AC49: 0
C50: Qhum;nd,6 | D50: =INDEX(E50:H50,,_case_en) -> th_t6 | E50: th_t6 | F50: th_t6 | G50: th_t6 | H50: th_t6 | I50: kWh | J50: =INDEX(K50:N50,,_case_en) -> 0 | K50: 0 | L50: 0 | M50: 0 | N50: 0 | R50: 0 | S50: 0 | T50: 0 | U50: 0 | V50: 0 | W50: 0 | X50: 0 | Y50: 0 | Z50: 0 | AA50: 0 | AB50: 0 | AC50: 0
C51: Qhum;nd,7 | D51: th_t7 | E51: th_t7 | F51: th_t7 | G51: th_t7 | H51: th_t7 | I51: kWh | J51: 0 | K51: 0 | L51: 0 | M51: 0 | N51: 0 | R51: 0 | S51: 0 | T51: 0 | U51: 0 | V51: 0 | W51: 0 | X51: 0 | Y51: 0 | Z51: 0 | AA51: 0 | AB51: 0 | AC51: 0
C52: Qhum;nd,8 | D52: th_t8 | E52: th_t8 | F52: th_t8 | G52: th_t8 | H52: th_t8 | I52: kWh | J52: 0 | K52: 0 | L52: 0 | M52: 0 | N52: 0 | R52: 0 | S52: 0 | T52: 0 | U52: 0 | V52: 0 | W52: 0 | X52: 0 | Y52: 0 | Z52: 0 | AA52: 0 | AB52: 0 | AC52: 0
C53: Qhum;nd,9 | D53: th_t9 | E53: th_t9 | F53: th_t9 | G53: th_t9 | H53: th_t9 | I53: kWh | J53: 0 | K53: 0 | L53: 0 | M53: 0 | N53: 0 | R53: 0 | S53: 0 | T53: 0 | U53: 0 | V53: 0 | W53: 0 | X53: 0 | Y53: 0 | Z53: 0 | AA53: 0 | AB53: 0 | AC53: 0
C54: Qhum;nd,10 | D54: th_t10 | E54: th_t10 | F54: th_t10 | G54: th_t10 | H54: th_t10 | I54: kWh | J54: 0 | K54: 0 | L54: 0 | M54: 0 | N54: 0 | R54: 0 | S54: 0 | T54: 0 | U54: 0 | V54: 0 | W54: 0 | X54: 0 | Y54: 0 | Z54: 0 | AA54: 0 | AB54: 0 | AC54: 0
C55: Qhum;nd,11 | D55: th_t11 | E55: th_t11 | F55: th_t11 | G55: th_t11 | H55: th_t11 | I55: kWh | J55: 0 | K55: 0 | L55: 0 | M55: 0 | N55: 0 | R55: 0 | S55: 0 | T55: 0 | U55: 0 | V55: 0 | W55: 0 | X55: 0 | Y55: 0 | Z55: 0 | AA55: 0 | AB55: 0 | AC55: 0
C56: Qhum;nd,12 | D56: th_t12 | E56: th_t12 | F56: th_t12 | G56: th_t12 | H56: th_t12 | I56: kWh | J56: 0 | K56: 0 | L56: 0 | M56: 0 | N56: 0 | R56: 0 | S56: 0 | T56: 0 | U56: 0 | V56: 0 | W56: 0 | X56: 0 | Y56: 0 | Z56: 0 | AA56: 0 | AB56: 0 | AC56: 0
B57: =" "&INDEX(Language!$D$12:$M$12,1,_language) -> cooling | C57: QC;nd | D57: th_y | E57: th_y | F57: th_y | G57: th_y | H57: th_y | I57: kWh | J57: 950 | K57: =SUM(K58:K69) -> 2200 | L57: =SUM(L58:L69) -> 2200 | M57: =SUM(M58:M69) -> 2200 | N57: =SUM(N58:N69) -> 950
C58: QC;nd,1 | D58: th_t1 | E58: th_t1 | F58: th_t1 | G58: th_t1 | H58: th_t1 | I58: kWh | J58: 0 | K58: 0 | L58: 0 | M58: 0 | N58: =INDEX(R58:AC58,1,N$16)*Diagram_NEW!$BB$21 -> 0 | R58: 0 | S58: 0 | T58: 0 | U58: 0 | V58: 0 | W58: 0 | X58: 0 | Y58: 0 | Z58: 0 | AA58: 0 | AB58: 0 | AC58: 0
C59: QC;nd,2 | D59: th_t2 | E59: th_t2 | F59: th_t2 | G59: th_t2 | H59: th_t2 | I59: kWh | J59: 0 | K59: 0 | L59: 0 | M59: 0 | N59: =INDEX(R59:AC59,1,N$16)*Diagram_NEW!$BB$21 -> 0 | R59: 0 | S59: 0 | T59: 0 | U59: 0 | V59: 0 | W59: 0 | X59: 0 | Y59: 0 | Z59: 0 | AA59: 0 | AB59: 0 | AC59: 0
C60: QC;nd,3 | D60: th_t3 | E60: th_t3 | F60: th_t3 | G60: th_t3 | H60: th_t3 | I60: kWh | J60: 0 | K60: 0 | L60: 0 | M60: 0 | N60: =INDEX(R60:AC60,1,N$16)*Diagram_NEW!$BB$21 -> 0 | R60: 0 | S60: 0 | T60: 0 | U60: 0 | V60: 0 | W60: 0 | X60: 0 | Y60: 0 | Z60: 0 | AA60: 0 | AB60: 0 | AC60: 0
C61: QC;nd,4 | D61: th_t4 | E61: th_t4 | F61: th_t4 | G61: th_t4 | H61: th_t4 | I61: kWh | J61: 0 | K61: 100 | L61: 100 | M61: 100 | N61: =INDEX(R61:AC61,1,N$16)*Diagram_NEW!$BB$21 -> 0 | R61: 0 | S61: 0 | T61: 0 | U61: 0 | V61: 0 | W61: 0 | X61: 0 | Y61: 0 | Z61: 0 | AA61: 0 | AB61: 0 | AC61: 0
C62: QC;nd,5 | D62: th_t5 | E62: th_t5 | F62: th_t5 | G62: th_t5 | H62: th_t5 | I62: kWh | J62: 50 | K62: 200 | L62: 200 | M62: 200 | N62: =INDEX(R62:AC62,1,N$16)*Diagram_NEW!$BB$21 -> 50 | R62: 50 | S62: 50 | T62: 0 | U62: 0 | V62: 0 | W62: 0 | X62: 0 | Y62: 0 | Z62: 0 | AA62: 0 | AB62: 0 | AC62: 0
C63: QC;nd,6 | D63: th_t6 | E63: th_t6 | F63: th_t6 | G63: th_t6 | H63: th_t6 | I63: kWh | J63: 200 | K63: 500 | L63: 500 | M63: 500 | N63: =INDEX(R63:AC63,1,N$16)*Diagram_NEW!$BB$21 -> 200 | R63: 200 | S63: 200 | T63: 0 | U63: 0 | V63: 0 | W63: 0 | X63: 0 | Y63: 0 | Z63: 0 | AA63: 0 | AB63: 0 | AC63: 0
C64: QC;nd,7 | D64: th_t7 | E64: th_t7 | F64: th_t7 | G64: th_t7 | H64: th_t7 | I64: kWh | J64: 300 | K64: 600 | L64: 600 | M64: 600 | N64: =INDEX(R64:AC64,1,N$16)*Diagram_NEW!$BB$21 -> 300 | R64: 300 | S64: 300 | T64: 0 | U64: 0 | V64: 0 | W64: 0 | X64: 0 | Y64: 0 | Z64: 0 | AA64: 0 | AB64: 0 | AC64: 0
C65: QC;nd,8 | D65: th_t8 | E65: th_t8 | F65: th_t8 | G65: th_t8 | H65: th_t8 | I65: kWh | J65: 250 | K65: 550 | L65: 550 | M65: 550 | N65: =INDEX(R65:AC65,1,N$16)*Diagram_NEW!$BB$21 -> 250 | R65: 250 | S65: 250 | T65: 0 | U65: 0 | V65: 0 | W65: 0 | X65: 0 | Y65: 0 | Z65: 0 | AA65: 0 | AB65: 0 | AC65: 0
C66: QC;nd,9 | D66: th_t9 | E66: th_t9 | F66: th_t9 | G66: th_t9 | H66: th_t9 | I66: kWh | J66: 150 | K66: 250 | L66: 250 | M66: 250 | N66: =INDEX(R66:AC66,1,N$16)*Diagram_NEW!$BB$21 -> 150 | R66: 150 | S66: 150 | T66: 0 | U66: 0 | V66: 0 | W66: 0 | X66: 0 | Y66: 0 | Z66: 0 | AA66: 0 | AB66: 0 | AC66: 0
C67: QC;nd,10 | D67: th_t10 | E67: th_t10 | F67: th_t10 | G67: th_t10 | H67: th_t10 | I67: kWh | J67: 0 | K67: 0 | L67: 0 | M67: 0 | N67: =INDEX(R67:AC67,1,N$16)*Diagram_NEW!$BB$21 -> 0 | R67: 0 | S67: 0 | T67: 0 | U67: 0 | V67: 0 | W67: 0 | X67: 0 | Y67: 0 | Z67: 0 | AA67: 0 | AB67: 0 | AC67: 0
C68: QC;nd,11 | D68: th_t11 | E68: th_t11 | F68: th_t11 | G68: th_t11 | H68: th_t11 | I68: kWh | J68: 0 | K68: 0 | L68: 0 | M68: 0 | N68: =INDEX(R68:AC68,1,N$16)*Diagram_NEW!$BB$21 -> 0 | R68: 0 | S68: 0 | T68: 0 | U68: 0 | V68: 0 | W68: 0 | X68: 0 | Y68: 0 | Z68: 0 | AA68: 0 | AB68: 0 | AC68: 0
C69: QC;nd,12 | D69: th_t12 | E69: th_t12 | F69: th_t12 | G69: th_t12 | H69: th_t12 | I69: kWh | J69: 0 | K69: 0 | L69: 0 | M69: 0 | N69: =INDEX(R69:AC69,1,N$16)*Diagram_NEW!$BB$21 -> 0 | R69: 0 | S69: 0 | T69: 0 | U69: 0 | V69: 0 | W69: 0 | X69: 0 | Y69: 0 | Z69: 0 | AA69: 0 | AB69: 0 | AC69: 0
B70: =" "&INDEX(Language!$D$13:$M$13,1,_language)&" "&INDEX(Language!$D$19:$M$19,1,_language) -> dehumidification if not included in cooling | C70: Qdhum;nd | D70: th_y | E70: th_y | F70: th_y | G70: th_y | H70: th_y | I70: kWh | J70: 0 | K70: =SUM(K71:K82) -> 0 | L70: =SUM(L71:L82) -> 0 | M70: =SUM(M71:M82) -> 0 | N70: =SUM(N71:N82) -> 0
C71: Qdhum;nd,1 | D71: th_t1 | E71: th_t1 | F71: th_t1 | G71: th_t1 | H71: th_t1 | I71: kWh | J71: 0 | K71: 0 | L71: 0 | M71: 0 | N71: =INDEX(R71:AC71,1,N$16) -> 0 | R71: 0 | S71: 0 | T71: 0 | U71: 0 | V71: 0 | W71: 0 | X71: 0 | Y71: 0 | Z71: 0 | AA71: 0 | AB71: 0 | AC71: 0
C72: Qdhum;nd,2 | D72: th_t2 | E72: th_t2 | F72: th_t2 | G72: th_t2 | H72: th_t2 | I72: kWh | J72: 0 | K72: 0 | L72: 0 | M72: 0 | N72: 0 | R72: =+R71 -> 0 | S72: =+S71 -> 0 | T72: 0 | U72: 0 | V72: 0 | W72: 0 | X72: 0 | Y72: 0 | Z72: 0 | AA72: 0 | AB72: 0 | AC72: 0
C73: Qdhum;nd,3 | D73: th_t3 | E73: th_t3 | F73: th_t3 | G73: th_t3 | H73: th_t3 | I73: kWh | J73: 0 | K73: 0 | L73: 0 | M73: 0 | N73: 0 | R73: 0 | S73: 0 | T73: 0 | U73: 0 | V73: 0 | W73: 0 | X73: 0 | Y73: 0 | Z73: 0 | AA73: 0 | AB73: 0 | AC73: 0
C74: Qdhum;nd,4 | D74: th_t4 | E74: th_t4 | F74: th_t4 | G74: th_t4 | H74: th_t4 | I74: kWh | J74: 0 | K74: 0 | L74: 0 | M74: 0 | N74: 0 | R74: 0 | S74: 0 | T74: 0 | U74: 0 | V74: 0 | W74: 0 | X74: 0 | Y74: 0 | Z74: 0 | AA74: 0 | AB74: 0 | AC74: 0
C75: Qdhum;nd,5 | D75: th_t5 | E75: th_t5 | F75: th_t5 | G75: th_t5 | H75: th_t5 | I75: kWh | J75: 0 | K75: 0 | L75: 0 | M75: 0 | N75: 0 | R75: 0 | S75: 0 | T75: 0 | U75: 0 | V75: 0 | W75: 0 | X75: 0 | Y75: 0 | Z75: 0 | AA75: 0 | AB75: 0 | AC75: 0
C76: Qdhum;nd,6 | D76: th_t6 | E76: th_t6 | F76: th_t6 | G76: th_t6 | H76: th_t6 | I76: kWh | J76: 0 | K76: 0 | L76: 0 | M76: 0 | N76: 0 | R76: 0 | S76: 0 | T76: 0 | U76: 0 | V76: 0 | W76: 0 | X76: 0 | Y76: 0 | Z76: 0 | AA76: 0 | AB76: 0 | AC76: 0
C77: Qdhum;nd,7 | D77: th_t7 | E77: th_t7 | F77: th_t7 | G77: th_t7 | H77: th_t7 | I77: kWh | J77: 0 | K77: 0 | L77: 0 | M77: 0 | N77: 0 | R77: 0 | S77: 0 | T77: 0 | U77: 0 | V77: 0 | W77: 0 | X77: 0 | Y77: 0 | Z77: 0 | AA77: 0 | AB77: 0 | AC77: 0
C78: Qdhum;nd,8 | D78: th_t8 | E78: th_t8 | F78: th_t8 | G78: th_t8 | H78: th_t8 | I78: kWh | J78: 0 | K78: 0 | L78: 0 | M78: 0 | N78: 0 | R78: 0 | S78: 0 | T78: 0 | U78: 0 | V78: 0 | W78: 0 | X78: 0 | Y78: 0 | Z78: 0 | AA78: 0 | AB78: 0 | AC78: 0
C79: Qdhum;nd,9 | D79: th_t9 | E79: th_t9 | F79: th_t9 | G79: th_t9 | H79: th_t9 | I79: kWh | J79: 0 | K79: 0 | L79: 0 | M79: 0 | N79: 0 | R79: 0 | S79: 0 | T79: 0 | U79: 0 | V79: 0 | W79: 0 | X79: 0 | Y79: 0 | Z79: 0 | AA79: 0 | AB79: 0 | AC79: 0
C80: Qdhum;nd,10 | D80: th_t10 | E80: th_t10 | F80: th_t10 | G80: th_t10 | H80: th_t10 | I80: kWh | J80: 0 | K80: 0 | L80: 0 | M80: 0 | N80: 0 | R80: 0 | S80: 0 | T80: 0 | U80: 0 | V80: 0 | W80: 0 | X80: 0 | Y80: 0 | Z80: 0 | AA80: 0 | AB80: 0 | AC80: 0
C81: Qdhum;nd,11 | D81: th_t11 | E81: th_t11 | F81: th_t11 | G81: th_t11 | H81: th_t11 | I81: kWh | J81: 0 | K81: 0 | L81: 0 | M81: 0 | N81: 0 | R81: 0 | S81: 0 | T81: 0 | U81: 0 | V81: 0 | W81: 0 | X81: 0 | Y81: 0 | Z81: 0 | AA81: 0 | AB81: 0 | AC81: 0
C82: Qdhum;nd,12 | D82: =INDEX(E82:H82,,_case_en) -> th_t12 | E82: th_t12 | F82: th_t12 | G82: th_t12 | H82: th_t12 | I82: kWh | J82: =INDEX(K82:N82,,_case_en) -> 0 | K82: 0 | L82: 0 | M82: 0 | N82: 0 | R82: 0 | S82: 0 | T82: 0 | U82: 0 | V82: 0 | W82: 0 | X82: 0 | Y82: 0 | Z82: 0 | AA82: 0 | AB82: 0 | AC82: 0
B83: =" "&INDEX(Language!$D$14:$M$14,1,_language)&" "&INDEX(Language!$D$29:$M$29,1,_language) -> ventilation air transport and -circulation | C83: QV;nd | I83: kWh | J83: n.a. | K83: n.a. | L83: n.a. | M83: n.a. | N83: n.a. | O83: Pro forma added, but not obvious how to calculate these needs
B84: =" "&INDEX(Language!$D$15:$M$15,1,_language) -> lighting | C84: QL;nd | I84: kWh | J84: n.a. | K84: n.a. | L84: n.a. | M84: n.a. | N84: n.a. | O84: Pro forma added, but not obvious how to calculate these needs
B85: =" "&INDEX(Language!$D$16:$M$16,1,_language) -> transport (people) in bldng | C85: QTR;nd | I85: kWh | J85: n.a. | K85: n.a. | L85: n.a. | M85: n.a. | N85: n.a. | O85: Pro forma added, but nonot obvious how to calculate these needs; symbol = TR?
B86: =" "&INDEX(Language!$D$17:$M$17,1,_language)&" "&INDEX(Language!$D$20:$M$20,1,_language) -> appliances if part of EP | C86: QA;nd | I86: kWh | J86: n.a. | K86: n.a. | L86: n.a. | M86: n.a. | N86: n.a. | O86: Pro forma added, but not obvious how to calculate these needs
B87: =" "&INDEX(Language!$D$21:$M$21,1,_language)&" "&INDEX(Language!$D$22:$M$22,1,_language) -> other appliances not included in the energy performance | C87: QA;nEP;nd | I87: kWh | J87: n.a. | K87: n.a. | L87: n.a. | M87: n.a. | N87: n.a. | O87: Pro forma added, but not obvious how to calculate these needs
B88: =INDEX(Language!$D$97:$M$97,1,_language) -> Technical systems, without generation | C88: Auxiliary energy is collected to be an input of EN 15603
B89: =INDEX(Language!D182:M182,1,_language) -> Heating system efficiency except generation | C89: ηH,ngen | I89: % | J89: =INDEX(K89:N89,,_case_en) -> 80 | K89: 80 | L89: 80 | M89: 80 | N89: =INDEX(R89:AC89,1,N$16) -> 80 | O89: Simple simulation to show a difference between needs and technical systems output | R89: 80 | S89: 80 | T89: 80 | U89: 80 | V89: 80 | W89: 80 | X89: 80 | Y89: 80 | Z89: 80 | AA89: 80 | AB89: 80 | AC89: 80
B90: =INDEX(Language!D183:M183,1,_language) -> Cooling system efficiency except generation | C90: ηC,ngen | I90: % | J90: =INDEX(K90:N90,,_case_en) -> 70 | K90: 75 | L90: 75 | M90: 75 | N90: =INDEX(R90:AC90,1,N$16) -> 70 | R90: 70 | S90: 70 | T90: 70 | U90: 70 | V90: 70 | W90: 70 | X90: 70 | Y90: 70 | Z90: 70 | AA90: 70 | AB90: 70 | AC90: 70
B91: =INDEX(Language!D184:M184,1,_language) -> Dhw system efficiency except generation | C91: ηW,ngen | I91: % | J91: =INDEX(K91:N91,,_case_en) -> 75 | K91: 75 | L91: 75 | M91: 75 | N91: =INDEX(R91:AC91,1,N$16) -> 75 | R91: 75 | S91: 75 | T91: 75 | U91: 75 | V91: 75 | W91: 75 | X91: 75 | Y91: 75 | Z91: 75 | AA91: 75 | AB91: 75 | AC91: 75
B92: =INDEX(Language!D198:M198,1,_language) -> Heating generation output for heating and hum | C92: QH,gen,out | I92: =+_En_unit -> kWh | J92: =SUM(J93:J104) -> 10625 | K92: =SUM(K93:K104) -> 10625 | L92: =SUM(L93:L104) -> 10625 | M92: =SUM(M93:M104) -> 10625 | N92: =SUM(N93:N104) -> 10625
C93: QH,gen,out,1 | I93: kWh | J93: =INDEX(K93:N93,,_case_en) -> 2500 | K93: =+(K19+K45)*100/K$89 -> 2500 | L93: 2500 | M93: 2500 | N93: 2500
C94: QH,gen,out,2 | I94: kWh | J94: 1875 | K94: 1875 | L94: 1875 | M94: 1875 | N94: 1875
C95: QH,gen,out,3 | I95: kWh | J95: 1250 | K95: 1250 | L95: 1250 | M95: 1250 | N95: 1250
C96: QH,gen,out,4 | I96: kWh | J96: 625 | K96: 625 | L96: 625 | M96: 625 | N96: 625
C97: QH,gen,out,5 | I97: kWh | J97: 0 | K97: 0 | L97: 0 | M97: 0 | N97: 0
C98: QH,gen,out,6 | I98: kWh | J98: 0 | K98: 0 | L98: 0 | M98: 0 | N98: 0
C99: QH,gen,out,7 | I99: kWh | J99: 0 | K99: 0 | L99: 0 | M99: 0 | N99: 0
C100: QH,gen,out,8 | I100: kWh | J100: 0 | K100: 0 | L100: 0 | M100: 0 | N100: 0
C101: QH,gen,out,9 | I101: kWh | J101: 0 | K101: 0 | L101: 0 | M101: 0 | N101: 0
C102: QH,gen,out,10 | I102: kWh | J102: 750 | K102: 750 | L102: 750 | M102: 750 | N102: 750
C103: QH,gen,out,11 | I103: kWh | J103: 1625 | K103: 1625 | L103: 1625 | M103: 1625 | N103: 1625
C104: QH,gen,out,12 | I104: kWh | J104: 2000 | K104: 2000 | L104: 2000 | M104: 2000 | N104: 2000
B105: =INDEX(Language!D200:M200,1,_language) -> Heating system auxiliaries except generation | I105: % | J105: 3 | K105: 3 | L105: 3 | M105: 3 | N105: =INDEX(R105:AC105,1,N$16) -> 3 | O105: Percentage of generation output | R105: 3 | S105: 3 | T105: 3 | U105: 3 | V105: 3 | W105: 3 | X105: 3 | Y105: 3 | Z105: 3 | AA105: 3 | AB105: 3 | AC105: 3
C106: WH,ngen,aux | D106: =INDEX(E106:H106,,_case_en) -> el_us_y | E106: el_us_y | F106: el_us_y | G106: el_us_y | H106: el_us_y | I106: kWh | J106: =SUM(J107:J118) -> 318.75 | K106: =SUM(K107:K118) -> 318.75 | L106: =SUM(L107:L118) -> 318.75 | M106: =SUM(M107:M118) -> 318.75 | N106: =SUM(N107:N118) -> 318.75 | O106: This is an input to EN 15603 | P106: <-connected
C107: WH,ngen,aux,1 | D107: el_us_t1 | E107: el_us_t1 | F107: el_us_t1 | G107: el_us_t1 | H107: el_us_t1 | I107: kWh | J107: =INDEX(K107:N107,,_case_en) -> 75 | K107: =+K93*K$105/100 -> 75 | L107: 75 | M107: 75 | N107: 75
C108: WH,ngen,aux,2 | D108: el_us_t2 | E108: el_us_t2 | F108: el_us_t2 | G108: el_us_t2 | H108: el_us_t2 | I108: kWh | J108: 56.25 | K108: 56.25 | L108: 56.25 | M108: 56.25 | N108: 56.25
C109: WH,ngen,aux,3 | D109: el_us_t3 | E109: el_us_t3 | F109: el_us_t3 | G109: el_us_t3 | H109: el_us_t3 | I109: kWh | J109: 37.5 | K109: 37.5 | L109: 37.5 | M109: 37.5 | N109: 37.5
C110: WH,ngen,aux,4 | D110: el_us_t4 | E110: el_us_t4 | F110: el_us_t4 | G110: el_us_t4 | H110: el_us_t4 | I110: kWh | J110: 18.75 | K110: 18.75 | L110: 18.75 | M110: 18.75 | N110: 18.75
C111: WH,ngen,aux,5 | D111: el_us_t5 | E111: el_us_t5 | F111: el_us_t5 | G111: el_us_t5 | H111: el_us_t5 | I111: kWh | J111: 0 | K111: 0 | L111: 0 | M111: 0 | N111: 0
C112: WH,ngen,aux,6 | D112: el_us_t6 | E112: el_us_t6 | F112: el_us_t6 | G112: el_us_t6 | H112: el_us_t6 | I112: kWh | J112: 0 | K112: 0 | L112: 0 | M112: 0 | N112: 0
C113: WH,ngen,aux,7 | D113: el_us_t7 | E113: el_us_t7 | F113: el_us_t7 | G113: el_us_t7 | H113: el_us_t7 | I113: kWh | J113: 0 | K113: 0 | L113: 0 | M113: 0 | N113: 0
C114: WH,ngen,aux,8 | D114: el_us_t8 | E114: el_us_t8 | F114: el_us_t8 | G114: el_us_t8 | H114: el_us_t8 | I114: kWh | J114: 0 | K114: 0 | L114: 0 | M114: 0 | N114: 0
C115: WH,ngen,aux,9 | D115: el_us_t9 | E115: el_us_t9 | F115: el_us_t9 | G115: el_us_t9 | H115: el_us_t9 | I115: kWh | J115: 0 | K115: 0 | L115: 0 | M115: 0 | N115: 0
C116: WH,ngen,aux,10 | D116: el_us_t10 | E116: el_us_t10 | F116: el_us_t10 | G116: el_us_t10 | H116: el_us_t10 | I116: kWh | J116: 22.5 | K116: 22.5 | L116: 22.5 | M116: 22.5 | N116: 22.5
C117: WH,ngen,aux,11 | D117: el_us_t11 | E117: el_us_t11 | F117: el_us_t11 | G117: el_us_t11 | H117: el_us_t11 | I117: kWh | J117: 48.75 | K117: 48.75 | L117: 48.75 | M117: 48.75 | N117: 48.75
C118: WH,ngen,aux,12 | D118: el_us_t12 | E118: el_us_t12 | F118: el_us_t12 | G118: el_us_t12 | H118: el_us_t12 | I118: kWh | J118: 60 | K118: 60 | L118: 60 | M118: 60 | N118: 60
B119: =INDEX(Language!D185:M185,1,_language) -> Generation output for dhw | C119: QW,gen,out | I119: kWh | J119: =SUM(J120:J131) -> 2400 | K119: =SUM(K120:K131) -> 8000 | L119: =SUM(L120:L131) -> 8000 | M119: =SUM(M120:M131) -> 8000 | N119: =SUM(N120:N131) -> 2400
C120: QW,gen,out,1 | I120: kWh | J120: =INDEX(K120:N120,,_case_en) -> 200 | K120: =+K32*100/K$91 -> 666.6666667 | L120: 666.6666667 | M120: 666.6666667 | N120: 200
C121: QW,gen,out,2 | I121: kWh | J121: 200 | K121: 666.6666667 | L121: 666.6666667 | M121: 666.6666667 | N121: 200
C122: QW,gen,out,3 | I122: kWh | J122: 200 | K122: 666.6666667 | L122: 666.6666667 | M122: 666.6666667 | N122: 200
C123: QW,gen,out,4 | I123: kWh | J123: 200 | K123: 666.6666667 | L123: 666.6666667 | M123: 666.6666667 | N123: 200
C124: QW,gen,out,5 | I124: kWh | J124: 200 | K124: 666.6666667 | L124: 666.6666667 | M124: 666.6666667 | N124: 200
C125: QW,gen,out,6 | I125: kWh | J125: 200 | K125: 666.6666667 | L125: 666.6666667 | M125: 666.6666667 | N125: 200
C126: QW,gen,out,7 | I126: kWh | J126: 200 | K126: 666.6666667 | L126: 666.6666667 | M126: 666.6666667 | N126: 200
C127: QW,gen,out,8 | I127: kWh | J127: 200 | K127: 666.6666667 | L127: 666.6666667 | M127: 666.6666667 | N127: 200
C128: QW,gen,out,9 | I128: kWh | J128: 200 | K128: 666.6666667 | L128: 666.6666667 | M128: 666.6666667 | N128: 200
C129: QW,gen,out,10 | I129: kWh | J129: 200 | K129: 666.6666667 | L129: 666.6666667 | M129: 666.6666667 | N129: 200
C130: QW,gen,out,11 | I130: kWh | J130: 200 | K130: 666.6666667 | L130: 666.6666667 | M130: 666.6666667 | N130: 200
C131: QW,gen,out,12 | I131: kWh | J131: 200 | K131: 666.6666667 | L131: 666.6666667 | M131: 666.6666667 | N131: 200
B132: =INDEX(Language!D202:M202,1,_language) -> Dhw system auxiliaries except generation | I132: % | J132: 2 | K132: 2 | L132: 2 | M132: 2 | N132: =INDEX(R132:AC132,1,N$16) -> 2 | O132: Percentage of generation output | R132: 2 | S132: 2 | T132: 2 | U132: 2 | V132: 2 | W132: 2 | X132: 2 | Y132: 2 | Z132: 2 | AA132: 2 | AB132: 2 | AC132: 2
C133: WW,ngen,aux | D133: =INDEX(E133:H133,,_case_en) -> el_us_y | E133: el_us_y | F133: el_us_y | G133: el_us_y | H133: el_us_y | I133: =+_En_unit -> kWh | J133: =SUM(J134:J145) -> 48 | K133: =SUM(K134:K145) -> 160 | L133: =SUM(L134:L145) -> 160 | M133: =SUM(M134:M145) -> 160 | N133: =SUM(N134:N145) -> 48 | O133: This is an input to EN 15603 | P133: <-connected
C134: WW,ngen,aux,1 | D134: el_us_t1 | E134: el_us_t1 | F134: el_us_t1 | G134: el_us_t1 | H134: el_us_t1 | I134: =+_En_unit -> kWh | J134: =INDEX(K134:N134,,_case_en) -> 4 | K134: =+K120*K$132/100 -> 13.33333333 | L134: 13.33333333 | M134: 13.33333333 | N134: 4
C135: WW,ngen,aux,2 | D135: el_us_t2 | E135: el_us_t2 | F135: el_us_t2 | G135: el_us_t2 | H135: el_us_t2 | I135: kWh | J135: 4 | K135: 13.33333333 | L135: 13.33333333 | M135: 13.33333333 | N135: 4
C136: WW,ngen,aux,3 | D136: el_us_t3 | E136: el_us_t3 | F136: el_us_t3 | G136: el_us_t3 | H136: el_us_t3 | I136: kWh | J136: 4 | K136: 13.33333333 | L136: 13.33333333 | M136: 13.33333333 | N136: 4
C137: WW,ngen,aux,4 | D137: el_us_t4 | E137: el_us_t4 | F137: el_us_t4 | G137: el_us_t4 | H137: el_us_t4 | I137: kWh | J137: 4 | K137: 13.33333333 | L137: 13.33333333 | M137: 13.33333333 | N137: 4
C138: WW,ngen,aux,5 | D138: el_us_t5 | E138: el_us_t5 | F138: el_us_t5 | G138: el_us_t5 | H138: el_us_t5 | I138: kWh | J138: 4 | K138: 13.33333333 | L138: 13.33333333 | M138: 13.33333333 | N138: 4
C139: WW,ngen,aux,6 | D139: el_us_t6 | E139: el_us_t6 | F139: el_us_t6 | G139: el_us_t6 | H139: el_us_t6 | I139: kWh | J139: 4 | K139: 13.33333333 | L139: 13.33333333 | M139: 13.33333333 | N139: 4
C140: WW,ngen,aux,7 | D140: el_us_t7 | E140: el_us_t7 | F140: el_us_t7 | G140: el_us_t7 | H140: el_us_t7 | I140: kWh | J140: 4 | K140: 13.33333333 | L140: 13.33333333 | M140: 13.33333333 | N140: 4
C141: WW,ngen,aux,8 | D141: el_us_t8 | E141: el_us_t8 | F141: el_us_t8 | G141: el_us_t8 | H141: el_us_t8 | I141: kWh | J141: 4 | K141: 13.33333333 | L141: 13.33333333 | M141: 13.33333333 | N141: 4
C142: WW,ngen,aux,9 | D142: el_us_t9 | E142: el_us_t9 | F142: el_us_t9 | G142: el_us_t9 | H142: el_us_t9 | I142: kWh | J142: 4 | K142: 13.33333333 | L142: 13.33333333 | M142: 13.33333333 | N142: 4
C143: WW,ngen,aux,10 | D143: el_us_t10 | E143: el_us_t10 | F143: el_us_t10 | G143: el_us_t10 | H143: el_us_t10 | I143: kWh | J143: 4 | K143: 13.33333333 | L143: 13.33333333 | M143: 13.33333333 | N143: 4
C144: WW,ngen,aux,11 | D144: el_us_t11 | E144: el_us_t11 | F144: el_us_t11 | G144: el_us_t11 | H144: el_us_t11 | I144: kWh | J144: 4 | K144: 13.33333333 | L144: 13.33333333 | M144: 13.33333333 | N144: 4
C145: WW,ngen,aux,12 | D145: el_us_t12 | E145: el_us_t12 | F145: el_us_t12 | G145: el_us_t12 | H145: el_us_t12 | I145: kWh | J145: 4 | K145: 13.33333333 | L145: 13.33333333 | M145: 13.33333333 | N145: 4
B146: =INDEX(Language!D199:M199,1,_language) -> Cooling generation output for cooling and dhum | C146: QC,gen,out | I146: kWh | J146: =SUM(J147:J158) -> 1357.142857 | K146: =SUM(K147:K158) -> 2933.333333 | L146: =SUM(L147:L158) -> 2933.333333 | M146: =SUM(M147:M158) -> 2933.333333 | N146: =SUM(N147:N158) -> 1357.142857
C147: QC,gen,out,1 | I147: kWh | J147: =INDEX(K147:N147,,_case_en) -> 0 | K147: =+(K58+K71)*100/K$90 -> 0 | L147: 0 | M147: 0 | N147: 0
C148: QC,gen,out,2 | I148: kWh | J148: 0 | K148: 0 | L148: 0 | M148: 0 | N148: 0
C149: QC,gen,out,3 | I149: kWh | J149: 0 | K149: 0 | L149: 0 | M149: 0 | N149: 0
C150: QC,gen,out,4 | I150: kWh | J150: 0 | K150: 133.3333333 | L150: 133.3333333 | M150: 133.3333333 | N150: 0
C151: QC,gen,out,5 | I151: kWh | J151: 71.42857143 | K151: 266.6666667 | L151: 266.6666667 | M151: 266.6666667 | N151: 71.42857143
C152: QC,gen,out,6 | I152: kWh | J152: 285.7142857 | K152: 666.6666667 | L152: 666.6666667 | M152: 666.6666667 | N152: 285.7142857
C153: QC,gen,out,7 | I153: kWh | J153: 428.5714286 | K153: 800 | L153: 800 | M153: 800 | N153: 428.5714286
C154: QC,gen,out,8 | I154: kWh | J154: 357.1428571 | K154: 733.3333333 | L154: 733.3333333 | M154: 733.3333333 | N154: 357.1428571
C155: QC,gen,out,9 | I155: kWh | J155: 214.2857143 | K155: 333.3333333 | L155: 333.3333333 | M155: 333.3333333 | N155: 214.2857143
C156: QC,gen,out,10 | I156: kWh | J156: 0 | K156: 0 | L156: 0 | M156: 0 | N156: 0
C157: QC,gen,out,11 | I157: kWh | J157: 0 | K157: 0 | L157: 0 | M157: 0 | N157: 0
C158: QC,gen,out,12 | I158: kWh | J158: 0 | K158: 0 | L158: 0 | M158: 0 | N158: 0
B159: =INDEX(Language!D201:M201,1,_language) -> Cooling system auxiliaries except generation | I159: % | J159: 2 | K159: 5 | L159: 5 | M159: 5 | N159: =INDEX(R159:AC159,1,N$16) -> 2 | O159: Percentage of cooling generation output | R159: 2 | S159: 2 | T159: 2 | U159: 2 | V159: 2 | W159: 2 | X159: 2 | Y159: 2 | Z159: 2 | AA159: 2 | AB159: 2 | AC159: 2
C160: WC,ngen,aux | D160: =INDEX(E160:H160,,_case_en) -> el_us_y | E160: el_us_y | F160: el_us_y | G160: el_us_y | H160: el_us_y | I160: kWh | J160: =SUM(J161:J172) -> 27.14285714 | K160: =SUM(K161:K172) -> 146.6666667 | L160: =SUM(L161:L172) -> 146.6666667 | M160: =SUM(M161:M172) -> 146.6666667 | N160: =SUM(N161:N172) -> 27.14285714 | O160: This is an input to EN 15603 | P160: <-connected
C161: WC,ngen,aux,1 | D161: el_us_t1 | E161: el_us_t1 | F161: el_us_t1 | G161: el_us_t1 | H161: el_us_t1 | I161: kWh | J161: =INDEX(K161:N161,,_case_en) -> 0 | K161: =+K147*K$159/100 -> 0 | L161: 0 | M161: 0 | N161: 0
C162: WC,ngen,aux,2 | D162: el_us_t2 | E162: el_us_t2 | F162: el_us_t2 | G162: el_us_t2 | H162: el_us_t2 | I162: kWh | J162: 0 | K162: 0 | L162: 0 | M162: 0 | N162: 0
C163: WC,ngen,aux,3 | D163: el_us_t3 | E163: el_us_t3 | F163: el_us_t3 | G163: el_us_t3 | H163: el_us_t3 | I163: kWh | J163: 0 | K163: 0 | L163: 0 | M163: 0 | N163: 0
C164: WC,ngen,aux,4 | D164: el_us_t4 | E164: el_us_t4 | F164: el_us_t4 | G164: el_us_t4 | H164: el_us_t4 | I164: kWh | J164: 0 | K164: 6.666666667 | L164: 6.666666667 | M164: 6.666666667 | N164: 0
C165: WC,ngen,aux,5 | D165: el_us_t5 | E165: el_us_t5 | F165: el_us_t5 | G165: el_us_t5 | H165: el_us_t5 | I165: kWh | J165: 1.428571429 | K165: 13.33333333 | L165: 13.33333333 | M165: 13.33333333 | N165: 1.428571429
C166: WC,ngen,aux,6 | D166: el_us_t6 | E166: el_us_t6 | F166: el_us_t6 | G166: el_us_t6 | H166: el_us_t6 | I166: kWh | J166: 5.714285714 | K166: 33.33333333 | L166: 33.33333333 | M166: 33.33333333 | N166: 5.714285714
C167: WC,ngen,aux,7 | D167: el_us_t7 | E167: el_us_t7 | F167: el_us_t7 | G167: el_us_t7 | H167: el_us_t7 | I167: kWh | J167: 8.571428571 | K167: 40 | L167: 40 | M167: 40 | N167: 8.571428571
C168: WC,ngen,aux,8 | D168: el_us_t8 | E168: el_us_t8 | F168: el_us_t8 | G168: el_us_t8 | H168: el_us_t8 | I168: kWh | J168: 7.142857143 | K168: 36.66666667 | L168: 36.66666667 | M168: 36.66666667 | N168: 7.142857143
C169: WC,ngen,aux,9 | D169: el_us_t9 | E169: el_us_t9 | F169: el_us_t9 | G169: el_us_t9 | H169: el_us_t9 | I169: kWh | J169: 4.285714286 | K169: 16.66666667 | L169: 16.66666667 | M169: 16.66666667 | N169: 4.285714286
C170: WC,ngen,aux,10 | D170: el_us_t10 | E170: el_us_t10 | F170: el_us_t10 | G170: el_us_t10 | H170: el_us_t10 | I170: kWh | J170: 0 | K170: 0 | L170: 0 | M170: 0 | N170: 0
C171: WC,ngen,aux,11 | D171: el_us_t11 | E171: el_us_t11 | F171: el_us_t11 | G171: el_us_t11 | H171: el_us_t11 | I171: kWh | J171: 0 | K171: 0 | L171: 0 | M171: 0 | N171: 0
C172: WC,ngen,aux,12 | D172: el_us_t12 | E172: el_us_t12 | F172: el_us_t12 | G172: el_us_t12 | H172: el_us_t12 | I172: kWh | J172: 0 | K172: 0 | L172: 0 | M172: 0 | N172: 0
B173: =INDEX(Language!$D$98:$M$98,1,_language) -> Generation systems | C173: Generation input and auxiliary energy are input data to EN 15603 calculation
B174: =INDEX(Language!D188:M188,1,_language) -> Thermal solar contribution multiplier | J174: =INDEX(K174:N174,,_case_en) -> 0.2 | K174: 1 | L174: 0 | M174: 2 | N174: =INDEX(R174:AC174,1,N$16)*Diagram_NEW!BD17 -> 0.2 | O174: Multiplier to modify quickly the profile, includes effect of on-diagram selector | R174: 0.2 | S174: 0 | T174: 0 | U174: 0.2 | V174: 0.2 | W174: 0.2 | X174: 0.2 | Y174: 0.2 | Z174: 0.2 | AA174: 0.2 | AB174: 0.2 | AC174: 0.2
B175: =INDEX(Language!D187:M187,1,_language) -> Base maximum thermal solar contribution | C175: QW,sol,out,max,def,1 | I175: =+_En_unit -> kWh | J175: =INDEX(K175:N175,,_case_en)*$J$174 -> 10 | K175: 50 | L175: 50 | M175: 50 | N175: =INDEX(R175:AC175,1,N$16) -> 50 | O175: Base profile for maximum contribution of thermal solar | R175: 50 | S175: 50 | T175: 50 | U175: 50 | V175: 50 | W175: 50 | X175: 50 | Y175: 50 | Z175: 50 | AA175: 50 | AB175: 50 | AC175: 50
C176: QW,sol,out,max,def,2 | I176: kWh | J176: 20 | K176: 100 | L176: 100 | M176: 100 | N176: 100 | R176: 100 | S176: 100 | T176: 100 | U176: 100 | V176: 100 | W176: 100 | X176: 100 | Y176: 100 | Z176: 100 | AA176: 100 | AB176: 100 | AC176: 100
C177: QW,sol,out,max,def,3 | I177: kWh | J177: 40 | K177: 200 | L177: 200 | M177: 200 | N177: 200 | R177: 200 | S177: 200 | T177: 200 | U177: 200 | V177: 200 | W177: 200 | X177: 200 | Y177: 200 | Z177: 200 | AA177: 200 | AB177: 200 | AC177: 200
C178: QW,sol,out,max,def,4 | I178: kWh | J178: 80 | K178: 400 | L178: 400 | M178: 400 | N178: 400 | R178: 400 | S178: 400 | T178: 400 | U178: 400 | V178: 400 | W178: 400 | X178: 400 | Y178: 400 | Z178: 400 | AA178: 400 | AB178: 400 | AC178: 400
C179: QW,sol,out,max,def,5 | I179: kWh | J179: 140 | K179: 700 | L179: 700 | M179: 700 | N179: 700 | R179: 700 | S179: 700 | T179: 700 | U179: 700 | V179: 700 | W179: 700 | X179: 700 | Y179: 700 | Z179: 700 | AA179: 700 | AB179: 700 | AC179: 700
C180: QW,sol,out,max,def,6 | I180: kWh | J180: 160 | K180: 800 | L180: 800 | M180: 800 | N180: 800 | R180: 800 | S180: 800 | T180: 800 | U180: 800 | V180: 800 | W180: 800 | X180: 800 | Y180: 800 | Z180: 800 | AA180: 800 | AB180: 800 | AC180: 800
C181: QW,sol,out,max,def,7 | I181: kWh | J181: 150 | K181: 750 | L181: 750 | M181: 750 | N181: 750 | R181: 750 | S181: 750 | T181: 750 | U181: 750 | V181: 750 | W181: 750 | X181: 750 | Y181: 750 | Z181: 750 | AA181: 750 | AB181: 750 | AC181: 750
C182: QW,sol,out,max,def,8 | I182: kWh | J182: 140 | K182: 700 | L182: 700 | M182: 700 | N182: 700 | R182: 700 | S182: 700 | T182: 700 | U182: 700 | V182: 700 | W182: 700 | X182: 700 | Y182: 700 | Z182: 700 | AA182: 700 | AB182: 700 | AC182: 700
C183: QW,sol,out,max,def,9 | I183: kWh | J183: 90 | K183: 450 | L183: 450 | M183: 450 | N183: 450 | R183: 450 | S183: 450 | T183: 450 | U183: 450 | V183: 450 | W183: 450 | X183: 450 | Y183: 450 | Z183: 450 | AA183: 450 | AB183: 450 | AC183: 450
C184: QW,sol,out,max,def,10 | I184: kWh | J184: 30 | K184: 150 | L184: 150 | M184: 150 | N184: 150 | R184: 150 | S184: 150 | T184: 150 | U184: 150 | V184: 150 | W184: 150 | X184: 150 | Y184: 150 | Z184: 150 | AA184: 150 | AB184: 150 | AC184: 150
C185: QW,sol,out,max,def,11 | I185: kWh | J185: 16 | K185: 80 | L185: 80 | M185: 80 | N185: 80 | R185: 80 | S185: 80 | T185: 80 | U185: 80 | V185: 80 | W185: 80 | X185: 80 | Y185: 80 | Z185: 80 | AA185: 80 | AB185: 80 | AC185: 80
C186: QW,sol,out,max,def,12 | I186: kWh | J186: 10 | K186: 50 | L186: 50 | M186: 50 | N186: 50 | R186: 50 | S186: 50 | T186: 50 | U186: 50 | V186: 50 | W186: 50 | X186: 50 | Y186: 50 | Z186: 50 | AA186: 50 | AB186: 50 | AC186: 50
B187: =INDEX(Language!D186:M186,1,_language) -> Maximum thermal solar contribution | C187: QW,sol,out,max | J187: =SUM(J188:J199) -> 177.2 | K187: =SUM(K188:K199) -> 4430 | L187: =SUM(L188:L199) -> 0 | M187: =SUM(M188:M199) -> 8860 | N187: =SUM(N188:N199) -> 886 | O187: Calculated maximum thermal solar contribution
C188: QW,sol,out,max,1 | I188: =+_En_unit -> kWh | J188: =INDEX(K188:N188,,_case_en)*$J$174 -> 2 | K188: =+K175*K$174 -> 50 | L188: 0 | M188: 100 | N188: 10
C189: QW,sol,out,max,2 | I189: kWh | J189: 4 | K189: 100 | L189: 0 | M189: 200 | N189: 20
C190: QW,sol,out,max,3 | I190: kWh | J190: 8 | K190: 200 | L190: 0 | M190: 400 | N190: 40
C191: QW,sol,out,max,4 | I191: kWh | J191: 16 | K191: 400 | L191: 0 | M191: 800 | N191: 80
C192: QW,sol,out,max,5 | I192: kWh | J192: 28 | K192: 700 | L192: 0 | M192: 1400 | N192: 140
C193: QW,sol,out,max,6 | I193: kWh | J193: 32 | K193: 800 | L193: 0 | M193: 1600 | N193: 160
C194: QW,sol,out,max,7 | I194: kWh | J194: 30 | K194: 750 | L194: 0 | M194: 1500 | N194: 150
C195: QW,sol,out,max,8 | I195: kWh | J195: 28 | K195: 700 | L195: 0 | M195: 1400 | N195: 140
C196: QW,sol,out,max,9 | I196: kWh | J196: 18 | K196: 450 | L196: 0 | M196: 900 | N196: 90
C197: QW,sol,out,max,10 | I197: kWh | J197: 6 | K197: 150 | L197: 0 | M197: 300 | N197: 30
C198: QW,sol,out,max,11 | I198: kWh | J198: 3.2 | K198: 80 | L198: 0 | M198: 160 | N198: 16
C199: QW,sol,out,max,12 | I199: kWh | J199: 2 | K199: 50 | L199: 0 | M199: 100 | N199: 10
B200: =INDEX(Language!D196:M196,1,_language) -> Thermal solar output to dhw | C200: QW,sol,out | I200: =+_En_unit -> kWh | J200: =SUM(J201:J212) -> 886 | K200: =SUM(K201:K212) -> 4146.666667 | L200: =SUM(L201:L212) -> 0 | M200: =SUM(M201:M212) -> 5260 | N200: =SUM(N201:N212) -> 886 | O200: This is NOT an input to EN 15603
C201: QW,sol,out,1 | I201: kWh | J201: =INDEX(K201:N201,,_case_en) -> 10 | K201: =MIN(K188,K120) -> 50 | L201: 0 | M201: 100 | N201: 10
... 1060 more rows

Sheet National options
B2: Choose your language at sheet "Language" | C2: <-- Not yet functional
B5: Table A-B.31 - Priority for generation system, export
B6: Please select here the desired priority set | E6: Please fill in one column for each priority option set you wish to use
B7: Your selection | C7: 1 | E7: PV, Wind and CHP are available in this sheet
E9: =INDEX(Language!$D$106:$N$106,1,_language) -> Value | F9: =INDEX(Language!$D$106:$N$106,1,_language) -> Value | G9: =INDEX(Language!$D$106:$N$106,1,_language) -> Value | H9: =INDEX(Language!$D$106:$N$106,1,_language) -> Value | I9: =INDEX(Language!$D$106:$N$106,1,_language) -> Value | J9: =INDEX(Language!$D$106:$N$106,1,_language) -> Value | K9: =INDEX(Language!$D$106:$N$106,1,_language) -> Value | L9: =INDEX(Language!$D$106:$N$106,1,_language) -> Value | M9: =INDEX(Language!$D$107:$N$107,1,_language) -> Comments | S9: Selection logic - Don't change!
B10: Selected set | C10: =INDEX(E10:L10,,_case_priority) -> prEN 15603 2015 | E10: =+ConvFactors!I30 -> prEN 15603 2015 | F10: =+ConvFactors!J30 -> DIN | G10: =+ConvFactors!K30 -> EN 15603 : 2008 | H10: =+ConvFactors!L30 -> UNI | I10: =+ConvFactors!M30 -> DIN no rdel | J10: =+ConvFactors!N30 -> DIN no exp | K10: =+ConvFactors!O30 -> DIN exp | L10: =+ConvFactors!P30 -> Custom | O10: Names are repeated here to have the combo working | R10: 2 | S10: 1
B11: Piority level 1 - EL_EXP_PRIO_LEVEL_1 | C11: =INDEX(E11:L11,,_case_priority) -> el_pv | E11: el_pv | F11: el_none | G11: el_none | H11: el_none | I11: el_none | J11: el_none | K11: el_none | L11: =INDEX(R11:R14,R10) -> el_pv | M11: If first set to "NONE", other not relevant | O11: =+E10 -> prEN 15603 2015 | R11: el_none | S11: =IF($R$10=1,R11,IF($R$10=2,R13,IF($R$10=3,R14,R12))) -> el_chp | T11: =IF(S10=1,S12,S11) -> el_wind
B12: Piority level 2 - EL_EXP_PRIO_LEVEL_2 | C12: =IF(C11=R11,R11,INDEX(E12:L12,,_case_priority)) -> el_wind | E12: el_wind | F12: el_none | G12: el_none | H12: el_none | I12: el_none | J12: el_none | K12: el_none | L12: =INDEX(S11:S12,S10) -> el_chp | O12: =+F10 -> DIN | R12: el_pv | S12: =IF($R$10=1,R11,IF($R$10=2,R14,IF($R$10=3,R12,R13))) -> el_wind
B13: Piority level 3 - EL_EXP_PRIO_LEVEL_3 | C13: =IF(C11=R11,R11,INDEX(E13:L13,,_case_priority)) -> el_chp | E13: el_chp | F13: el_none | G13: el_none | H13: el_none | I13: el_none | J13: el_none | K13: el_none | L13: =T11 -> el_wind | O13: =+G10 -> EN 15603 : 2008 | R13: el_chp
O14: =+H10 -> UNI | R14: el_wind
O15: =+I10 -> DIN no rdel
O16: =+J10 -> DIN no exp
O17: =+K10 -> DIN exp
O18: =+L10 -> Custom
B20: Table A-B.35 - krdel and kexp factors
B21: Please select here the desired parameter set | E21: Please fill in one column for each paramter set you wish to use
B22: Your selection | C22: 1
E24: =INDEX(Language!$D$106:$N$106,1,_language) -> Value | F24: =INDEX(Language!$D$106:$N$106,1,_language) -> Value | G24: =INDEX(Language!$D$106:$N$106,1,_language) -> Value | H24: =INDEX(Language!$D$106:$N$106,1,_language) -> Value | I24: =INDEX(Language!$D$106:$N$106,1,_language) -> Value | J24: =INDEX(Language!$D$106:$N$106,1,_language) -> Value | K24: =INDEX(Language!$D$106:$N$106,1,_language) -> Value | L24: =INDEX(Language!$D$106:$N$106,1,_language) -> Value | M24: =INDEX(Language!$D$107:$N$107,1,_language) -> Comments
B25: Selected set | C25: =INDEX(E25:L25,,_case_priority) -> prEN 15603 2015 | E25: =+ConvFactors!I30 -> prEN 15603 2015 | F25: =+ConvFactors!J30 -> DIN | G25: =+ConvFactors!K30 -> EN 15603 : 2008 | H25: =+ConvFactors!L30 -> UNI | I25: =+ConvFactors!M30 -> DIN no rdel | J25: =+ConvFactors!N30 -> DIN no exp | K25: =+ConvFactors!O30 -> DIN exp | L25: =+ConvFactors!P30 -> Custom | O25: Names are repeated here to have the combo working
B26: Krdel | C26: =INDEX(E26:L26,,_case_k_factors) -> 0 | E26: 0 | H26: 0 | L26: 1 | O26: =+E25 -> prEN 15603 2015
B27: Kexp | C27: =INDEX(E27:L27,,_case_k_factors) -> 1 | E27: 1 | H27: 0 | L27: 0 | O27: =+F25 -> DIN
O28: =+G25 -> EN 15603 : 2008
O29: =+H25 -> UNI
O30: =+I25 -> DIN no rdel
O31: =+J25 -> DIN no exp
O32: =+K25 -> DIN exp
O33: =+L25 -> Custom
B36: Table A-B.33 - matching factor
B37: Please select if you want to take into account a matching factor | E37: Sample matching factor: | O37: Yes
B38: Your selection | C38: 2 | I38: with x = Epr;el/EEPus;el, k=1 and n=1 | O38: NO
E40: See sheet "Fmatch"
B44: Table A-B.21 — Perimeter choice
B45: Please select here the desired perimeter choice | E45: Please fill in one column for each perimeter choice you wish to use: 1 = included -- 0 = excluded
B46: Your selection | C46: 1 | E46: Note: the filter according to perimeter for RER and energy performance is not yet active
E48: =INDEX(Language!$D$106:$N$106,1,_language) -> Value | F48: =INDEX(Language!$D$106:$N$106,1,_language) -> Value | G48: =INDEX(Language!$D$106:$N$106,1,_language) -> Value | H48: =INDEX(Language!$D$106:$N$106,1,_language) -> Value | I48: =INDEX(Language!$D$106:$N$106,1,_language) -> Value | J48: =INDEX(Language!$D$106:$N$106,1,_language) -> Value | K48: =INDEX(Language!$D$106:$N$106,1,_language) -> Value | L48: =INDEX(Language!$D$106:$N$106,1,_language) -> Value | M48: =INDEX(Language!$D$107:$N$107,1,_language) -> Comments
B49: Selected set | C49: =INDEX(E49:L49,,_case_perimeter) -> prEN 15603 2015 | E49: =+ConvFactors!I30 -> prEN 15603 2015 | F49: =+ConvFactors!J30 -> DIN | G49: =+ConvFactors!K30 -> EN 15603 : 2008 | H49: =+ConvFactors!L30 -> UNI | I49: =+ConvFactors!M30 -> DIN no rdel | J49: =+ConvFactors!N30 -> DIN no exp | K49: =+ConvFactors!O30 -> DIN exp | L49: =+ConvFactors!P30 -> Custom | O49: Names are repeated here to have the combo working
B50: RER calculation (renewable energy) | O50: =+E49 -> prEN 15603 2015
B51: On-site | C51: =INDEX(E51:L51,,_case_perimeter) -> 1 | E51: 1 | H51: 1 | L51: 1 | O51: =+F49 -> DIN
B52: Nearby | C52: =INDEX(E52:L52,,_case_perimeter) -> 1 | E52: 1 | H52: 1 | L52: 1 | O52: =+G49 -> EN 15603 : 2008
B53: Distant | C53: =INDEX(E53:L53,,_case_perimeter) -> 0 | E53: 0 | H53: 1 | L53: 1 | O53: =+H49 -> UNI
B54: RER calculation (total energy) | O54: =+I49 -> DIN no rdel
B55: On-site | C55: =INDEX(E55:L55,,_case_perimeter) -> 1 | E55: 1 | H55: 1 | L55: 1 | O55: =+J49 -> DIN no exp
B56: Nearby | C56: =INDEX(E56:L56,,_case_perimeter) -> 1 | E56: 1 | H56: 1 | L56: 1 | O56: =+K49 -> DIN exp
B57: Distant | C57: =INDEX(E57:L57,,_case_perimeter) -> 1 | E57: 1 | H57: 1 | L57: 1 | O57: =+L49 -> Custom
B58: EP calculation (delivered energy)
B59: On-site | C59: =INDEX(E59:L59,,_case_perimeter) -> 1 | E59: 1 | H59: 1 | L59: 1
B60: Nearby | C60: =INDEX(E60:L60,,_case_perimeter) -> 1 | E60: 1 | H60: 1 | L60: 1
B61: Distant | C61: =INDEX(E61:L61,,_case_perimeter) -> 1 | E61: 1 | H61: 1 | L61: 1

Sheet ConvFactors
B1: Choose your language at sheet "Language" | C1: <-- Not yet functional
C2: NOTE: weighting supported: primary energy only for now
B3: Table A/B.24 – Energy carrier identifiers and perimeter
B4: Energy carrier | C4: Identifier | D4: Perimeter
B5: Energy carrier description… | C5: Energy carrier identifier | D5: Energy carrier perimeter
B6: gas | C6: gas | D6: dist
B7: oil | C7: oil | D7: dist
B8: coal | C8: coal | D8: dist
B9: wood | C9: wood | D9: dist
B10: biomass | C10: biomass | D10: dist
B11: custom | C11: custom | D11: dist
B12: District heating | C12: dh | D12: nrby
B13: District cooling | C13: dc | D13: nrby
B14: Electricity from nearby | C14: el_nrby | D14: nrby
B15: Thermal solar | C15: sol | D15: onst
B16: Photovoltaic | C16: pv | D16: onst
B17: Environment heat | C17: env | D17: onst
B18: Grid delivered electricity | C18: el | D18: dist
B19: Grid exported electricity | C19: el_exp | D19: dist
B20: Temp. exported electricity | C20: el_tmp | D20: dist
B21: Exp to non EPB uses | C21: el_nep | D21: dist
D24: Please select here the desired weighting factor data set | I24: Please fill in one column for each weighting factor set you wish to use
C25: Your selection | F25: 1 | I25: Put the name of your set in row 5 (yellow cell)
B27: Note: for clarity and ease of comparison, the format of this table is not the same as in the standard: there is one table here for each column in the standard
B28: Table A/B.25 - Weighting factors (based on gross or net calorific value)
B29: =INDEX(Language!$D$102:$N$102,1,_language) -> Description | C29: =INDEX(Language!$D$103:$N$103,1,_language) -> Symbol | D29: =INDEX(Language!$D$110:$N$110,1,_language) -> Energy carrier | E29: =INDEX(Language!$D$105:$N$105,1,_language) -> Unit | F29: =INDEX(Language!$D$106:$N$106,1,_language) -> Value | G29: Perim | I29: =INDEX(Language!$D$106:$N$106,1,_language) -> Value | J29: =INDEX(Language!$D$106:$N$106,1,_language) -> Value | K29: =INDEX(Language!$D$106:$N$106,1,_language) -> Value | L29: =INDEX(Language!$D$106:$N$106,1,_language) -> Value | M29: =INDEX(Language!$D$106:$N$106,1,_language) -> Value | N29: =INDEX(Language!$D$106:$N$106,1,_language) -> Value | O29: =INDEX(Language!$D$106:$N$106,1,_language) -> Value | P29: =INDEX(Language!$D$106:$N$106,1,_language) -> Value | Q29: =INDEX(Language!$D$107:$N$107,1,_language) -> Comments
C30: Name of the data set | F30: =INDEX(I30:P30,,_case_factor) -> prEN 15603 2015 | I30: prEN 15603 2015 | J30: DIN | K30: EN 15603 : 2008 | L30: UNI | M30: DIN no rdel | N30: DIN no exp | O30: DIN exp | P30: Custom | Q30: <-- Insert here the name of each set | S30: Names are repeated here to have the combo working
B31: =INDEX(Language!$D$138:$N$138,1,_language) -> Non renewable primary energy factor | C31: fPnren | I31: Table B.12 | S31: =+I30 -> prEN 15603 2015
B32: =INDEX(Language!D145:N145,1,_language) -> gas | C32: fPnren,del;gas | D32: =+C6 -> gas | E32: =_En_unit&"/"&_En_unit -> kWh/kWh | F32: =INDEX(I32:P32,,_case_factor) -> 1.1 | G32: =+D6 -> dist | I32: 1.1 | J32: 1.1 | K32: 1.36 | L32: 1 | M32: 1.1 | N32: 1.1 | O32: 1.36 | P32: 1 | Q32: Green: checked and valid | S32: =+J30 -> DIN
B33: =INDEX(Language!D146:N146,1,_language) -> oil | C33: fPnren;del;oil | D33: oil | E33: kWh/kWh | F33: 1.1 | G33: dist | I33: 1.1 | J33: 1.1 | K33: 1.35 | L33: 1 | M33: 1.1 | N33: 1.1 | O33: 1.35 | P33: 1 | Q33: Yellow: fitting exactly | S33: =+K30 -> EN 15603 : 2008
B34: =INDEX(Language!D147:N147,1,_language) -> coal | C34: fP;nren,del;coal | D34: coal | E34: kWh/kWh | F34: 1.1 | G34: dist | I34: 1.1 | J34: 1.2 | K34: 1.4 | L34: 1 | M34: 1.2 | N34: 1.2 | O34: 1.4 | P34: 1 | Q34: Red: to be checked, just provisional | S34: =+L30 -> UNI
B35: =INDEX(Language!D148:N148,1,_language) -> wood | C35: fP;nren,del;wood | D35: wood | E35: kWh/kWh | F35: 0.2 | G35: dist | I35: 0.2 | J35: 0.2 | K35: 0.09 | L35: 0 | M35: 0.2 | N35: 0.2 | O35: 0.08 | P35: 0 | S35: =+M30 -> DIN no rdel
B36: =INDEX(Language!D149:N149,1,_language) -> biomass | C36: fP;nren,del;bmss | D36: biomass | E36: kWh/kWh | F36: 0.2 | G36: dist | I36: 0.2 | J36: 0.2 | K36: 0.2 | L36: 0 | M36: 0.2 | N36: 0.2 | O36: 0.08 | P36: 0 | S36: =+N30 -> DIN no exp
B37: =INDEX(Language!D150:N150,1,_language) -> custom | C37: fP;nren,del;custom | D37: custom | E37: kWh/kWh | F37: 1 | G37: dist | I37: 1 | J37: 1 | K37: 1 | L37: 1 | M37: 1 | N37: 1 | O37: 1 | P37: 1 | S37: =+O30 -> DIN exp
B38: =INDEX(Language!D151:N151,1,_language) -> District heating | C38: fP;nren,del;DH | D38: dh | E38: kWh/kWh | F38: 1.3 | G38: nrby | I38: 1.3 | J38: 1.3 | K38: 1.3 | L38: 1.5 | M38: 1.3 | N38: 1.3 | O38: 1.5 | P38: 1.5 | S38: =+P30 -> Custom
B39: =INDEX(Language!D152:N152,1,_language) -> District cooling | C39: fP;nren,del;DC | D39: dc | E39: kWh/kWh | F39: 1.3 | G39: nrby | I39: 1.3 | J39: 1.3 | K39: 1.3 | L39: 1.5 | M39: 1.3 | N39: 1.3 | O39: 1.5 | P39: 1.5
B40: Electricity from nearby (to be used as an example) | D40: el_nrby | G40: nrby
B41: Thermal solar | C41: fP;nren,del;sol | D41: sol | E41: =_En_unit&"/"&_En_unit -> kWh/kWh | F41: 0 | G41: onst | I41: 0 | J41: 0 | K41: 0 | L41: 0 | M41: 0 | N41: 0 | O41: 0 | P41: 0
B42: Photovoltaic | C42: fP;nren,del;pv | D42: pv | E42: kWh/kWh | F42: 0 | G42: onst | I42: 0 | J42: 0 | K42: 0 | L42: 0 | M42: 0 | N42: 0 | O42: 0 | P42: 0
B43: =INDEX(Language!D153:N153,1,_language) -> Environment heat | C43: fP;nren,del;env | D43: env | E43: kWh/kWh | F43: =INDEX(I43:P43,,_case_factor) -> 0 | G43: onst | I43: 0 | J43: 0 | K43: 0 | L43: 0 | M43: 0 | N43: 0 | O43: 0 | P43: 0
B44: Grid delivered electricity | C44: fP;nren,del;el,grid | D44: el | E44: kWh/kWh | F44: 2.3 | G44: dist | I44: 2.3 | J44: 2.7 | K44: 3.14 | L44: 2.18 | M44: 2.7 | N44: 2.7 | O44: 3.14 | P44: 2.18
B45: Grid exported electricity | C45: fP;nren,exp;el;grid | D45: el_exp | E45: kWh/kWh | F45: 2.3 | G45: dist | I45: 2.3 | J45: 2.7 | K45: 3.14 | L45: 2.18 | M45: 2.7 | N45: 2.7 | O45: 3.14 | P45: 2.18
B46: Temp. exported electricity | C46: fP;nren,exp;el;tmp | D46: el_tmp | E46: kWh/kWh | F46: 2.3 | G46: dist | I46: 2.3 | J46: 2.7 | K46: 3.14 | L46: 2.18 | M46: 2.7 | N46: 2.7 | O46: 3.14 | P46: 2.18
B47: Exp to non EPB uses | C47: fP;nren,exp;el;nEPus | D47: el_nep | E47: kWh/kWh | F47: 2.3 | G47: dist | I47: 2.3 | J47: 2.7 | K47: 3.14 | L47: 2.18 | M47: 2.7 | N47: 2.7 | O47: 3.14 | P47: 2.18
B48: Last item | C48: fP;nren,rdel;void | E48: kWh/kWh | F48: 1 | I48: 1 | J48: 1 | K48: 1 | L48: 1 | M48: 1 | N48: 1 | O48: 1 | P48: 1
B50: Renewable primary energy factor | C50: fP,nen
B51: =+B32 -> gas | C51: fP;ren,del;gas | D51: =+D32 -> gas | E51: =_En_unit&"/"&_En_unit -> kWh/kWh | F51: =INDEX(I51:P51,,_case_factor) -> 0 | G51: =+G32 -> dist | I51: 0 | J51: 0 | K51: 0 | L51: 0 | M51: 0 | N51: 0 | O51: 0 | P51: 0
B52: oil | C52: fP;ren,del;oil | D52: oil | E52: kWh/kWh | F52: 0 | G52: dist | I52: 0 | J52: 0 | K52: 0 | L52: 0 | M52: 0 | N52: 0 | O52: 0 | P52: 0
B53: coal | C53: fP;ren,del;coal | D53: coal | E53: kWh/kWh | F53: 0 | G53: dist | I53: 0 | J53: 0 | K53: 0 | L53: 0 | M53: 0 | N53: 0 | O53: 0 | P53: 0
B54: wood | C54: fP;ren,del;wood | D54: wood | E54: kWh/kWh | F54: 1 | G54: dist | I54: 1 | J54: 0 | K54: 0 | L54: 0 | M54: 0 | N54: 0 | O54: 0 | P54: 0
B55: biomass | C55: fP;ren,del;bmss | D55: biomass | E55: kWh/kWh | F55: 1 | G55: dist | I55: 1 | J55: 1 | K55: 1 | L55: 1 | M55: 1 | N55: 1 | O55: 1 | P55: 1
B56: custom | C56: fP;ren,del;custom | D56: custom | E56: kWh/kWh | F56: 0 | G56: dist | I56: 0 | J56: 0 | K56: 0 | L56: 0 | M56: 0 | N56: 0 | O56: 0 | P56: 0
B57: District heating | C57: fP;ren,del;DH | D57: dh | E57: kWh/kWh | F57: 0 | G57: nrby | I57: 0 | J57: 1.3 | K57: 1.3 | L57: 1.5 | M57: 1.3 | N57: 1.3 | O57: 1.5 | P57: 1.5
B58: District cooling | C58: fP;ren,del;DC | D58: dc | E58: kWh/kWh | F58: 0 | G58: nrby | I58: 0 | J58: 1.3 | K58: 1.3 | L58: 1.5 | M58: 1.3 | N58: 1.3 | O58: 1.5 | P58: 1.5
B59: Electricity from nearby (to be used as an example) | D59: el_nrby | G59: nrby
B60: Thermal solar | C60: fP;ren,del;sol | D60: sol | E60: =_En_unit&"/"&_En_unit -> kWh/kWh | F60: =INDEX(I60:P60,,_case_factor) -> 1 | G60: onst | I60: 1 | J60: 1 | K60: 1 | L60: 1 | M60: 1 | N60: 1 | O60: 1 | P60: 1
B61: Photovoltaic | C61: fP;ren,del;pv | D61: pv | E61: kWh/kWh | F61: 1 | G61: onst | I61: 1 | J61: 1 | K61: 1 | L61: 1 | M61: 1 | N61: 1 | O61: 1 | P61: 1
B62: Environment heat | C62: fP;ren,del;env | D62: env | E62: kWh/kWh | F62: 1 | G62: onst | I62: 1 | J62: 1 | K62: 1 | L62: 1 | M62: 1 | N62: 1 | O62: 1 | P62: 1
B63: Grid delivered electricity | C63: fP;ren,del;el,grid | D63: el | E63: kWh/kWh | F63: 0.2 | G63: dist | I63: 0.2 | J63: 0.5 | K63: 0.5 | L63: 0.5 | M63: 0.5 | N63: 0.5 | O63: 0.5 | P63: 0.5
B64: Grid exported electricity | C64: fP;ren,exp;el;grid | D64: el_exp | E64: kWh/kWh | F64: 0.2 | G64: dist | I64: 0.2 | J64: 0.5 | K64: 0.5 | L64: 0.5 | M64: 0.5 | N64: 0.5 | O64: 0.5 | P64: 0.5
B65: Temp. exported electricity | C65: fP;ren,exp;el;tmp | D65: el_tmp | E65: kWh/kWh | F65: 0.2 | G65: dist | I65: 0.2 | J65: 0.5 | K65: 0.5 | L65: 0.5 | M65: 0.5 | N65: 0.5 | O65: 0.5 | P65: 0.5
B66: Exp to non EPB uses | C66: fP;ren,exp;el;nEPus | D66: el_nep | E66: kWh/kWh | F66: 0.2 | G66: dist | I66: 0.2 | J66: 0.5 | K66: 0.5 | L66: 0.5 | M66: 0.5 | N66: 0.5 | O66: 0.5 | P66: 0.5
B67: Last item | C67: fP;nren,rdel;void | E67: kWh/kWh | F67: 0 | I67: 0 | J67: 1 | K67: 1 | L67: 1 | M67: 1 | N67: 1 | O67: 1 | P67: 1
B69: =INDEX(Language!$D$140:$N$140,1,_language) -> Total primary energy factor | C69: fP,tot | Q69: Given by addition of nren + ren
B70: =+B32 -> gas | C70: fP;tot,del;gas | D70: =+D51 -> gas | E70: =_En_unit&"/"&_En_unit -> kWh/kWh | F70: =INDEX(I70:P70,,_case_factor) -> 1.1 | G70: =+G32 -> dist | I70: =+I51+I32 -> 1.1 | J70: 1.1 | K70: 1.36 | L70: 1 | M70: 1.1 | N70: 1.1 | O70: 1.36 | P70: 1
B71: oil | C71: fP;tot,del;oil | D71: oil | E71: kWh/kWh | F71: 1.1 | G71: dist | I71: 1.1 | J71: 1.1 | K71: 1.35 | L71: 1 | M71: 1.1 | N71: 1.1 | O71: 1.35 | P71: 1
B72: coal | C72: fP;tot,del;coal | D72: coal | E72: kWh/kWh | F72: 1.1 | G72: dist | I72: 1.1 | J72: 1.2 | K72: 1.4 | L72: 1 | M72: 1.2 | N72: 1.2 | O72: 1.4 | P72: 1
B73: wood | C73: fP;tot,del;wood | D73: wood | E73: kWh/kWh | F73: 1.2 | G73: dist | I73: 1.2 | J73: 0.2 | K73: 0.09 | L73: 0 | M73: 0.2 | N73: 0.2 | O73: 0.08 | P73: 0
B74: biomass | C74: fP;tot,del;bmss | D74: biomass | E74: kWh/kWh | F74: 1.2 | G74: dist | I74: 1.2 | J74: 1.2 | K74: 1.2 | L74: 1 | M74: 1.2 | N74: 1.2 | O74: 1.08 | P74: 1
B75: custom | C75: fP;tot,del;custom | D75: custom | E75: kWh/kWh | F75: 1 | G75: dist | I75: 1 | J75: 1 | K75: 1 | L75: 1 | M75: 1 | N75: 1 | O75: 1 | P75: 1
B76: District heating | C76: fP;tot,del;DH | D76: dh | E76: kWh/kWh | F76: 1.3 | G76: nrby | I76: 1.3 | J76: 2.6 | K76: 2.6 | L76: 3 | M76: 2.6 | N76: 2.6 | O76: 3 | P76: 3
B77: District cooling | C77: fP;tot,del;DC | D77: dc | E77: kWh/kWh | F77: 1.3 | G77: nrby | I77: 1.3 | J77: 2.6 | K77: 2.6 | L77: 3 | M77: 2.6 | N77: 2.6 | O77: 3 | P77: 3
B78: Electricity from nearby (to be used as an example) | D78: el_nrby | G78: nrby
B79: Thermal solar | C79: fP;tot,del;sol | D79: sol | E79: =_En_unit&"/"&_En_unit -> kWh/kWh | F79: =INDEX(I79:P79,,_case_factor) -> 1 | G79: onst | I79: =+I60+I41 -> 1 | J79: 1 | K79: 1 | L79: 1 | M79: 1 | N79: 1 | O79: 1 | P79: 1
B80: Photovoltaic | C80: fP;tot,del;pv | D80: pv | E80: kWh/kWh | F80: 1 | G80: onst | I80: 1 | J80: 1 | K80: 1 | L80: 1 | M80: 1 | N80: 1 | O80: 1 | P80: 1
B81: Environment heat | C81: fP;tot,del;env | D81: env | E81: kWh/kWh | F81: 1 | G81: onst | I81: 1 | J81: 1 | K81: 1 | L81: 1 | M81: 1 | N81: 1 | O81: 1 | P81: 1
B82: Grid delivered electricity | C82: fP;tot,del;el,grid | D82: el | E82: kWh/kWh | F82: 2.5 | G82: dist | I82: 2.5 | J82: 3.2 | K82: 3.64 | L82: 2.68 | M82: 3.2 | N82: 3.2 | O82: 3.64 | P82: 2.68
B83: Grid exported electricity | C83: fP;tot,exp;el;grid | D83: el_exp | E83: kWh/kWh | F83: 2.5 | G83: dist | I83: 2.5 | J83: 3.2 | K83: 3.64 | L83: 2.68 | M83: 3.2 | N83: 3.2 | O83: 3.64 | P83: 2.68
B84: Temp. exported electricity | C84: fP;tot,exp;el;tmp | D84: el_tmp | E84: kWh/kWh | F84: 2.5 | G84: dist | I84: 2.5 | J84: 3.2 | K84: 3.64 | L84: 2.68 | M84: 3.2 | N84: 3.2 | O84: 3.64 | P84: 2.68
B85: Exp to non EPB uses | C85: fP;tot,exp;el;nEPus | D85: el_nep | E85: kWh/kWh | F85: 2.5 | G85: dist | I85: 2.5 | J85: 3.2 | K85: 3.64 | L85: 2.68 | M85: 3.2 | N85: 3.2 | O85: 3.64 | P85: 2.68
B86: Last item | C86: fP;tot,rdel;void | E86: kWh/kWh | F86: 1 | I86: =+I67+I48 -> 1 | J86: 1 | K86: 1 | L86: 1 | M86: 1 | N86: 1 | O86: 1 | P86: 1
B90: =INDEX(Language!$D$174:$N$174,1,_language) -> Raw CO2 conversion factors | C90: UNIT | I90: kg/kWh | J90: kg/kWh | K90: kg/kWh | L90: kg/kWh | M90: kg/kWh | N90: kg/kWh | O90: kg/kWh | P90: kg/kWh | S90: =INDEX(Language!$D$176:$N$176,1,_language) -> CO2 Unit conversion table
B91: =+B32 -> gas | C91: KCO2;del;gas | D91: =+D70 -> gas | E91: kg/kWh | F91: =INDEX(I91:P91,,_case_factor)*$F$109 -> 0.22 | G91: =+G32 -> dist | I91: 0.22 | J91: 0.277 | K91: 0.277 | L91: 0.277 | M91: 0.277 | N91: 0.277 | O91: 0.277 | P91: 0.277 | Q91: Values to be checked | R91: =INDEX(Language!$D$177:$N$177,1,_language) -> From to --> | S91: kg/MJ | T91: kg/kWh | U91: =+B108 -> Unit index
B92: oil | C92: KCO2;del;oil | D92: oil | E92: kg/kWh | F92: 0.29 | G92: dist | I92: 0.29 | J92: 0.33 | K92: 0.33 | L92: 0.33 | M92: 0.33 | N92: 0.33 | O92: 0.33 | P92: 0.33 | Q92: Values to be checked | R92: kg/kWh | S92: =1/3.6 -> 0.2777777778 | T92: 1 | U92: 1
B93: coal | C93: KCO2;del;coal | D93: coal | E93: kg/kWh | F93: 0.36 | G93: dist | I93: 0.36 | J93: 0.433 | K93: 0.433 | L93: 0.433 | M93: 0.433 | N93: 0.433 | O93: 0.433 | P93: 0.433 | Q93: Values to be checked | R93: kg/MJ | S93: 1 | T93: 3.6 | U93: 2
B94: wood | C94: KCO2;del;wood | D94: wood | E94: kg/kWh | F94: 0.012 | G94: dist | I94: 0.012 | J94: 0.012 | K94: 0.012 | L94: 0.012 | M94: 0.012 | N94: 0.012 | O94: 0.012 | P94: 0.012 | Q94: Values to be checked | R94: Unit 3 | S94: 1 | T94: 3.6 | U94: 3
B95: biomass | C95: KCO2;del;bmss | D95: biomass | E95: kg/kWh | F95: 0.012 | G95: dist | I95: 0.012 | J95: 0.012 | K95: 0.012 | L95: 0.012 | M95: 0.012 | N95: 0.012 | O95: 0.012 | P95: 0.012 | Q95: Values to be checked | R95: Unit 4 | S95: 1 | T95: 3.6 | U95: 4
B96: custom | C96: KCO2;del;custom | D96: custom | E96: kg/kWh | F96: 0.3 | G96: dist | I96: 0.3 | J96: 0.3 | K96: 0.3 | L96: 0.3 | M96: 0.3 | N96: 0.3 | O96: 0.3 | P96: 0.3 | Q96: Values to be checked
B97: District heating | C97: KCO2;del;DH | D97: dh | E97: kg/kWh | F97: 0.26 | G97: nrby | I97: 0.26 | J97: 0.4 | K97: 0.4 | L97: 0.4 | M97: 0.4 | N97: 0.4 | O97: 0.4 | P97: 0.4 | Q97: Values to be checked
B98: District cooling | C98: KCO2;del;DC | D98: dc | E98: kg/kWh | F98: 0.26 | G98: nrby | I98: 0.26 | J98: 0.4 | K98: 0.4 | L98: 0.4 | M98: 0.4 | N98: 0.4 | O98: 0.4 | P98: 0.4 | Q98: Values to be checked
B99: Electricity from nearby (to be used as an example) | D99: el_nrby | G99: nrby
B100: Thermal solar | C100: KCO2;del;sol | D100: sol | E100: kg/kWh | F100: =INDEX(I100:P100,,_case_factor)*$F$109 -> 0 | G100: onst | I100: 0 | J100: 0 | K100: 0 | L100: 0 | M100: 0 | N100: 0 | O100: 0 | P100: 0 | Q100: Values to be checked
B101: Photovoltaic | C101: KCO2;del;pv | D101: pv | E101: kg/kWh | F101: 0 | G101: onst | I101: 0 | J101: 0 | K101: 0 | L101: 0 | M101: 0 | N101: 0 | O101: 0 | P101: 0 | Q101: Values to be checked
B102: Environment heat | C102: KCO2;del;env | D102: env | E102: kg/kWh | F102: 0 | G102: onst | I102: 0 | J102: 0.617 | K102: 0.617 | L102: 0.617 | M102: 0.617 | N102: 0.617 | O102: 0.617 | P102: 0.617 | Q102: Values to be checked
B103: Grid delivered electricity | C103: KCO2;del;el | D103: el | E103: kg/kWh | F103: 0.42 | G103: dist | I103: 0.42 | J103: 0.4 | K103: 0.4 | L103: 0.4 | M103: 0.4 | N103: 0.4 | O103: 0.4 | P103: 0.4 | Q103: Values to be checked
B104: Grid exported electricity | C104: KCO2;exp;el;grid | D104: el_exp | E104: kg/kWh | F104: 0.42 | G104: dist | I104: 0.42 | J104: 0.4 | K104: 0.4 | L104: 0.4 | M104: 0.4 | N104: 0.4 | O104: 0.4 | P104: 0.4 | Q104: Values to be checked
B105: Temp. exported electricity | C105: KCO2;exp;el;tmp | D105: el_tmp | E105: kg/kWh | F105: 0.42 | G105: dist | I105: 0.42 | J105: 0.4 | K105: 0.4 | L105: 0.4 | M105: 0.4 | N105: 0.4 | O105: 0.4 | P105: 0.4 | Q105: Values to be checked
B106: Exp to non EPB uses | C106: KCO2;exp;el;nEPus | D106: el_nep | E106: kg/kWh | F106: 0.42 | G106: dist | I106: 0.42 | J106: 0.4 | K106: 0.4 | L106: 0.4 | M106: 0.4 | N106: 0.4 | O106: 0.4 | P106: 0.4 | Q106: Values to be checked
B107: Last item
B108: =INDEX(Language!$D$178:$N$178,1,_language) -> Unit index | F108: =INDEX(I108:P108,,_case_factor) -> 1 | I108: =VLOOKUP(I90,$R$92:$U$95,4) -> 1 | J108: 1 | K108: 1 | L108: 1 | M108: 1 | N108: 1 | O108: 1 | P108: 1
B109: Unit conversion factor | F109: =INDEX(T92:T95,F108) -> 1
B110: Currency unit | E110: =$F$110&"/kWh" -> €/kWh | F110: =INDEX(I110:P110,,_case_factor) -> € | I110: € | J110: € | K110: € | L110: € | M110: € | N110: € | O110: € | P110: €
B111: COST weighting factors | C111: UNIT
B112: =+B32 -> gas | C112: Cdel;gas | D112: =+D91 -> gas | E112: =$F$110&"/kWh" -> €/kWh | F112: =INDEX(I112:P112,,_case_factor) -> 0.22 | G112: =+G32 -> dist | I112: 0.22 | J112: 0.277 | K112: 0.277 | L112: 0.277 | M112: 0.277 | N112: 0.277 | O112: 0.277 | P112: 0.277 | Q112: Values to be checked
B113: oil | C113: Cdel;oil | D113: oil | E113: €/kWh | F113: 0.29 | G113: dist | I113: 0.29 | J113: 0.33 | K113: 0.33 | L113: 0.33 | M113: 0.33 | N113: 0.33 | O113: 0.33 | P113: 0.33 | Q113: Values to be checked
B114: coal | C114: Cdel;coal | D114: coal | E114: €/kWh | F114: 0.36 | G114: dist | I114: 0.36 | J114: 0.433 | K114: 0.433 | L114: 0.433 | M114: 0.433 | N114: 0.433 | O114: 0.433 | P114: 0.433 | Q114: Values to be checked
B115: wood | C115: Cdel;wood | D115: wood | E115: €/kWh | F115: 0.012 | G115: dist | I115: 0.012 | J115: 0.012 | K115: 0.012 | L115: 0.012 | M115: 0.012 | N115: 0.012 | O115: 0.012 | P115: 0.012 | Q115: Values to be checked
B116: biomass | C116: Cdel;bmss | D116: biomass | E116: €/kWh | F116: 0.012 | G116: dist | I116: 0.012 | J116: 0.012 | K116: 0.012 | L116: 0.012 | M116: 0.012 | N116: 0.012 | O116: 0.012 | P116: 0.012 | Q116: Values to be checked
B117: custom | C117: Cdel;custom | D117: custom | E117: €/kWh | F117: 0.3 | G117: dist | I117: 0.3 | J117: 0.3 | K117: 0.3 | L117: 0.3 | M117: 0.3 | N117: 0.3 | O117: 0.3 | P117: 0.3 | Q117: Values to be checked
B118: District heating | C118: Cdel;DH | D118: dh | E118: €/kWh | F118: 0.26 | G118: nrby | I118: 0.26 | J118: 0.4 | K118: 0.4 | L118: 0.4 | M118: 0.4 | N118: 0.4 | O118: 0.4 | P118: 0.4 | Q118: Values to be checked
B119: District cooling | C119: Cdel;DC | D119: dc | E119: €/kWh | F119: 0.26 | G119: nrby | I119: 0.26 | J119: 0.4 | K119: 0.4 | L119: 0.4 | M119: 0.4 | N119: 0.4 | O119: 0.4 | P119: 0.4 | Q119: Values to be checked
B120: Electricity from nearby (to be used as an example) | D120: el_nrby | G120: nrby
B121: Thermal solar | C121: Cdel;sol | D121: sol | E121: =$F$110&"/kWh" -> €/kWh | F121: =INDEX(I121:P121,,_case_factor) -> 0 | G121: onst | I121: 0 | J121: 0 | K121: 0 | L121: 0 | M121: 0 | N121: 0 | O121: 0 | P121: 0 | Q121: Values to be checked
B122: Photovoltaic | C122: Cdel;pv | D122: pv | E122: €/kWh | F122: 0 | G122: onst | I122: 0 | J122: 0 | K122: 0 | L122: 0 | M122: 0 | N122: 0 | O122: 0 | P122: 0 | Q122: Values to be checked
B123: Environment heat | C123: Cdel;env | D123: env | E123: €/kWh | F123: 0 | G123: onst | I123: 0 | J123: 0.617 | K123: 0.617 | L123: 0.617 | M123: 0.617 | N123: 0.617 | O123: 0.617 | P123: 0.617 | Q123: Values to be checked
B124: Grid delivered electricity | C124: Cdel;el | D124: el | E124: €/kWh | F124: 0.42 | G124: dist | I124: 0.42 | J124: 0.4 | K124: 0.4 | L124: 0.4 | M124: 0.4 | N124: 0.4 | O124: 0.4 | P124: 0.4 | Q124: Values to be checked
B125: Grid exported electricity | C125: Cexp;el;grid | D125: el_exp | E125: €/kWh | F125: 0.42 | G125: dist | I125: 0.42 | J125: 0.4 | K125: 0.4 | L125: 0.4 | M125: 0.4 | N125: 0.4 | O125: 0.4 | P125: 0.4 | Q125: Values to be checked
B126: Temp. exported electricity | C126: Cexp;el;tmp | D126: el_tmp | E126: €/kWh | F126: 0.42 | G126: dist | I126: 0.42 | J126: 0.4 | K126: 0.4 | L126: 0.4 | M126: 0.4 | N126: 0.4 | O126: 0.4 | P126: 0.4 | Q126: Values to be checked
B127: Exp to non EPB uses | C127: Cexp;el;nEPus | D127: el_nep | E127: €/kWh | F127: 0.42 | G127: dist | I127: 0.42 | J127: 0.4 | K127: 0.4 | L127: 0.4 | M127: 0.4 | N127: 0.4 | O127: 0.4 | P127: 0.4 | Q127: Values to be checked
B128: Last item

Sheet Method_input
A1: THIS IS A MANDATORY SHEET All input data for the method shall be listed here. In the simplest version, values for data input in column D (both green and blue background) may be inserted manually. Varying data (green background) can be fed from the "input_series" sheet. In this sample data sheet, product data (blue background) is linked to a sample catalogue built in the "Detailed_input" sheet
A4: Selected example case (see sheet "Base_calc"): | C4: =+Base_calc!J15 -> Boiler + thermal solar + cooling
A5: Name | B5: Symbol | C5: Software name | D5: Unit | E5: Row pointer | F5: Col pointer | L5: Values | T5: Qualifier | U5: Range | V5: Origin | W5: Varying | X5: Notes
A6: Operating conditions data | E6: See comment
A7: Time step | E7: Base_calc | F7: <- data sheet | G7: 1 | H7: 2 | I7: 3 | J7: 4 | K7: 5 | L7: 6 | M7: 7 | N7: 8 | O7: 9 | P7: 10 | Q7: 11 | R7: 12 | S7: TOT | X7: <-- Pointer, do not change these values
A8: Electricity input to the generator i for building service X (or combination of services) during calculation step t | B8: EX,gen,i,in,el,t | D8: kWh | U8: 0...∞ | V8: Various | W8: Yes
A9: =+Base_calc!B349 -> Heat pump input | B9: =+Base_calc!C349 -> EHW,HP,in | D9: kWh | E9: =ROW(Base_calc!J349) -> 349 | F9: =COLUMN(Base_calc!J317) -> 10 | G9: =IF($T$9="el",INDIRECT(ADDRESS($E9+1,$F9,,,$E$7)),"") -> 16.66666667 | H9: =IF($T$9="el",INDIRECT(ADDRESS($E9+1,$F9,,,$E$7)),"") -> 16.66666667 | I9: 16.66666667 | J9: 16.66666667 | K9: 16.66666667 | L9: 16.66666667 | M9: 16.66666667 | N9: 16.66666667 | O9: 16.66666667 | P9: 16.66666667 | Q9: 16.66666667 | R9: 16.66666667 | S9: =SUM(G9:R9) -> 200 | T9: =+G10 -> el | U9: 0...∞ | V9: M3-8-2 | W9: Yes | X9: Qualifier: type of use
A10: =+Base_calc!B334 -> Heat pump fuel | D10: n.a | E10: =ROW(Base_calc!J334) -> 334 | F10: =COLUMN(Base_calc!J302) -> 10 | G10: =INDIRECT(ADDRESS($E10,$F10,,,$E$7)) -> el | U10: List | V10: M3-8-2 | W10: No | X10: Qualifier: energy carrier
A11: =+A52 -> Chiller input | B11: =+B52 -> EC,chllr,in | D11: kWh | E11: =ROW(Base_calc!J445) -> 445 | F11: =COLUMN(Base_calc!J319) -> 10 | G11: =IF($T$11="el",INDIRECT(ADDRESS($E11+1,$F11,,,$E$7)),"") -> 0 | H11: =IF($T$11="el",INDIRECT(ADDRESS($E11+1,$F11,,,$E$7)),"") -> 0 | I11: 0 | J11: 0 | K11: 0 | L11: 0 | M11: 0 | N11: 0 | O11: 0 | P11: 0 | Q11: 0 | R11: 0 | S11: =SUM(G11:R11) -> 0 | T11: =+G12 -> el | U11: 0...∞ | V11: M4-8 | W11: Yes | X11: Qualifier: type of use
A12: =+A53 -> Chiller energy carrier | D12: n.a | E12: =ROW(Base_calc!J444) -> 444 | F12: =COLUMN(Base_calc!J304) -> 10 | G12: el | U12: List | V12: M4-8 | W12: No | X12: Qualifier: energy carrier
A13: =+A50 -> Boiler input | B13: =+B50 -> EHW,boil,in | D13: kWh | E13: =ROW(Base_calc!J412) -> 412 | F13: =COLUMN(Base_calc!J321) -> 10 | G13: =IF(G14="el",INDIRECT(ADDRESS($E13+1,$F13,,,$E$7)),"") ->  | H13: =IF(H14="el",INDIRECT(ADDRESS($E13+2,$F13,,,$E$7)),"") ->  | I13: =IF(I14="el",INDIRECT(ADDRESS($E13+3,$F13,,,$E$7)),"") ->  | J13: =IF(J14="el",INDIRECT(ADDRESS($E13+4,$F13,,,$E$7)),"") ->  | K13: =IF(K14="el",INDIRECT(ADDRESS($E13+5,$F13,,,$E$7)),"") ->  | L13: =IF(L14="el",INDIRECT(ADDRESS($E13+6,$F13,,,$E$7)),"") ->  | M13: =IF(M14="el",INDIRECT(ADDRESS($E13+7,$F13,,,$E$7)),"") ->  | N13: =IF(N14="el",INDIRECT(ADDRESS($E13+8,$F13,,,$E$7)),"") ->  | O13: =IF(O14="el",INDIRECT(ADDRESS($E13+9,$F13,,,$E$7)),"") ->  | P13: =IF(P14="el",INDIRECT(ADDRESS($E13+10,$F13,,,$E$7)),"") ->  | Q13: =IF(Q14="el",INDIRECT(ADDRESS($E13+11,$F13,,,$E$7)),"") ->  | R13: =IF(R14="el",INDIRECT(ADDRESS($E13+12,$F13,,,$E$7)),"") ->  | S13: =SUM(G13:R13) -> 0 | T13: =INDIRECT(ADDRESS($E14,$F14,,,$E$7)) -> gas | U13: 0...∞ | V13: M3-8-1 | W13: Yes | X13: Qualifier: type of use
A14: =+A51 -> Boiler fuel | D14: n.a | E14: =ROW(Base_calc!J410) -> 410 | F14: =COLUMN(Base_calc!J306) -> 10 | G14: gas | H14: gas | I14: gas | J14: gas | K14: gas | L14: gas | M14: gas | N14: gas | O14: gas | P14: gas | Q14: gas | R14: gas | U14: List | V14: M3-8-1 | W14: No | X14: Qualifier: energy carrier
A18: Auxiliary energy input to subsystem Y for building service X (or combination of services) during calculation step t | B18: WX;Y;aux;t | D18: kWh | U18: 0...∞ | V18: Various | W18: Yes
A19: =+Base_calc!B105 -> Heating system auxiliaries except generation | B19: =+Base_calc!C106 -> WH,ngen,aux | D19: kWh | E19: =ROW(Base_calc!J106) -> 106 | F19: =COLUMN(Base_calc!J106) -> 10 | G19: =INDIRECT(ADDRESS($E19+1,$F19,,,$E$7)) -> 75 | H19: =INDIRECT(ADDRESS($E19+2,$F19,,,$E$7)) -> 56.25 | I19: =INDIRECT(ADDRESS($E19+3,$F19,,,$E$7)) -> 37.5 | J19: =INDIRECT(ADDRESS($E19+4,$F19,,,$E$7)) -> 18.75 | K19: =INDIRECT(ADDRESS($E19+5,$F19,,,$E$7)) -> 0 | L19: =INDIRECT(ADDRESS($E19+6,$F19,,,$E$7)) -> 0 | M19: =INDIRECT(ADDRESS($E19+7,$F19,,,$E$7)) -> 0 | N19: =INDIRECT(ADDRESS($E19+8,$F19,,,$E$7)) -> 0 | O19: =INDIRECT(ADDRESS($E19+9,$F19,,,$E$7)) -> 0 | P19: =INDIRECT(ADDRESS($E19+10,$F19,,,$E$7)) -> 22.5 | Q19: =INDIRECT(ADDRESS($E19+11,$F19,,,$E$7)) -> 48.75 | R19: =INDIRECT(ADDRESS($E19+12,$F19,,,$E$7)) -> 60 | S19: =SUM(G19:R19) -> 318.75 | T19: el_aux | V19: M3-X | W19: Yes | X19: Qualifier: type of use
A20: =+Base_calc!B132 -> Dhw system auxiliaries except generation | B20: =+Base_calc!C133 -> WW,ngen,aux | D20: kWh | E20: =ROW(Base_calc!J133) -> 133 | F20: =COLUMN(Base_calc!J133) -> 10 | G20: 4 | H20: 4 | I20: 4 | J20: 4 | K20: 4 | L20: 4 | M20: 4 | N20: 4 | O20: 4 | P20: 4 | Q20: 4 | R20: 4 | S20: 48 | T20: el_aux | V20: M8-X | W20: Yes | X20: Qualifier: type of use
A21: =+Base_calc!B159 -> Cooling system auxiliaries except generation | B21: =+Base_calc!C160 -> WC,ngen,aux | D21: kWh | E21: =ROW(Base_calc!J160) -> 160 | F21: =COLUMN(Base_calc!J160) -> 10 | G21: 0 | H21: 0 | I21: 0 | J21: 0 | K21: 1.428571429 | L21: 5.714285714 | M21: 8.571428571 | N21: 7.142857143 | O21: 4.285714286 | P21: 0 | Q21: 0 | R21: 0 | S21: 27.14285714 | T21: el_aux | V21: M4-X | W21: Yes | X21: Qualifier: type of use
A22: =+Base_calc!B213 -> Thermal solar auxiliaries | B22: =+Base_calc!C215 -> WW,sol,aux | D22: kWh | E22: =ROW(Base_calc!J215) -> 215 | F22: =COLUMN(Base_calc!J215) -> 10 | G22: 0.3 | H22: 0.6 | I22: 1.2 | J22: 2.4 | K22: 4.2 | L22: 4.8 | M22: 4.5 | N22: 4.2 | O22: 2.7 | P22: 0.9 | Q22: 0.48 | R22: 0.3 | S22: 26.58 | T22: el_aux | V22: M3-8-3 | W22: Yes | X22: Qualifier: type of use
A23: =+Base_calc!B362 -> Heat pump auxiliaries | B23: =+Base_calc!C363 -> WHW,HP,aux | D23: kWh | E23: =ROW(Base_calc!J363) -> 363 | F23: =COLUMN(Base_calc!J363) -> 10 | G23: 2.5 | H23: 2.5 | I23: 2.5 | J23: 2.5 | K23: 0 | L23: 0 | M23: 0 | N23: 0 | O23: 0.5 | P23: 2.5 | Q23: 2.5 | R23: 2.5 | S23: 18 | T23: el_aux | V23: M3-8-2 | W23: Yes | X23: Qualifier: type of use
A24: =+Base_calc!B425 -> Boiler auxiliary energy | B24: =+Base_calc!C426 -> WHW,boil,aux | D24: kWh | E24: =ROW(Base_calc!J426) -> 426 | F24: =COLUMN(Base_calc!J426) -> 10 | G24: 84.66666667 | H24: 63.5 | I24: 42 | J24: 19.83333333 | K24: 0 | L24: 0 | M24: 0 | N24: 0 | O24: 0 | P24: 25.66666667 | Q24: 55.3 | R24: 68 | S24: 358.9666667 | T24: el_aux | V24: M3-8-1 | W24: Yes | X24: Qualifier: type of use
A25: =+Base_calc!B458 -> Chiller auxiliary energy | B25: =+Base_calc!C458 -> WC,chllr,aux | D25: kWh | E25: =ROW(Base_calc!J459) -> 459 | F25: =COLUMN(Base_calc!J459) -> 10 | G25: 0 | H25: 0 | I25: 0 | J25: 0 | K25: 1.428571429 | L25: 5.714285714 | M25: 8.571428571 | N25: 7.142857143 | O25: 4.285714286 | P25: 0 | Q25: 0 | R25: 0 | S25: 27.14285714 | T25: el_aux | V25: M4-8 | W25: Yes | X25: Qualifier: type of use
A26: Cogenerator auxiiary energy | B26: WHW,chp,aux | D26: kWh | G26: 0 | H26: 0 | I26: 0 | J26: 0 | K26: 0 | L26: 0 | M26: 0 | N26: 0 | O26: 0 | P26: 0 | Q26: 0 | R26: 0 | S26: 0 | T26: el_aux | V26: M3-8-4 | W26: Yes | X26: Qualifier: type of use
A27: =+Base_calc!B485 -> Ventilation electricity use | B27: =+Base_calc!C485 -> EV,el | D27: kWh | E27: =ROW(Base_calc!J485) -> 485 | F27: =COLUMN(Base_calc!J485) -> 10 | G27: 50 | H27: 50 | I27: 50 | J27: 50 | K27: 50 | L27: 50 | M27: 50 | N27: 50 | O27: 50 | P27: 50 | Q27: 50 | R27: 50 | S27: 600 | T27: el_aux | V27: M5-1 | W27: Yes | X27: Qualifier: type of use
A28: =+Base_calc!B498 -> Lighting electricity use | B28: =+Base_calc!C498 -> EL,el | D28: kWh | E28: =ROW(Base_calc!J498) -> 498 | F28: =COLUMN(Base_calc!J498) -> 10 | G28: 20 | H28: 20 | I28: 20 | J28: 20 | K28: 20 | L28: 20 | M28: 20 | N28: 20 | O28: 20 | P28: 20 | Q28: 20 | R28: 20 | S28: 240 | T28: el_aux | V28: M9-1 | W28: Yes | X28: Qualifier: type of use
A29: =+Base_calc!B511 -> appliances if part of EP | B29: =+Base_calc!C511 -> EA,el | D29: kWh | E29: =ROW(Base_calc!J511) -> 511 | F29: =COLUMN(Base_calc!J511) -> 10 | G29: 0 | H29: 0 | I29: 0 | J29: 0 | K29: 0 | L29: 0 | M29: 0 | N29: 0 | O29: 0 | P29: 0 | Q29: 0 | R29: 0 | S29: 0 | T29: el_aux | V29: M2-1 | W29: Yes | X29: Qualifier: type of use
A31: On-site electric energy produced by subsystem j (e.g. combined heat and power, photovoltaic or wind power) during the calculation step | B31: Epr;el,j;t | D31: kWh | U31: 0...∞ | V31: Various | W31: Yes
A32: =+Base_calc!B304 -> Cogenerator electric output | B32: =+Base_calc!C304 -> Eel,pr,CHP | D32: kWh | E32: =ROW(Base_calc!J304) -> 304 | F32: =COLUMN(Base_calc!J304) -> 10 | G32: =INDIRECT(ADDRESS($E32+1,$F32,,,$E$7)) -> 63.63636364 | H32: =INDIRECT(ADDRESS($E32+2,$F32,,,$E$7)) -> 63.63636364 | I32: =INDIRECT(ADDRESS($E32+3,$F32,,,$E$7)) -> 63.63636364 | J32: =INDIRECT(ADDRESS($E32+4,$F32,,,$E$7)) -> 63.63636364 | K32: =INDIRECT(ADDRESS($E32+5,$F32,,,$E$7)) -> 38.18181818 | L32: =INDIRECT(ADDRESS($E32+6,$F32,,,$E$7)) -> 25.45454545 | M32: =INDIRECT(ADDRESS($E32+7,$F32,,,$E$7)) -> 31.81818182 | N32: =INDIRECT(ADDRESS($E32+8,$F32,,,$E$7)) -> 38.18181818 | O32: =INDIRECT(ADDRESS($E32+9,$F32,,,$E$7)) -> 63.63636364 | P32: =INDIRECT(ADDRESS($E32+10,$F32,,,$E$7)) -> 63.63636364 | Q32: =INDIRECT(ADDRESS($E32+11,$F32,,,$E$7)) -> 63.63636364 | R32: =INDIRECT(ADDRESS($E32+12,$F32,,,$E$7)) -> 63.63636364 | S32: =SUM(G32:R32) -> 642.7272727 | T32: el_chp | V32: M3-8-4 | W32: Yes
A33: =+Base_calc!B552 -> PV electric generation | B33: =+Base_calc!C552 -> QPV,out | D33: kWh | E33: =ROW(Base_calc!J552) -> 552 | F33: =COLUMN(Base_calc!J552) -> 10 | G33: =INDIRECT(ADDRESS($E33+1,$F33,,,$E$7)) -> 45 | H33: =INDIRECT(ADDRESS($E33+2,$F33,,,$E$7)) -> 60 | I33: =INDIRECT(ADDRESS($E33+3,$F33,,,$E$7)) -> 150 | J33: =INDIRECT(ADDRESS($E33+4,$F33,,,$E$7)) -> 210 | K33: =INDIRECT(ADDRESS($E33+5,$F33,,,$E$7)) -> 255 | L33: =INDIRECT(ADDRESS($E33+6,$F33,,,$E$7)) -> 285 | M33: =INDIRECT(ADDRESS($E33+7,$F33,,,$E$7)) -> 300 | N33: =INDIRECT(ADDRESS($E33+8,$F33,,,$E$7)) -> 270 | O33: =INDIRECT(ADDRESS($E33+9,$F33,,,$E$7)) -> 240 | P33: =INDIRECT(ADDRESS($E33+10,$F33,,,$E$7)) -> 180 | Q33: =INDIRECT(ADDRESS($E33+11,$F33,,,$E$7)) -> 120 | R33: =INDIRECT(ADDRESS($E33+12,$F33,,,$E$7)) -> 90 | S33: =SUM(G33:R33) -> 2205 | T33: el_pv | V33: M3-8-3 | W33: Yes
A34: Other generation
A36: Electric energy used in the building for non-EPB uses | B36: EnEPus;el;t | D36: kWh | U36: 0...∞ | V36: Various | W36: Yes
A37: =+Base_calc!B524 -> Non EPBD electricity use | B37: =+Base_calc!C524 -> EnEPus,el | D37: kWh | E37: =ROW(Base_calc!J524) -> 524 | F37: =COLUMN(Base_calc!J524) -> 10 | G37: =INDIRECT(ADDRESS($E37+1,$F37,,,$E$7)) -> 0 | H37: =INDIRECT(ADDRESS($E37+2,$F37,,,$E$7)) -> 0 | I37: =INDIRECT(ADDRESS($E37+3,$F37,,,$E$7)) -> 0 | J37: =INDIRECT(ADDRESS($E37+4,$F37,,,$E$7)) -> 0 | K37: =INDIRECT(ADDRESS($E37+5,$F37,,,$E$7)) -> 0 | L37: =INDIRECT(ADDRESS($E37+6,$F37,,,$E$7)) -> 0 | M37: =INDIRECT(ADDRESS($E37+7,$F37,,,$E$7)) -> 0 | N37: =INDIRECT(ADDRESS($E37+8,$F37,,,$E$7)) -> 0 | O37: =INDIRECT(ADDRESS($E37+9,$F37,,,$E$7)) -> 0 | P37: =INDIRECT(ADDRESS($E37+10,$F37,,,$E$7)) -> 0 | Q37: =INDIRECT(ADDRESS($E37+11,$F37,,,$E$7)) -> 0 | R37: =INDIRECT(ADDRESS($E37+12,$F37,,,$E$7)) -> 0 | S37: =SUM(G37:R37) -> 0 | T37: el_nEPB | W37: Yes
A40: Energy carrier cr input to the generator i for building service X during calculation time-step t | B40: EX;gen,i;in;cr;t | D40: kWh | U40: 0...∞ | V40: Various | W40: Yes
A41: Energy carrier to generator i for building service X | B41: GEN_CRX;i | U41: LIST | V41: Various | W41: No
A42: =+Base_calc!B229 -> Solar delivered energy | B42: =+Base_calc!C229 -> Edel,sol,W | D42: kWh | E42: =ROW(Base_calc!J229) -> 229 | F42: =COLUMN(Base_calc!J229) -> 10 | G42: =IF($T42<>"el",INDIRECT(ADDRESS($E42+G$7,$F42,,,$E$7)),0) -> 11.5 | H42: =IF($T42<>"el",INDIRECT(ADDRESS($E42+H$7,$F42,,,$E$7)),0) -> 23 | I42: 46 | J42: 92 | K42: 161 | L42: 184 | M42: 172.5 | N42: 161 | O42: 103.5 | P42: 34.5 | Q42: 18.4 | R42: 11.5 | S42: =SUM(G42:R42) -> 1018.9 | T42: =+G43 -> sol | U42: 0...∞ | V42: M3-8-3 | W42: Yes | X42: Qualifier: energy carrier
A43: Energy carrier to solar | G43: =+T74 -> sol | U43: LIST | W43: No
A44: =+Base_calc!B291 -> Cogenerator input | B44: =+Base_calc!C291 -> EHW,CHP,in | D44: kWh | E44: =ROW(Base_calc!J291) -> 291 | F44: =COLUMN(Base_calc!J291) -> 10 | G44: =IF($T44<>"el",INDIRECT(ADDRESS($E44+G$7,$F44,,,$E$7)),0) -> 181.8181818 | H44: 181.8181818 | I44: 181.8181818 | J44: 181.8181818 | K44: 109.0909091 | L44: 72.72727273 | M44: 90.90909091 | N44: 109.0909091 | O44: 181.8181818 | P44: 181.8181818 | Q44: 181.8181818 | R44: 181.8181818 | S44: =SUM(G44:R44) -> 1836.363636 | T44: =+G45 -> gas | U44: 0...∞ | V44: M3-8-4 | W44: Yes | X44: Qualifier: energy carrier
A45: =+Base_calc!B277 -> Cogenerator fuel | E45: =ROW(Base_calc!J277) -> 277 | F45: =COLUMN(Base_calc!J277) -> 10 | G45: =INDIRECT(ADDRESS($E45,$F45,,,$E$7)) -> gas | U45: LIST | W45: No
A46: =+Base_calc!B349 -> Heat pump input | B46: =+Base_calc!C349 -> EHW,HP,in | D46: kWh | E46: =ROW(Base_calc!J349) -> 349 | F46: =COLUMN(Base_calc!J349) -> 10 | G46: =IF($T46<>"el",INDIRECT(ADDRESS($E46+G$7,$F46,,,$E$7)),0) -> 0 | H46: 0 | I46: 0 | J46: 0 | K46: 0 | L46: 0 | M46: 0 | N46: 0 | O46: 0 | P46: 0 | Q46: 0 | R46: 0 | S46: 0 | T46: =+G47 -> el | U46: 0...∞ | V46: M3-8-2 | W46: Yes | X46: Qualifier: energy carrier
A47: =+Base_calc!B334 -> Heat pump fuel | E47: =ROW(Base_calc!J334) -> 334 | F47: =COLUMN(Base_calc!J334) -> 10 | G47: =INDIRECT(ADDRESS($E47,$F47,,,$E$7)) -> el | W47: No
A48: =+Base_calc!B376 -> Environmental heat | B48: =+Base_calc!C376 -> EHP,env | D48: kWh | E48: =ROW(Base_calc!J376) -> 376 | F48: =COLUMN(Base_calc!J376) -> 10 | G48: =IF($T48<>"el",INDIRECT(ADDRESS($E48+G$7,$F48,,,$E$7)),0) -> 33.33333333 | H48: =IF($T48<>"el",INDIRECT(ADDRESS($E48+H$7,$F48,,,$E$7)),0) -> 33.33333333 | I48: 33.33333333 | J48: 33.33333333 | K48: 0 | L48: 0 | M48: 0 | N48: 0 | O48: 6.666666667 | P48: 33.33333333 | Q48: 33.33333333 | R48: 33.33333333 | S48: =SUM(G48:R48) -> 240 | T48: =+G49 -> env | U48: 0...∞ | V48: M3-8-2 | W48: Yes | X48: Qualifier: energy carrier
A49: Environmetal heat code | G49: =+T76 -> env | W49: No
A50: =+Base_calc!B412 -> Boiler input | B50: =+Base_calc!C412 -> EHW,boil,in | D50: kWh | E50: =ROW(Base_calc!J412) -> 412 | F50: =COLUMN(Base_calc!J412) -> 10 | G50: =IF($T50<>"el",INDIRECT(ADDRESS($E50+G$7,$F50,,,$E$7)),0) -> 2822.222222 | H50: 2116.666667 | I50: 1400 | J50: 661.1111111 | K50: 0 | L50: 0 | M50: 0 | N50: 0 | O50: 0 | P50: 855.5555556 | Q50: 1843.333333 | R50: 2266.666667 | S50: =SUM(G50:R50) -> 11965.55556 | T50: =+G51 -> gas | U50: 0...∞ | V50: M3-8-1 | W50: Yes | X50: Qualifier: energy carrier
A51: =+Base_calc!B410 -> Boiler fuel | E51: =ROW(Base_calc!J410) -> 410 | F51: =COLUMN(Base_calc!J410) -> 10 | G51: =INDIRECT(ADDRESS($E51,$F51,,,$E$7)) -> gas | W51: No
A52: =+Base_calc!B445 -> Chiller input | B52: =+Base_calc!C445 -> EC,chllr,in | D52: kWh | E52: =ROW(Base_calc!J445) -> 445 | F52: =COLUMN(Base_calc!J445) -> 10 | G52: =IF($T52<>"el",INDIRECT(ADDRESS($E52+G$7,$F52,,,$E$7)),0) -> 0 | H52: =IF($T52<>"el",INDIRECT(ADDRESS($E52+H$7,$F52,,,$E$7)),0) -> 0 | I52: 0 | J52: 0 | K52: 0 | L52: 0 | M52: 0 | N52: 0 | O52: 0 | P52: 0 | Q52: 0 | R52: 0 | S52: =SUM(G52:R52) -> 0 | T52: =+G53 -> el | U52: 0...∞ | V52: M4-8-1 | W52: Yes | X52: Qualifier: energy carrier
A53: =+Base_calc!B444 -> Chiller energy carrier | E53: =ROW(Base_calc!J444) -> 444 | F53: =COLUMN(Base_calc!J444) -> 10 | G53: el | W53: No
A54: Delivered PV energy | B54: Epv,del | D54: kWh | E54: =ROW(Base_calc!B565) -> 565 | F54: 10 | G54: =IF($T54<>"el",INDIRECT(ADDRESS($E54+G$7,$F54,,,$E$7)),0) -> 45 | H54: =IF($T54<>"el",INDIRECT(ADDRESS($E54+H$7,$F54,,,$E$7)),0) -> 60 | I54: 150 | J54: 210 | K54: 255 | L54: 285 | M54: 300 | N54: 270 | O54: 240 | P54: 180 | Q54: 120 | R54: 90 | S54: =SUM(G54:R54) -> 2205 | T54: =+G55 -> pv | U54: 0...∞ | V54: M4-8-2 | W54: Yes
A55: PV carrier code | G55: =+T75 -> pv | W55: No
A57: Temporary exported and redelivered energy evaluation factor | B57: krdel | D57: - | G57: =+'National options'!C26 -> 0 | U57: 0…1 | V57: Local | W57: NO | X57: See "National options" sheet
A58: Exported energy evaluation factor | B58: kexp | D58: - | G58: =+'National options'!C27 -> 1 | U58: 0…1 | V58: Local | W58: NO | X58: See "National options" sheet
A60: WEIGHTING FACTORS
A61: Weighting factor for delivered energy carrier cr | B61: fwe;del;cr;t | D61: various | U61: 0...∞ | V61: Local | W61: Yes/No | X61: See "ConvFactors" sheet
A62: Weighting factor for temporary exported electricity | B62: fwe;exp;el;tmp;t | D62: various | U62: 0...∞ | V62: Local | W62: Yes/No
A63: Weighting factor for grid exported electricity | B63: fwe;exp;el;grid;t | D63: various | U63: 0...∞ | V63: Local | W63: Yes/No
A64: Weighting factor for exported electricity for non-EPB uses in the building | B64: fwe;exp;el;used;nEPus,t | D64: various | U64: 0...∞ | V64: Local | W64: Yes/No
A65: Non renewable primary energy
A66: =+ConvFactors!B32 -> gas | D66: - | G66: =+ConvFactors!F32 -> 1.1 | H66: =+G66 -> 1.1 | I66: =+H66 -> 1.1 | J66: 1.1 | K66: 1.1 | L66: 1.1 | M66: 1.1 | N66: 1.1 | O66: 1.1 | P66: 1.1 | Q66: 1.1 | R66: 1.1 | T66: =+ConvFactors!D32 -> gas | V66: Local | X66: Assumed constant but may be varying
A67: =+ConvFactors!B33 -> oil | D67: - | G67: =+ConvFactors!F33 -> 1.1 | H67: =+G67 -> 1.1 | I67: 1.1 | J67: 1.1 | K67: 1.1 | L67: 1.1 | M67: 1.1 | N67: 1.1 | O67: 1.1 | P67: 1.1 | Q67: 1.1 | R67: 1.1 | T67: =+ConvFactors!D33 -> oil | V67: Local
A68: =+ConvFactors!B34 -> coal | D68: - | G68: =+ConvFactors!F34 -> 1.1 | H68: =+G68 -> 1.1 | I68: 1.1 | J68: 1.1 | K68: 1.1 | L68: 1.1 | M68: 1.1 | N68: 1.1 | O68: 1.1 | P68: 1.1 | Q68: 1.1 | R68: 1.1 | T68: =+ConvFactors!D34 -> coal | V68: Local
A69: =+ConvFactors!B35 -> wood | D69: - | G69: =+ConvFactors!F35 -> 0.2 | H69: =+G69 -> 0.2 | I69: 0.2 | J69: 0.2 | K69: 0.2 | L69: 0.2 | M69: 0.2 | N69: 0.2 | O69: 0.2 | P69: 0.2 | Q69: 0.2 | R69: 0.2 | T69: =+ConvFactors!D35 -> wood | V69: Local
A70: =+ConvFactors!B36 -> biomass | D70: - | G70: =+ConvFactors!F36 -> 0.2 | H70: =+G70 -> 0.2 | I70: 0.2 | J70: 0.2 | K70: 0.2 | L70: 0.2 | M70: 0.2 | N70: 0.2 | O70: 0.2 | P70: 0.2 | Q70: 0.2 | R70: 0.2 | T70: =+ConvFactors!D36 -> biomass | V70: Local
A71: =+ConvFactors!B37 -> custom | D71: - | G71: =+ConvFactors!F37 -> 1 | H71: =+G71 -> 1 | I71: 1 | J71: 1 | K71: 1 | L71: 1 | M71: 1 | N71: 1 | O71: 1 | P71: 1 | Q71: 1 | R71: 1 | T71: =+ConvFactors!D37 -> custom | V71: Local
A72: =+ConvFactors!B38 -> District heating | D72: - | G72: =+ConvFactors!F38 -> 1.3 | H72: =+G72 -> 1.3 | I72: 1.3 | J72: 1.3 | K72: 1.3 | L72: 1.3 | M72: 1.3 | N72: 1.3 | O72: 1.3 | P72: 1.3 | Q72: 1.3 | R72: 1.3 | T72: =+ConvFactors!D38 -> dh | V72: Local
A73: =+ConvFactors!B39 -> District cooling | D73: - | G73: =+ConvFactors!F39 -> 1.3 | H73: =+G73 -> 1.3 | I73: 1.3 | J73: 1.3 | K73: 1.3 | L73: 1.3 | M73: 1.3 | N73: 1.3 | O73: 1.3 | P73: 1.3 | Q73: 1.3 | R73: 1.3 | T73: =+ConvFactors!D39 -> dc | V73: Local
A74: =+ConvFactors!B41 -> Thermal solar | D74: - | G74: =+ConvFactors!F41 -> 0 | H74: =+G74 -> 0 | I74: 0 | J74: 0 | K74: 0 | L74: 0 | M74: 0 | N74: 0 | O74: 0 | P74: 0 | Q74: 0 | R74: 0 | T74: =+ConvFactors!D41 -> sol | V74: Local
A75: =+ConvFactors!B42 -> Photovoltaic | D75: - | G75: =+ConvFactors!F42 -> 0 | H75: =+G75 -> 0 | I75: 0 | J75: 0 | K75: 0 | L75: 0 | M75: 0 | N75: 0 | O75: 0 | P75: 0 | Q75: 0 | R75: 0 | T75: =+ConvFactors!D42 -> pv | V75: Local
A76: =+ConvFactors!B43 -> Environment heat | D76: - | G76: =+ConvFactors!F43 -> 0 | H76: =+G76 -> 0 | I76: 0 | J76: 0 | K76: 0 | L76: 0 | M76: 0 | N76: 0 | O76: 0 | P76: 0 | Q76: 0 | R76: 0 | T76: =+ConvFactors!D43 -> env | V76: Local
A77: =+ConvFactors!B44 -> Grid delivered electricity | D77: - | G77: =+ConvFactors!F44 -> 2.3 | H77: =+G77 -> 2.3 | I77: 2.3 | J77: 2.3 | K77: 2.3 | L77: 2.3 | M77: 2.3 | N77: 2.3 | O77: 2.3 | P77: 2.3 | Q77: 2.3 | R77: 2.3 | T77: =+ConvFactors!D44 -> el | V77: Local
A78: =+ConvFactors!B45 -> Grid exported electricity | D78: - | G78: =+ConvFactors!F45 -> 2.3 | H78: =+G78 -> 2.3 | I78: 2.3 | J78: 2.3 | K78: 2.3 | L78: 2.3 | M78: 2.3 | N78: 2.3 | O78: 2.3 | P78: 2.3 | Q78: 2.3 | R78: 2.3 | T78: =+ConvFactors!D45 -> el_exp | V78: Local
A79: =+ConvFactors!B46 -> Temp. exported electricity | D79: - | G79: =+ConvFactors!F46 -> 2.3 | H79: =+G79 -> 2.3 | I79: 2.3 | J79: 2.3 | K79: 2.3 | L79: 2.3 | M79: 2.3 | N79: 2.3 | O79: 2.3 | P79: 2.3 | Q79: 2.3 | R79: 2.3 | T79: =+ConvFactors!D46 -> el_tmp | V79: Local
A80: =+ConvFactors!B47 -> Exp to non EPB uses | D80: - | G80: =+ConvFactors!F47 -> 2.3 | H80: =+G80 -> 2.3 | I80: 2.3 | J80: 2.3 | K80: 2.3 | L80: 2.3 | M80: 2.3 | N80: 2.3 | O80: 2.3 | P80: 2.3 | Q80: 2.3 | R80: 2.3 | T80: =+ConvFactors!D47 -> el_nep | V80: Local
A81: Renewable primary energy
A82: =+A66 -> gas | D82: - | G82: =+ConvFactors!F51 -> 0 | H82: =+G82 -> 0 | I82: 0 | J82: 0 | K82: 0 | L82: 0 | M82: 0 | N82: 0 | O82: 0 | P82: 0 | Q82: 0 | R82: 0 | T82: =+T66 -> gas | V82: Local
A83: =+A67 -> oil | D83: - | G83: =+ConvFactors!F52 -> 0 | H83: =+G83 -> 0 | I83: 0 | J83: 0 | K83: 0 | L83: 0 | M83: 0 | N83: 0 | O83: 0 | P83: 0 | Q83: 0 | R83: 0 | T83: =+T67 -> oil | V83: Local
A84: coal | D84: - | G84: =+ConvFactors!F53 -> 0 | H84: =+G84 -> 0 | I84: 0 | J84: 0 | K84: 0 | L84: 0 | M84: 0 | N84: 0 | O84: 0 | P84: 0 | Q84: 0 | R84: 0 | T84: coal | V84: Local
A85: wood | D85: - | G85: =+ConvFactors!F54 -> 1 | H85: =+G85 -> 1 | I85: 1 | J85: 1 | K85: 1 | L85: 1 | M85: 1 | N85: 1 | O85: 1 | P85: 1 | Q85: 1 | R85: 1 | T85: wood | V85: Local
A86: biomass | D86: - | G86: =+ConvFactors!F55 -> 1 | H86: =+G86 -> 1 | I86: 1 | J86: 1 | K86: 1 | L86: 1 | M86: 1 | N86: 1 | O86: 1 | P86: 1 | Q86: 1 | R86: 1 | T86: biomass | V86: Local
A87: custom | D87: - | G87: =+ConvFactors!F56 -> 0 | H87: =+G87 -> 0 | I87: 0 | J87: 0 | K87: 0 | L87: 0 | M87: 0 | N87: 0 | O87: 0 | P87: 0 | Q87: 0 | R87: 0 | T87: custom | V87: Local
A88: District heating | D88: - | G88: =+ConvFactors!F57 -> 0 | H88: =+G88 -> 0 | I88: 0 | J88: 0 | K88: 0 | L88: 0 | M88: 0 | N88: 0 | O88: 0 | P88: 0 | Q88: 0 | R88: 0 | T88: dh | V88: Local
A89: District cooling | D89: - | G89: =+ConvFactors!F58 -> 0 | H89: =+G89 -> 0 | I89: 0 | J89: 0 | K89: 0 | L89: 0 | M89: 0 | N89: 0 | O89: 0 | P89: 0 | Q89: 0 | R89: 0 | T89: dc | V89: Local
A90: Thermal solar | D90: - | G90: =+ConvFactors!F60 -> 1 | H90: =+G90 -> 1 | I90: 1 | J90: 1 | K90: 1 | L90: 1 | M90: 1 | N90: 1 | O90: 1 | P90: 1 | Q90: 1 | R90: 1 | T90: sol | V90: Local
A91: Photovoltaic | D91: - | G91: =+ConvFactors!F61 -> 1 | H91: =+G91 -> 1 | I91: 1 | J91: 1 | K91: 1 | L91: 1 | M91: 1 | N91: 1 | O91: 1 | P91: 1 | Q91: 1 | R91: 1 | T91: pv | V91: Local
A92: Environment heat | D92: - | G92: =+ConvFactors!F62 -> 1 | H92: =+G92 -> 1 | I92: 1 | J92: 1 | K92: 1 | L92: 1 | M92: 1 | N92: 1 | O92: 1 | P92: 1 | Q92: 1 | R92: 1 | T92: env | V92: Local
A93: Grid delivered electricity | D93: - | G93: =+ConvFactors!F63 -> 0.2 | H93: =+G93 -> 0.2 | I93: 0.2 | J93: 0.2 | K93: 0.2 | L93: 0.2 | M93: 0.2 | N93: 0.2 | O93: 0.2 | P93: 0.2 | Q93: 0.2 | R93: 0.2 | T93: el | V93: Local
A94: Grid exported electricity | D94: - | G94: =+ConvFactors!F64 -> 0.2 | H94: =+G94 -> 0.2 | I94: 0.2 | J94: 0.2 | K94: 0.2 | L94: 0.2 | M94: 0.2 | N94: 0.2 | O94: 0.2 | P94: 0.2 | Q94: 0.2 | R94: 0.2 | T94: el_exp | V94: Local
A95: Temp. exported electricity | D95: - | G95: =+ConvFactors!F65 -> 0.2 | H95: =+G95 -> 0.2 | I95: 0.2 | J95: 0.2 | K95: 0.2 | L95: 0.2 | M95: 0.2 | N95: 0.2 | O95: 0.2 | P95: 0.2 | Q95: 0.2 | R95: 0.2 | T95: el_tmp | V95: Local
A96: Exp to non EPB uses | D96: - | G96: =+ConvFactors!F66 -> 0.2 | H96: =+G96 -> 0.2 | I96: 0.2 | J96: 0.2 | K96: 0.2 | L96: 0.2 | M96: 0.2 | N96: 0.2 | O96: 0.2 | P96: 0.2 | Q96: 0.2 | R96: 0.2 | T96: el_nep | V96: Local
A97: CO2 emission
A98: =+A82 -> gas | D98: - | G98: =+ConvFactors!F91 -> 0.22 | H98: =+G98 -> 0.22 | I98: 0.22 | J98: 0.22 | K98: 0.22 | L98: 0.22 | M98: 0.22 | N98: 0.22 | O98: 0.22 | P98: 0.22 | Q98: 0.22 | R98: 0.22 | T98: =+T82 -> gas | V98: Local
A99: =+A83 -> oil | D99: - | G99: =+ConvFactors!F92 -> 0.29 | H99: =+G99 -> 0.29 | I99: 0.29 | J99: 0.29 | K99: 0.29 | L99: 0.29 | M99: 0.29 | N99: 0.29 | O99: 0.29 | P99: 0.29 | Q99: 0.29 | R99: 0.29 | T99: =+T83 -> oil | V99: Local
A100: coal | D100: - | G100: =+ConvFactors!F93 -> 0.36 | H100: =+G100 -> 0.36 | I100: 0.36 | J100: 0.36 | K100: 0.36 | L100: 0.36 | M100: 0.36 | N100: 0.36 | O100: 0.36 | P100: 0.36 | Q100: 0.36 | R100: 0.36 | T100: coal | V100: Local
A101: wood | D101: - | G101: =+ConvFactors!F94 -> 0.012 | H101: =+G101 -> 0.012 | I101: 0.012 | J101: 0.012 | K101: 0.012 | L101: 0.012 | M101: 0.012 | N101: 0.012 | O101: 0.012 | P101: 0.012 | Q101: 0.012 | R101: 0.012 | T101: wood | V101: Local
A102: biomass | D102: - | G102: =+ConvFactors!F95 -> 0.012 | H102: =+G102 -> 0.012 | I102: 0.012 | J102: 0.012 | K102: 0.012 | L102: 0.012 | M102: 0.012 | N102: 0.012 | O102: 0.012 | P102: 0.012 | Q102: 0.012 | R102: 0.012 | T102: biomass | V102: Local
A103: custom | D103: - | G103: =+ConvFactors!F96 -> 0.3 | H103: =+G103 -> 0.3 | I103: 0.3 | J103: 0.3 | K103: 0.3 | L103: 0.3 | M103: 0.3 | N103: 0.3 | O103: 0.3 | P103: 0.3 | Q103: 0.3 | R103: 0.3 | T103: custom | V103: Local
A104: District heating | D104: - | G104: =+ConvFactors!F97 -> 0.26 | H104: =+G104 -> 0.26 | I104: 0.26 | J104: 0.26 | K104: 0.26 | L104: 0.26 | M104: 0.26 | N104: 0.26 | O104: 0.26 | P104: 0.26 | Q104: 0.26 | R104: 0.26 | T104: dh | V104: Local
A105: District cooling | D105: - | G105: =+ConvFactors!F98 -> 0.26 | H105: =+G105 -> 0.26 | I105: 0.26 | J105: 0.26 | K105: 0.26 | L105: 0.26 | M105: 0.26 | N105: 0.26 | O105: 0.26 | P105: 0.26 | Q105: 0.26 | R105: 0.26 | T105: dc | V105: Local
A106: Thermal solar | D106: - | G106: =+ConvFactors!F100 -> 0 | H106: =+G106 -> 0 | I106: 0 | J106: 0 | K106: 0 | L106: 0 | M106: 0 | N106: 0 | O106: 0 | P106: 0 | Q106: 0 | R106: 0 | T106: sol | V106: Local
A107: Photovoltaic | D107: - | G107: =+ConvFactors!F101 -> 0 | H107: =+G107 -> 0 | I107: 0 | J107: 0 | K107: 0 | L107: 0 | M107: 0 | N107: 0 | O107: 0 | P107: 0 | Q107: 0 | R107: 0 | T107: pv | V107: Local
A108: Environment heat | D108: - | G108: =+ConvFactors!F102 -> 0 | H108: =+G108 -> 0 | I108: 0 | J108: 0 | K108: 0 | L108: 0 | M108: 0 | N108: 0 | O108: 0 | P108: 0 | Q108: 0 | R108: 0 | T108: env | V108: Local
A109: Grid delivered electricity | D109: - | G109: =+ConvFactors!F103 -> 0.42 | H109: =+G109 -> 0.42 | I109: 0.42 | J109: 0.42 | K109: 0.42 | L109: 0.42 | M109: 0.42 | N109: 0.42 | O109: 0.42 | P109: 0.42 | Q109: 0.42 | R109: 0.42 | T109: el | V109: Local
A110: Grid exported electricity | D110: - | G110: =+ConvFactors!F104 -> 0.42 | H110: =+G110 -> 0.42 | I110: 0.42 | J110: 0.42 | K110: 0.42 | L110: 0.42 | M110: 0.42 | N110: 0.42 | O110: 0.42 | P110: 0.42 | Q110: 0.42 | R110: 0.42 | T110: el_exp | V110: Local
A111: Temp. exported electricity | D111: - | G111: =+ConvFactors!F105 -> 0.42 | H111: =+G111 -> 0.42 | I111: 0.42 | J111: 0.42 | K111: 0.42 | L111: 0.42 | M111: 0.42 | N111: 0.42 | O111: 0.42 | P111: 0.42 | Q111: 0.42 | R111: 0.42 | T111: el_tmp | V111: Local
A112: Exp to non EPB uses | D112: - | G112: =+ConvFactors!F106 -> 0.42 | H112: =+G112 -> 0.42 | I112: 0.42 | J112: 0.42 | K112: 0.42 | L112: 0.42 | M112: 0.42 | N112: 0.42 | O112: 0.42 | P112: 0.42 | Q112: 0.42 | R112: 0.42 | T112: el_nep | V112: Local
A114: Matching factor | X114: Use sample matching factor or not
A115: Take into account matching factor? | T115: =IF('National options'!C38=1,"YES","NO") -> NO | V115: Local | X115: See "National options" sheet
A117: Product data
A119: System design data
A120: Process design
A122: Cogenerator electric energy allocation factor | B122: aw | E122: =ROW(Base_calc!J317) -> 317 | F122: =COLUMN(Base_calc!J327) -> 10 | G122: 0.65 | H122: 0.65 | I122: 0.65 | J122: 0.65 | K122: 0.65 | L122: 0.65 | M122: 0.65 | N122: 0.65 | O122: 0.65 | P122: 0.65 | Q122: 0.65 | R122: 0.65 | U122: -1…1 | V122: M3-8-4 | W122: Yes | X122: Simulated input
A124: Piority level 1 | B124: EL_EXP_PRIO_LEVEL_1 | T124: =+'National options'!C11 -> el_pv | V124: Local | X124: See "National options" sheet
A125: Piority level 2 | B125: EL_EXP_PRIO_LEVEL_2 | T125: =+'National options'!C12 -> el_wind | V125: Local
A126: Piority level 3 | B126: EL_EXP_PRIO_LEVEL_3 | T126: =+'National options'!C13 -> el_chp | V126: Local
A129: Control type data
A131: Constants and physical data

Sheet Method_calculation
A1: THIS IS A MANDATORY SHEET One time step calculation shall be described here. For each calculation step (= 1 row) data for the formula in column D shall be taken from the "Method_input" sheet or previous calculation steps. Include in the column "Formula ref" its number in the standard text. The example is based on EN 15316-4-1:2008 Copy and paste a copy of the equation into column "Formula" Use the column note for information on the calculation
A3: Description | B3: Symbol | C3: Software name | D3: Unit | J3: VALUES | S3: Formula ref | T3: Formula | U3: Notes
A4: Time step | E4: 1 | F4: 2 | G4: 3 | H4: 4 | I4: 5 | J4: 6 | K4: 7 | L4: 8 | M4: 9 | N4: 10 | O4: 11 | P4: 12 | Q4: TOT | R4: Qualifier
A7: ELECTRICITY USE AND PRODUCTION SUMMARY
A8: Listing all uses by type e.g. "el" (main), "el_aux", "el_Joule", "el_nEPus", etc | U8: This distinction ay be used to select which uses may be covered by on-site electricity production. This feature is not yet implemented in this spreadsheet
A9: Main input to generators | B9: EEPus;el;gen;t | D9: kWh | E9: =SUMIF(Method_input!$T$9:$T$30,Method_calculation!$R9,Method_input!G$9:G$30) -> 16.66666667 | F9: =SUMIF(Method_input!$T$9:$T$30,Method_calculation!$R9,Method_input!H$9:H$30) -> 16.66666667 | G9: =SUMIF(Method_input!$T$9:$T$30,Method_calculation!$R9,Method_input!I$9:I$30) -> 16.66666667 | H9: =SUMIF(Method_input!$T$9:$T$30,Method_calculation!$R9,Method_input!J$9:J$30) -> 16.66666667 | I9: =SUMIF(Method_input!$T$9:$T$30,Method_calculation!$R9,Method_input!K$9:K$30) -> 16.66666667 | J9: =SUMIF(Method_input!$T$9:$T$30,Method_calculation!$R9,Method_input!L$9:L$30) -> 16.66666667 | K9: =SUMIF(Method_input!$T$9:$T$30,Method_calculation!$R9,Method_input!M$9:M$30) -> 16.66666667 | L9: =SUMIF(Method_input!$T$9:$T$30,Method_calculation!$R9,Method_input!N$9:N$30) -> 16.66666667 | M9: =SUMIF(Method_input!$T$9:$T$30,Method_calculation!$R9,Method_input!O$9:O$30) -> 16.66666667 | N9: =SUMIF(Method_input!$T$9:$T$30,Method_calculation!$R9,Method_input!P$9:P$30) -> 16.66666667 | O9: =SUMIF(Method_input!$T$9:$T$30,Method_calculation!$R9,Method_input!Q$9:Q$30) -> 16.66666667 | P9: =SUMIF(Method_input!$T$9:$T$30,Method_calculation!$R9,Method_input!R$9:R$30) -> 16.66666667 | Q9: =SUM(E9:P9) -> 200 | R9: el | S9: INFO | U9: Main electric input to generators
A10: Auxiliary energy use | B10: EEPus;el;aux;t | D10: kWh | E10: =SUMIF(Method_input!$T$9:$T$30,Method_calculation!$R10,Method_input!G$9:G$30) -> 236.4666667 | F10: =SUMIF(Method_input!$T$9:$T$30,Method_calculation!$R10,Method_input!H$9:H$30) -> 196.85 | G10: =SUMIF(Method_input!$T$9:$T$30,Method_calculation!$R10,Method_input!I$9:I$30) -> 157.2 | H10: =SUMIF(Method_input!$T$9:$T$30,Method_calculation!$R10,Method_input!J$9:J$30) -> 117.4833333 | I10: =SUMIF(Method_input!$T$9:$T$30,Method_calculation!$R10,Method_input!K$9:K$30) -> 81.05714286 | J10: =SUMIF(Method_input!$T$9:$T$30,Method_calculation!$R10,Method_input!L$9:L$30) -> 90.22857143 | K10: =SUMIF(Method_input!$T$9:$T$30,Method_calculation!$R10,Method_input!M$9:M$30) -> 95.64285714 | L10: =SUMIF(Method_input!$T$9:$T$30,Method_calculation!$R10,Method_input!N$9:N$30) -> 92.48571429 | M10: =SUMIF(Method_input!$T$9:$T$30,Method_calculation!$R10,Method_input!O$9:O$30) -> 85.77142857 | N10: =SUMIF(Method_input!$T$9:$T$30,Method_calculation!$R10,Method_input!P$9:P$30) -> 125.5666667 | O10: =SUMIF(Method_input!$T$9:$T$30,Method_calculation!$R10,Method_input!Q$9:Q$30) -> 181.03 | P10: =SUMIF(Method_input!$T$9:$T$30,Method_calculation!$R10,Method_input!R$9:R$30) -> 204.8 | Q10: 1664.582381 | R10: el_aux | S10: INFO | U10: Auxiliary enrgy
A11: Joule effect use | B11: EEPus;el;joule,t | D11: kWh | E11: =SUMIF(Method_input!$T$9:$T$30,Method_calculation!$R11,Method_input!G$9:G$30) -> 0 | F11: =SUMIF(Method_input!$T$9:$T$30,Method_calculation!$R11,Method_input!H$9:H$30) -> 0 | G11: =SUMIF(Method_input!$T$9:$T$30,Method_calculation!$R11,Method_input!I$9:I$30) -> 0 | H11: =SUMIF(Method_input!$T$9:$T$30,Method_calculation!$R11,Method_input!J$9:J$30) -> 0 | I11: =SUMIF(Method_input!$T$9:$T$30,Method_calculation!$R11,Method_input!K$9:K$30) -> 0 | J11: =SUMIF(Method_input!$T$9:$T$30,Method_calculation!$R11,Method_input!L$9:L$30) -> 0 | K11: =SUMIF(Method_input!$T$9:$T$30,Method_calculation!$R11,Method_input!M$9:M$30) -> 0 | L11: =SUMIF(Method_input!$T$9:$T$30,Method_calculation!$R11,Method_input!N$9:N$30) -> 0 | M11: =SUMIF(Method_input!$T$9:$T$30,Method_calculation!$R11,Method_input!O$9:O$30) -> 0 | N11: =SUMIF(Method_input!$T$9:$T$30,Method_calculation!$R11,Method_input!P$9:P$30) -> 0 | O11: =SUMIF(Method_input!$T$9:$T$30,Method_calculation!$R11,Method_input!Q$9:Q$30) -> 0 | P11: =SUMIF(Method_input!$T$9:$T$30,Method_calculation!$R11,Method_input!R$9:R$30) -> 0 | Q11: 0 | R11: el_joule | S11: INFO | U11: Electricity used to produce direct heat
A12: Total electricity EPB uses | B12: EEPus;el;t | D12: kWh | E12: =SUM(Method_input!G9:G17)+SUM(Method_input!G19:G30) -> 253.1333333 | F12: =SUM(Method_input!H9:H17)+SUM(Method_input!H19:H30) -> 213.5166667 | G12: =SUM(Method_input!I9:I17)+SUM(Method_input!I19:I30) -> 173.8666667 | H12: =SUM(Method_input!J9:J17)+SUM(Method_input!J19:J30) -> 134.15 | I12: =SUM(Method_input!K9:K17)+SUM(Method_input!K19:K30) -> 97.72380952 | J12: =SUM(Method_input!L9:L17)+SUM(Method_input!L19:L30) -> 106.8952381 | K12: =SUM(Method_input!M9:M17)+SUM(Method_input!M19:M30) -> 112.3095238 | L12: =SUM(Method_input!N9:N17)+SUM(Method_input!N19:N30) -> 109.152381 | M12: =SUM(Method_input!O9:O17)+SUM(Method_input!O19:O30) -> 102.4380952 | N12: =SUM(Method_input!P9:P17)+SUM(Method_input!P19:P30) -> 142.2333333 | O12: =SUM(Method_input!Q9:Q17)+SUM(Method_input!Q19:Q30) -> 197.6966667 | P12: =SUM(Method_input!R9:R17)+SUM(Method_input!R19:R30) -> 221.4666667 | Q12: =SUM(E12:P12) -> 1864.582381 | S12: (31) | U12: Current equation. No distinction between electric energy uses
A13: Total non EPB uses | B13: EnEPus;el;t | D13: kWh | E13: =+Method_input!G37 -> 0 | F13: =+Method_input!H37 -> 0 | G13: =+Method_input!I37 -> 0 | H13: =+Method_input!J37 -> 0 | I13: =+Method_input!K37 -> 0 | J13: =+Method_input!L37 -> 0 | K13: =+Method_input!M37 -> 0 | L13: =+Method_input!N37 -> 0 | M13: =+Method_input!O37 -> 0 | N13: =+Method_input!P37 -> 0 | O13: =+Method_input!Q37 -> 0 | P13: =+Method_input!R37 -> 0 | Q13: =SUM(E13:P13) -> 0 | R13: el_nEPB | U13: Direct input from EN 13790
A14: List all productions by type e.g. el_PV, el_wind, el_CHP, el_CHPren, etc, | U14: This distinction is used for priority. It can be used also in connection with electricity uses.
A15: PV production | B15: Epr;el;pv;t | D15: kWh | E15: =SUMIF(Method_input!$T$32:$T$34,Method_calculation!$R15,Method_input!G$32:G$34) -> 45 | F15: =SUMIF(Method_input!$T$32:$T$34,Method_calculation!$R15,Method_input!H$32:H$34) -> 60 | G15: =SUMIF(Method_input!$T$32:$T$34,Method_calculation!$R15,Method_input!I$32:I$34) -> 150 | H15: =SUMIF(Method_input!$T$32:$T$34,Method_calculation!$R15,Method_input!J$32:J$34) -> 210 | I15: =SUMIF(Method_input!$T$32:$T$34,Method_calculation!$R15,Method_input!K$32:K$34) -> 255 | J15: =SUMIF(Method_input!$T$32:$T$34,Method_calculation!$R15,Method_input!L$32:L$34) -> 285 | K15: =SUMIF(Method_input!$T$32:$T$34,Method_calculation!$R15,Method_input!M$32:M$34) -> 300 | L15: =SUMIF(Method_input!$T$32:$T$34,Method_calculation!$R15,Method_input!N$32:N$34) -> 270 | M15: =SUMIF(Method_input!$T$32:$T$34,Method_calculation!$R15,Method_input!O$32:O$34) -> 240 | N15: =SUMIF(Method_input!$T$32:$T$34,Method_calculation!$R15,Method_input!P$32:P$34) -> 180 | O15: =SUMIF(Method_input!$T$32:$T$34,Method_calculation!$R15,Method_input!Q$32:Q$34) -> 120 | P15: =SUMIF(Method_input!$T$32:$T$34,Method_calculation!$R15,Method_input!R$32:R$34) -> 90 | Q15: =SUM(E15:P15) -> 2205 | R15: el_pv | S15: INFO | U15: Only PV production
A16: Cogenerated electricity | B16: Epr;el;chp;t | D16: kWh | E16: =SUMIF(Method_input!$T$32:$T$34,Method_calculation!$R16,Method_input!G$32:G$34) -> 63.63636364 | F16: =SUMIF(Method_input!$T$32:$T$34,Method_calculation!$R16,Method_input!H$32:H$34) -> 63.63636364 | G16: =SUMIF(Method_input!$T$32:$T$34,Method_calculation!$R16,Method_input!I$32:I$34) -> 63.63636364 | H16: =SUMIF(Method_input!$T$32:$T$34,Method_calculation!$R16,Method_input!J$32:J$34) -> 63.63636364 | I16: =SUMIF(Method_input!$T$32:$T$34,Method_calculation!$R16,Method_input!K$32:K$34) -> 38.18181818 | J16: =SUMIF(Method_input!$T$32:$T$34,Method_calculation!$R16,Method_input!L$32:L$34) -> 25.45454545 | K16: =SUMIF(Method_input!$T$32:$T$34,Method_calculation!$R16,Method_input!M$32:M$34) -> 31.81818182 | L16: =SUMIF(Method_input!$T$32:$T$34,Method_calculation!$R16,Method_input!N$32:N$34) -> 38.18181818 | M16: =SUMIF(Method_input!$T$32:$T$34,Method_calculation!$R16,Method_input!O$32:O$34) -> 63.63636364 | N16: =SUMIF(Method_input!$T$32:$T$34,Method_calculation!$R16,Method_input!P$32:P$34) -> 63.63636364 | O16: =SUMIF(Method_input!$T$32:$T$34,Method_calculation!$R16,Method_input!Q$32:Q$34) -> 63.63636364 | P16: =SUMIF(Method_input!$T$32:$T$34,Method_calculation!$R16,Method_input!R$32:R$34) -> 63.63636364 | Q16: 642.7272727 | R16: el_chp | S16: INFO | U16: Only CHP production
A17: Wind electricity | B17: Epr;el;wind;t | D17: kWh | R17: el_wind | S17: INFO | U17: For further development
A18: Produced electricity | B18: Epr;el;t | D18: kWh | E18: =SUM(E15:E17) -> 108.6363636 | F18: =SUM(F15:F17) -> 123.6363636 | G18: 213.6363636 | H18: 273.6363636 | I18: 293.1818182 | J18: 310.4545455 | K18: 331.8181818 | L18: 308.1818182 | M18: 303.6363636 | N18: 243.6363636 | O18: 183.6363636 | P18: 153.6363636 | Q18: =SUM(E18:P18) -> 2847.727273 | R18: el_prod | S18: (32) | U18: Current equation. No distinction between production types
A22: CALCULATE ELECTRICITY BALANCE COMPONENTS
A23: Ratio produced/used, t | D23: - | E23: =IF(E12>0,E18/E12,0) -> 0.4291665669 | F23: 0.5790478353 | G23: 1.228736754 | H23: 2.03977908 | I23: 3.000106316 | J23: 2.90428789 | K23: 2.954497273 | L23: 2.823409031 | M23: 2.964096149 | N23: 1.712934359 | O23: 0.9288794128 | P23: 0.6937222922 | S23: INFO
A24: Matching factor, t | B24: fmatch | D24: - | E24: =IF(E23>0,(E23+1/E23-1)/(E23+1/E23),1) -> 0.637584541 | F24: =IF(F23>0,(F23+1/F23-1)/(F23+1/F23),1) -> 0.5663525812 | G24: 0.5104232663 | H24: 0.6047474964 | I24: 0.7000085051 | J24: 0.6921756946 | K24: 0.6963222497 | L24: 0.6852961683 | M24: 0.697104359 | N24: 0.564597964 | O24: 0.5013576583 | P24: 0.5316644709 | S24: (34)
A25: take into account matching factor? | E25: =+Method_input!T115 -> NO
A26: EPB produced and used electricity | B26: Epr;el;used;EPus;t | D26: kWh | E26: =IF($E$25="YES",E24*MIN(E12,E18),MIN(E12,E18)) -> 108.6363636 | F26: 123.6363636 | G26: 173.8666667 | H26: 134.15 | I26: 97.72380952 | J26: 106.8952381 | K26: 112.3095238 | L26: 109.152381 | M26: 102.4380952 | N26: 142.2333333 | O26: 183.6363636 | P26: 153.6363636 | Q26: =SUM(E26:P26) -> 1548.314502 | S26: (33)
A27: Exported electricity | B27: Eexp;el;t | D27: kWh | E27: =+E18-E26 -> 0 | F27: 0 | G27: 39.76969697 | H27: 139.4863636 | I27: 195.4580087 | J27: 203.5593074 | K27: 219.508658 | L27: 199.0294372 | M27: 201.1982684 | N27: 101.4030303 | O27: 0 | P27: 0 | Q27: =SUM(E27:P27) -> 1299.412771 | S27: (35)
A28: Exported for non EPB uses | B28: Epr;el;used;nEPus;t | D28: kWh | E28: =MIN(E27,E13) -> 0 | F28: 0 | G28: 0 | H28: 0 | I28: 0 | J28: 0 | K28: 0 | L28: 0 | M28: 0 | N28: 0 | O28: 0 | P28: 0 | Q28: =SUM(E28:P28) -> 0 | S28: (36)
A29: Exported non used, t | B29: Eexp;el;nused;t | D29: kWh | E29: =+E27-E28 -> 0 | F29: =+F27-F28 -> 0 | G29: 39.76969697 | H29: 139.4863636 | I29: 195.4580087 | J29: 203.5593074 | K29: 219.508658 | L29: 199.0294372 | M29: 201.1982684 | N29: 101.4030303 | O29: 0 | P29: 0 | S29: (37)
A30: Exported non used, year | B30: Eexp;el;nused;an | D30: kWh | Q30: =SUM(E29:P29) -> 1299.412771 | S30: (38)
A31: Delivered, t | B31: Edel;el;t | D31: kWh | E31: =+E12-E26 -> 144.4969697 | F31: 89.88030303 | G31: 0 | H31: 0 | I31: 0 | J31: 0 | K31: 0 | L31: 0 | M31: 0 | N31: 0 | O31: 14.06030303 | P31: 67.83030303 | S31: (39)
A32: Delivered, year | B32: Edel;el;an | D32: kWh | Q32: =SUM(E31:P31) -> 316.2678788 | S32: (40)
A33: Yearly temporary exp | B33: Eexp;el;tmp;an | D33: kWh | Q33: =MIN(Q32,Q30) -> 316.2678788 | S33: (41)
A34: Temporary exported | B34: Eexp;el;tmp ;t | D34: kWh | E34: =IF($Q$30<>0,$Q$33*E29/$Q$30,0) -> 0 | F34: =IF($Q$30<>0,$Q$33*F29/$Q$30,0) -> 0 | G34: 9.679662987 | H34: 33.94999445 | I34: 47.57309701 | J34: 49.54489582 | K34: 53.42685497 | L34: 48.44235747 | M34: 48.97023564 | N34: 24.68078044 | O34: 0 | P34: 0 | Q34: =SUM(E34:P34) -> 316.2678788 | S34: (42)
A35: Redelivered | B35: Edel;el;rdel;t | D35: kWh | E35: =IF($Q$32<>0,$Q$33*E31/$Q$32,0) -> 144.4969697 | F35: =IF($Q$32<>0,$Q$33*F31/$Q$32,0) -> 89.88030303 | G35: 0 | H35: 0 | I35: 0 | J35: 0 | K35: 0 | L35: 0 | M35: 0 | N35: 0 | O35: 14.06030303 | P35: 67.83030303 | Q35: =SUM(E35:P35) -> 316.2678788 | S35: (43)
A36: Grid exported, t | B36: Eexp;el;grid;t | D36: kWh | E36: =+E29-E34 -> 0 | F36: =+F29-F34 -> 0 | G36: 30.09003398 | H36: 105.5363692 | I36: 147.8849116 | J36: 154.0144115 | K36: 166.081803 | L36: 150.5870798 | M36: 152.2280328 | N36: 76.72224986 | O36: 0 | P36: 0 | Q36: =SUM(E36:P36) -> 983.1448918 | S36: (44)
A37: Grid exported, year | B37: Eexp;el;grid;an | D37: kWh | Q37: =+Q30-Q33 -> 983.1448918 | S37: (45)
A38: Grid delivered, t | B38: Edel;el;grid;t | D38: kWh | E38: =+E31-E35 -> 0 | F38: =+F31-F35 -> 0 | G38: 0 | H38: 0 | I38: 0 | J38: 0 | K38: 0 | L38: 0 | M38: 0 | N38: 0 | O38: 0 | P38: 0 | Q38: =SUM(E38:P38) -> 0 | S38: (46)
A39: Grid delivered, year | B39: Edel;el;grid;an | D39: kWh | Q39: =+Q32-Q35 -> 0 | S39: (47)
A40: Redelivered energy factor | B40: krdel | E40: =+Method_input!G57 -> 0 | U40: Copied input value for clarity
A41: Corrected del. energy | B41: Edel;el;t;corr | D41: kWh | E41: =+E31-$E$40*E35 -> 144.4969697 | F41: =+F31-$E$40*F35 -> 89.88030303 | G41: 0 | H41: 0 | I41: 0 | J41: 0 | K41: 0 | L41: 0 | M41: 0 | N41: 0 | O41: 14.06030303 | P41: 67.83030303 | Q41: =SUM(E41:P41) -> 316.2678788 | S41: (48) | U41: This is the actual electricity delivered from the grid, following application of the krdel factor
A42: Grid exp. temp. exp. energy | B42: Eexp;el;tmp;t;corr | D42: kWh | E42: =+E34*(1-$E$40) -> 0 | F42: 0 | G42: 9.679662987 | H42: 33.94999445 | I42: 47.57309701 | J42: 49.54489582 | K42: 53.42685497 | L42: 48.44235747 | M42: 48.97023564 | N42: 24.68078044 | O42: 0 | P42: 0 | Q42: =SUM(E42:P42) -> 316.2678788 | S42: (49)
A43: Corrected exported energy | D43: kWh | E43: =+E36-E42 -> 0 | F43: 0 | G43: 20.41037099 | H43: 71.58637474 | I43: 100.3118146 | J43: 104.4695157 | K43: 112.6549481 | L43: 102.1447223 | M43: 103.2577971 | N43: 52.04146941 | O43: 0 | P43: 0 | Q43: =SUM(E43:P43) -> 666.877013 | U43: This is not calculated in the standard procedure. It is the actual grid exported energy, after application of krdel factor. IT HAS TO BE CALCULATED INDEED TO DETERMINE THE ELECTRICITY EXPORTED AT EACH TIME STEP.
A44: Calculate weighted delivered energy | S44: (50) + (51) | U44: In the following equations are used twice: - once for renewable primary energy evaluation - once for non renewable primary energy evaluation The entire calculation shall be performed independently for each weighting criteria. Values of krdel and kexp can also be different. For the evaluation according to all types of primary energy, values of krdel and kexp shall be the same
A45: Weighting factors for delivered energy | D45: You have selected: Constant (time independent) EP factors | T45: Just a reminder of your selection
A46: Produced electricity | B46: fPren;pr;el,t | E46: 1 | F46: 1 | G46: 1 | H46: 1 | I46: 1 | J46: 1 | K46: 1 | L46: 1 | M46: 1 | N46: 1 | O46: 1 | P46: 1 | T46: Copied input value for clarity | U46: This shall be calculated depending on production type and any priority.
A47: Produced electricity | B47: fPnren;pr;el,t | E47: 0 | F47: 0 | G47: 0 | H47: 0 | I47: 0 | J47: 0 | K47: 0 | L47: 0 | M47: 0 | N47: 0 | O47: 0 | P47: 0 | T47: Copied input value for clarity
A49: =+Method_input!A42 -> Solar delivered energy | B49: =+Method_input!B42 -> Edel,sol,W | D49: kWh | E49: =+Method_input!G42 -> 11.5 | F49: =+Method_input!H42 -> 23 | G49: =+Method_input!I42 -> 46 | H49: =+Method_input!J42 -> 92 | I49: =+Method_input!K42 -> 161 | J49: =+Method_input!L42 -> 184 | K49: =+Method_input!M42 -> 172.5 | L49: =+Method_input!N42 -> 161 | M49: =+Method_input!O42 -> 103.5 | N49: =+Method_input!P42 -> 34.5 | O49: =+Method_input!Q42 -> 18.4 | P49: =+Method_input!R42 -> 11.5 | Q49: =SUM(E49:P49) -> 1018.9 | R49: =+Method_input!G43 -> sol | S49: INPUT | U49: Copied input value for clarity
A50: PV deliverd energy | B50: Edel;PV | D50: kWh | E50: =+Method_input!G54 -> 45 | F50: =+Method_input!H54 -> 60 | G50: =+Method_input!I54 -> 150 | H50: =+Method_input!J54 -> 210 | I50: =+Method_input!K54 -> 255 | J50: =+Method_input!L54 -> 285 | K50: =+Method_input!M54 -> 300 | L50: =+Method_input!N54 -> 270 | M50: =+Method_input!O54 -> 240 | N50: =+Method_input!P54 -> 180 | O50: =+Method_input!Q54 -> 120 | P50: =+Method_input!R54 -> 90 | Q50: 2205 | R50: =+Method_input!T54 -> pv | S50: INPUT | U50: Copied input value for clarity
A51: =+Method_input!A44 -> Cogenerator input | B51: =+Method_input!B44 -> EHW,CHP,in | D51: kWh | E51: =+Method_input!G44 -> 181.8181818 | F51: =+Method_input!H44 -> 181.8181818 | G51: =+Method_input!I44 -> 181.8181818 | H51: =+Method_input!J44 -> 181.8181818 | I51: =+Method_input!K44 -> 109.0909091 | J51: =+Method_input!L44 -> 72.72727273 | K51: =+Method_input!M44 -> 90.90909091 | L51: =+Method_input!N44 -> 109.0909091 | M51: =+Method_input!O44 -> 181.8181818 | N51: =+Method_input!P44 -> 181.8181818 | O51: =+Method_input!Q44 -> 181.8181818 | P51: =+Method_input!R44 -> 181.8181818 | Q51: 1836.363636 | R51: =+Method_input!G45 -> gas | S51: INPUT | U51: Copied input value for clarity
A52: =+Method_input!A46 -> Heat pump input | B52: =+Method_input!B46 -> EHW,HP,in | D52: kWh | E52: =+Method_input!G46 -> 0 | F52: =+Method_input!H46 -> 0 | G52: =+Method_input!I46 -> 0 | H52: =+Method_input!J46 -> 0 | I52: =+Method_input!K46 -> 0 | J52: =+Method_input!L46 -> 0 | K52: =+Method_input!M46 -> 0 | L52: =+Method_input!N46 -> 0 | M52: =+Method_input!O46 -> 0 | N52: =+Method_input!P46 -> 0 | O52: =+Method_input!Q46 -> 0 | P52: =+Method_input!R46 -> 0 | Q52: 0 | R52: =+Method_input!G47 -> el | S52: INPUT | U52: Copied input value for clarity
A53: =+Method_input!A48 -> Environmental heat | B53: =+Method_input!B48 -> EHP,env | D53: kWh | E53: =+Method_input!G48 -> 33.33333333 | F53: =+Method_input!H48 -> 33.33333333 | G53: =+Method_input!I48 -> 33.33333333 | H53: =+Method_input!J48 -> 33.33333333 | I53: =+Method_input!K48 -> 0 | J53: =+Method_input!L48 -> 0 | K53: =+Method_input!M48 -> 0 | L53: =+Method_input!N48 -> 0 | M53: =+Method_input!O48 -> 6.666666667 | N53: =+Method_input!P48 -> 33.33333333 | O53: =+Method_input!Q48 -> 33.33333333 | P53: =+Method_input!R48 -> 33.33333333 | Q53: 240 | R53: =+Method_input!G49 -> env | S53: INPUT | U53: Copied input value for clarity
A54: =+Method_input!A50 -> Boiler input | B54: =+Method_input!B50 -> EHW,boil,in | D54: kWh | E54: =+Method_input!G50 -> 2822.222222 | F54: =+Method_input!H50 -> 2116.666667 | G54: =+Method_input!I50 -> 1400 | H54: =+Method_input!J50 -> 661.1111111 | I54: =+Method_input!K50 -> 0 | J54: =+Method_input!L50 -> 0 | K54: =+Method_input!M50 -> 0 | L54: =+Method_input!N50 -> 0 | M54: =+Method_input!O50 -> 0 | N54: =+Method_input!P50 -> 855.5555556 | O54: =+Method_input!Q50 -> 1843.333333 | P54: =+Method_input!R50 -> 2266.666667 | Q54: 11965.55556 | R54: =+Method_input!G51 -> gas | S54: INPUT | U54: Copied input value for clarity
A55: =+Method_input!A52 -> Chiller input | B55: =+Method_input!B52 -> EC,chllr,in | D55: kWh | E55: =+Method_input!G52 -> 0 | F55: =+Method_input!H52 -> 0 | G55: =+Method_input!I52 -> 0 | H55: =+Method_input!J52 -> 0 | I55: =+Method_input!K52 -> 0 | J55: =+Method_input!L52 -> 0 | K55: =+Method_input!M52 -> 0 | L55: =+Method_input!N52 -> 0 | M55: =+Method_input!O52 -> 0 | N55: =+Method_input!P52 -> 0 | O55: =+Method_input!Q52 -> 0 | P55: =+Method_input!R52 -> 0 | Q55: 0 | R55: =+Method_input!G53 -> el | S55: INPUT | U55: Copied input value for clarity
A57: Gas | B57: Edel;gas | D57: kWh | E57: =SUMIF($R$49:$R$55,$R57,E$49:E$55) -> 3004.040404 | F57: 2298.484848 | G57: 1581.818182 | H57: 842.9292929 | I57: 109.0909091 | J57: 72.72727273 | K57: 90.90909091 | L57: 109.0909091 | M57: 181.8181818 | N57: 1037.373737 | O57: 2025.151515 | P57: 2448.484848 | Q57: =SUM(E57:P57) -> 13801.91919 | R57: =+Method_input!T66 -> gas | S57: (51) | U57: Sum generation inputs with this carrier
A58: Conversion factor, nren | B58: fPnren,del;gas | E58: =INDEX(Method_input!G$66:G$80,MATCH($R58,Method_input!$T$66:$T$80,0)) -> 1.1 | F58: =INDEX(Method_input!H$66:H$80,MATCH($R58,Method_input!$T$66:$T$80,0)) -> 1.1 | G58: =INDEX(Method_input!I$66:I$80,MATCH($R58,Method_input!$T$66:$T$80,0)) -> 1.1 | H58: =INDEX(Method_input!J$66:J$80,MATCH($R58,Method_input!$T$66:$T$80,0)) -> 1.1 | I58: =INDEX(Method_input!K$66:K$80,MATCH($R58,Method_input!$T$66:$T$80,0)) -> 1.1 | J58: =INDEX(Method_input!L$66:L$80,MATCH($R58,Method_input!$T$66:$T$80,0)) -> 1.1 | K58: =INDEX(Method_input!M$66:M$80,MATCH($R58,Method_input!$T$66:$T$80,0)) -> 1.1 | L58: =INDEX(Method_input!N$66:N$80,MATCH($R58,Method_input!$T$66:$T$80,0)) -> 1.1 | M58: =INDEX(Method_input!O$66:O$80,MATCH($R58,Method_input!$T$66:$T$80,0)) -> 1.1 | N58: =INDEX(Method_input!P$66:P$80,MATCH($R58,Method_input!$T$66:$T$80,0)) -> 1.1 | O58: =INDEX(Method_input!Q$66:Q$80,MATCH($R58,Method_input!$T$66:$T$80,0)) -> 1.1 | P58: =INDEX(Method_input!R$66:R$80,MATCH($R58,Method_input!$T$66:$T$80,0)) -> 1.1 | R58: =+R57 -> gas | S58: INPUT | U58: Copy of weighting factor (input data)
A59: Conversion factor, ren | B59: fPren,del;gas | E59: =INDEX(Method_input!G$82:G$96,MATCH($R59,Method_input!$T$82:$T$96,0)) -> 0 | F59: =INDEX(Method_input!H$82:H$96,MATCH($R59,Method_input!$T$82:$T$96,0)) -> 0 | G59: =INDEX(Method_input!I$82:I$96,MATCH($R59,Method_input!$T$82:$T$96,0)) -> 0 | H59: =INDEX(Method_input!J$82:J$96,MATCH($R59,Method_input!$T$82:$T$96,0)) -> 0 | I59: =INDEX(Method_input!K$82:K$96,MATCH($R59,Method_input!$T$82:$T$96,0)) -> 0 | J59: =INDEX(Method_input!L$82:L$96,MATCH($R59,Method_input!$T$82:$T$96,0)) -> 0 | K59: =INDEX(Method_input!M$82:M$96,MATCH($R59,Method_input!$T$82:$T$96,0)) -> 0 | L59: =INDEX(Method_input!N$82:N$96,MATCH($R59,Method_input!$T$82:$T$96,0)) -> 0 | M59: =INDEX(Method_input!O$82:O$96,MATCH($R59,Method_input!$T$82:$T$96,0)) -> 0 | N59: =INDEX(Method_input!P$82:P$96,MATCH($R59,Method_input!$T$82:$T$96,0)) -> 0 | O59: =INDEX(Method_input!Q$82:Q$96,MATCH($R59,Method_input!$T$82:$T$96,0)) -> 0 | P59: =INDEX(Method_input!R$82:R$96,MATCH($R59,Method_input!$T$82:$T$96,0)) -> 0 | R59: =+R58 -> gas | S59: INPUT | U59: Copy of weighting factor (input data)
A60: Primary energy, nren | B60: EPnren;del;gas | D60: kWh | E60: =+E57*E58 -> 3304.444444 | F60: =+F57*F58 -> 2528.333333 | G60: 1740 | H60: 927.2222222 | I60: 120 | J60: 80 | K60: 100 | L60: 120 | M60: 200 | N60: 1141.111111 | O60: 2227.666667 | P60: 2693.333333 | Q60: =SUM(E60:P60) -> 15182.11111 | R60: EP_nren | S60: (50) (part) | U60: Calculate weighted delivered energy (nren)
A61: Primary energy, ren | B61: EPren;del;gas | D61: kWh | E61: =+E57*E59 -> 0 | F61: =+F57*F59 -> 0 | G61: 0 | H61: 0 | I61: 0 | J61: 0 | K61: 0 | L61: 0 | M61: 0 | N61: 0 | O61: 0 | P61: 0 | Q61: 0 | R61: EP_ren | U61: Calculate weighted delivered energy (ren)
A63: Oil | B63: Edel;oil | D63: kWh | E63: =SUMIF($R$49:$R$55,$R63,E$49:E$55) -> 0 | F63: 0 | G63: 0 | H63: 0 | I63: 0 | J63: 0 | K63: 0 | L63: 0 | M63: 0 | N63: 0 | O63: 0 | P63: 0 | Q63: =SUM(E63:P63) -> 0 | R63: =+Method_input!T67 -> oil | S63: (51) | U63: Sum generation inputs with this carrier
A64: Conversion factor, nren | B64: fPnren,del;oil | E64: =INDEX(Method_input!G$66:G$80,MATCH($R64,Method_input!$T$66:$T$80,0)) -> 1.1 | F64: =INDEX(Method_input!H$66:H$80,MATCH($R64,Method_input!$T$66:$T$80,0)) -> 1.1 | G64: =INDEX(Method_input!I$66:I$80,MATCH($R64,Method_input!$T$66:$T$80,0)) -> 1.1 | H64: =INDEX(Method_input!J$66:J$80,MATCH($R64,Method_input!$T$66:$T$80,0)) -> 1.1 | I64: =INDEX(Method_input!K$66:K$80,MATCH($R64,Method_input!$T$66:$T$80,0)) -> 1.1 | J64: =INDEX(Method_input!L$66:L$80,MATCH($R64,Method_input!$T$66:$T$80,0)) -> 1.1 | K64: =INDEX(Method_input!M$66:M$80,MATCH($R64,Method_input!$T$66:$T$80,0)) -> 1.1 | L64: =INDEX(Method_input!N$66:N$80,MATCH($R64,Method_input!$T$66:$T$80,0)) -> 1.1 | M64: =INDEX(Method_input!O$66:O$80,MATCH($R64,Method_input!$T$66:$T$80,0)) -> 1.1 | N64: =INDEX(Method_input!P$66:P$80,MATCH($R64,Method_input!$T$66:$T$80,0)) -> 1.1 | O64: =INDEX(Method_input!Q$66:Q$80,MATCH($R64,Method_input!$T$66:$T$80,0)) -> 1.1 | P64: =INDEX(Method_input!R$66:R$80,MATCH($R64,Method_input!$T$66:$T$80,0)) -> 1.1 | R64: =+R63 -> oil | S64: INPUT | U64: Copy of weighting factor (input data)
A65: Conversion factor, ren | B65: fPren,del;oil | E65: =INDEX(Method_input!G$82:G$96,MATCH($R65,Method_input!$T$82:$T$96,0)) -> 0 | F65: =INDEX(Method_input!H$82:H$96,MATCH($R65,Method_input!$T$82:$T$96,0)) -> 0 | G65: =INDEX(Method_input!I$82:I$96,MATCH($R65,Method_input!$T$82:$T$96,0)) -> 0 | H65: =INDEX(Method_input!J$82:J$96,MATCH($R65,Method_input!$T$82:$T$96,0)) -> 0 | I65: =INDEX(Method_input!K$82:K$96,MATCH($R65,Method_input!$T$82:$T$96,0)) -> 0 | J65: =INDEX(Method_input!L$82:L$96,MATCH($R65,Method_input!$T$82:$T$96,0)) -> 0 | K65: =INDEX(Method_input!M$82:M$96,MATCH($R65,Method_input!$T$82:$T$96,0)) -> 0 | L65: =INDEX(Method_input!N$82:N$96,MATCH($R65,Method_input!$T$82:$T$96,0)) -> 0 | M65: =INDEX(Method_input!O$82:O$96,MATCH($R65,Method_input!$T$82:$T$96,0)) -> 0 | N65: =INDEX(Method_input!P$82:P$96,MATCH($R65,Method_input!$T$82:$T$96,0)) -> 0 | O65: =INDEX(Method_input!Q$82:Q$96,MATCH($R65,Method_input!$T$82:$T$96,0)) -> 0 | P65: =INDEX(Method_input!R$82:R$96,MATCH($R65,Method_input!$T$82:$T$96,0)) -> 0 | R65: =+R64 -> oil | S65: INPUT | U65: Copy of weighting factor (input data)
A66: Primary energy, nren | B66: EPnren;del;oil | D66: kWh | E66: =+E63*E64 -> 0 | F66: =+F63*F64 -> 0 | G66: 0 | H66: 0 | I66: 0 | J66: 0 | K66: 0 | L66: 0 | M66: 0 | N66: 0 | O66: 0 | P66: 0 | Q66: =SUM(E66:P66) -> 0 | R66: EP_nren | S66: (50) (part) | U66: Calculate weighted delivered energy (nren)
A67: Primary energy, ren | B67: EPren;del;oil | D67: kWh | E67: =+E63*E65 -> 0 | F67: =+F63*F65 -> 0 | G67: 0 | H67: 0 | I67: 0 | J67: 0 | K67: 0 | L67: 0 | M67: 0 | N67: 0 | O67: 0 | P67: 0 | Q67: 0 | R67: EP_ren | U67: Calculate weighted delivered energy (ren)
A69: =+Method_input!A68 -> coal | B69: Edel;cr,j | D69: kWh | E69: =SUMIF($R$49:$R$55,$R69,E$49:E$55) -> 0 | F69: 0 | G69: 0 | H69: 0 | I69: 0 | J69: 0 | K69: 0 | L69: 0 | M69: 0 | N69: 0 | O69: 0 | P69: 0 | Q69: =SUM(E69:P69) -> 0 | R69: =+Method_input!T68 -> coal | S69: (51) | U69: Sum generation inputs with this carrier
A70: Conversion factor, nren | B70: fPnren,del;cr,j | E70: =INDEX(Method_input!G$66:G$80,MATCH($R70,Method_input!$T$66:$T$80,0)) -> 1.1 | F70: =INDEX(Method_input!H$66:H$80,MATCH($R70,Method_input!$T$66:$T$80,0)) -> 1.1 | G70: =INDEX(Method_input!I$66:I$80,MATCH($R70,Method_input!$T$66:$T$80,0)) -> 1.1 | H70: =INDEX(Method_input!J$66:J$80,MATCH($R70,Method_input!$T$66:$T$80,0)) -> 1.1 | I70: =INDEX(Method_input!K$66:K$80,MATCH($R70,Method_input!$T$66:$T$80,0)) -> 1.1 | J70: =INDEX(Method_input!L$66:L$80,MATCH($R70,Method_input!$T$66:$T$80,0)) -> 1.1 | K70: =INDEX(Method_input!M$66:M$80,MATCH($R70,Method_input!$T$66:$T$80,0)) -> 1.1 | L70: =INDEX(Method_input!N$66:N$80,MATCH($R70,Method_input!$T$66:$T$80,0)) -> 1.1 | M70: =INDEX(Method_input!O$66:O$80,MATCH($R70,Method_input!$T$66:$T$80,0)) -> 1.1 | N70: =INDEX(Method_input!P$66:P$80,MATCH($R70,Method_input!$T$66:$T$80,0)) -> 1.1 | O70: =INDEX(Method_input!Q$66:Q$80,MATCH($R70,Method_input!$T$66:$T$80,0)) -> 1.1 | P70: =INDEX(Method_input!R$66:R$80,MATCH($R70,Method_input!$T$66:$T$80,0)) -> 1.1 | R70: =+R69 -> coal | S70: INPUT | U70: Copy of weighting factor (input data)
A71: Conversion factor, ren | B71: fPren,del;cr,j | E71: =INDEX(Method_input!G$82:G$96,MATCH($R71,Method_input!$T$82:$T$96,0)) -> 0 | F71: =INDEX(Method_input!H$82:H$96,MATCH($R71,Method_input!$T$82:$T$96,0)) -> 0 | G71: =INDEX(Method_input!I$82:I$96,MATCH($R71,Method_input!$T$82:$T$96,0)) -> 0 | H71: =INDEX(Method_input!J$82:J$96,MATCH($R71,Method_input!$T$82:$T$96,0)) -> 0 | I71: =INDEX(Method_input!K$82:K$96,MATCH($R71,Method_input!$T$82:$T$96,0)) -> 0 | J71: =INDEX(Method_input!L$82:L$96,MATCH($R71,Method_input!$T$82:$T$96,0)) -> 0 | K71: =INDEX(Method_input!M$82:M$96,MATCH($R71,Method_input!$T$82:$T$96,0)) -> 0 | L71: =INDEX(Method_input!N$82:N$96,MATCH($R71,Method_input!$T$82:$T$96,0)) -> 0 | M71: =INDEX(Method_input!O$82:O$96,MATCH($R71,Method_input!$T$82:$T$96,0)) -> 0 | N71: =INDEX(Method_input!P$82:P$96,MATCH($R71,Method_input!$T$82:$T$96,0)) -> 0 | O71: =INDEX(Method_input!Q$82:Q$96,MATCH($R71,Method_input!$T$82:$T$96,0)) -> 0 | P71: =INDEX(Method_input!R$82:R$96,MATCH($R71,Method_input!$T$82:$T$96,0)) -> 0 | R71: =+R70 -> coal | S71: INPUT | U71: Copy of weighting factor (input data)
A72: Primary energy, nren | B72: EPnren;del;cr,j | D72: kWh | E72: =+E69*E70 -> 0 | F72: =+F69*F70 -> 0 | G72: 0 | H72: 0 | I72: 0 | J72: 0 | K72: 0 | L72: 0 | M72: 0 | N72: 0 | O72: 0 | P72: 0 | Q72: =SUM(E72:P72) -> 0 | R72: EP_nren | S72: (50) (part) | U72: Calculate weighted delivered energy (nren)
A73: Primary energy, ren | B73: EPren;del;cr,j | D73: kWh | E73: =+E69*E71 -> 0 | F73: =+F69*F71 -> 0 | G73: 0 | H73: 0 | I73: 0 | J73: 0 | K73: 0 | L73: 0 | M73: 0 | N73: 0 | O73: 0 | P73: 0 | Q73: 0 | R73: EP_ren | U73: Calculate weighted delivered energy (ren)
A75: =+Method_input!A69 -> wood | B75: Edel;cr,j | D75: kWh | E75: =SUMIF($R$49:$R$55,$R75,E$49:E$55) -> 0 | F75: 0 | G75: 0 | H75: 0 | I75: 0 | J75: 0 | K75: 0 | L75: 0 | M75: 0 | N75: 0 | O75: 0 | P75: 0 | Q75: =SUM(E75:P75) -> 0 | R75: =+Method_input!T69 -> wood | S75: (51) | U75: Sum generation inputs with this carrier
A76: Conversion factor, nren | B76: fPnren,del;cr,j | E76: =INDEX(Method_input!G$66:G$80,MATCH($R76,Method_input!$T$66:$T$80,0)) -> 0.2 | F76: =INDEX(Method_input!H$66:H$80,MATCH($R76,Method_input!$T$66:$T$80,0)) -> 0.2 | G76: =INDEX(Method_input!I$66:I$80,MATCH($R76,Method_input!$T$66:$T$80,0)) -> 0.2 | H76: =INDEX(Method_input!J$66:J$80,MATCH($R76,Method_input!$T$66:$T$80,0)) -> 0.2 | I76: =INDEX(Method_input!K$66:K$80,MATCH($R76,Method_input!$T$66:$T$80,0)) -> 0.2 | J76: =INDEX(Method_input!L$66:L$80,MATCH($R76,Method_input!$T$66:$T$80,0)) -> 0.2 | K76: =INDEX(Method_input!M$66:M$80,MATCH($R76,Method_input!$T$66:$T$80,0)) -> 0.2 | L76: =INDEX(Method_input!N$66:N$80,MATCH($R76,Method_input!$T$66:$T$80,0)) -> 0.2 | M76: =INDEX(Method_input!O$66:O$80,MATCH($R76,Method_input!$T$66:$T$80,0)) -> 0.2 | N76: =INDEX(Method_input!P$66:P$80,MATCH($R76,Method_input!$T$66:$T$80,0)) -> 0.2 | O76: =INDEX(Method_input!Q$66:Q$80,MATCH($R76,Method_input!$T$66:$T$80,0)) -> 0.2 | P76: =INDEX(Method_input!R$66:R$80,MATCH($R76,Method_input!$T$66:$T$80,0)) -> 0.2 | R76: =+R75 -> wood | S76: INPUT | U76: Copy of weighting factor (input data)
A77: Conversion factor, ren | B77: fPren,del;cr,j | E77: =INDEX(Method_input!G$82:G$96,MATCH($R77,Method_input!$T$82:$T$96,0)) -> 1 | F77: =INDEX(Method_input!H$82:H$96,MATCH($R77,Method_input!$T$82:$T$96,0)) -> 1 | G77: =INDEX(Method_input!I$82:I$96,MATCH($R77,Method_input!$T$82:$T$96,0)) -> 1 | H77: =INDEX(Method_input!J$82:J$96,MATCH($R77,Method_input!$T$82:$T$96,0)) -> 1 | I77: =INDEX(Method_input!K$82:K$96,MATCH($R77,Method_input!$T$82:$T$96,0)) -> 1 | J77: =INDEX(Method_input!L$82:L$96,MATCH($R77,Method_input!$T$82:$T$96,0)) -> 1 | K77: =INDEX(Method_input!M$82:M$96,MATCH($R77,Method_input!$T$82:$T$96,0)) -> 1 | L77: =INDEX(Method_input!N$82:N$96,MATCH($R77,Method_input!$T$82:$T$96,0)) -> 1 | M77: =INDEX(Method_input!O$82:O$96,MATCH($R77,Method_input!$T$82:$T$96,0)) -> 1 | N77: =INDEX(Method_input!P$82:P$96,MATCH($R77,Method_input!$T$82:$T$96,0)) -> 1 | O77: =INDEX(Method_input!Q$82:Q$96,MATCH($R77,Method_input!$T$82:$T$96,0)) -> 1 | P77: =INDEX(Method_input!R$82:R$96,MATCH($R77,Method_input!$T$82:$T$96,0)) -> 1 | R77: =+R76 -> wood | S77: INPUT | U77: Copy of weighting factor (input data)
A78: Primary energy, nren | B78: EPnren;del;cr,j | D78: kWh | E78: =+E75*E76 -> 0 | F78: =+F75*F76 -> 0 | G78: 0 | H78: 0 | I78: 0 | J78: 0 | K78: 0 | L78: 0 | M78: 0 | N78: 0 | O78: 0 | P78: 0 | Q78: =SUM(E78:P78) -> 0 | R78: EP_nren | S78: (50) (part) | U78: Calculate weighted delivered energy (nren)
A79: Primary energy, ren | B79: EPren;del;cr,j | D79: kWh | E79: =+E75*E77 -> 0 | F79: =+F75*F77 -> 0 | G79: 0 | H79: 0 | I79: 0 | J79: 0 | K79: 0 | L79: 0 | M79: 0 | N79: 0 | O79: 0 | P79: 0 | Q79: 0 | R79: EP_ren | U79: Calculate weighted delivered energy (ren)
A81: =+Method_input!A70 -> biomass | B81: Edel;cr,j | D81: kWh | E81: =SUMIF($R$49:$R$55,$R81,E$49:E$55) -> 0 | F81: 0 | G81: 0 | H81: 0 | I81: 0 | J81: 0 | K81: 0 | L81: 0 | M81: 0 | N81: 0 | O81: 0 | P81: 0 | Q81: =SUM(E81:P81) -> 0 | R81: =+Method_input!T70 -> biomass | S81: (51) | U81: Sum generation inputs with this carrier
A82: Conversion factor, nren | B82: fPnren,del;cr,j | E82: =INDEX(Method_input!G$66:G$80,MATCH($R82,Method_input!$T$66:$T$80,0)) -> 0.2 | F82: =INDEX(Method_input!H$66:H$80,MATCH($R82,Method_input!$T$66:$T$80,0)) -> 0.2 | G82: =INDEX(Method_input!I$66:I$80,MATCH($R82,Method_input!$T$66:$T$80,0)) -> 0.2 | H82: =INDEX(Method_input!J$66:J$80,MATCH($R82,Method_input!$T$66:$T$80,0)) -> 0.2 | I82: =INDEX(Method_input!K$66:K$80,MATCH($R82,Method_input!$T$66:$T$80,0)) -> 0.2 | J82: =INDEX(Method_input!L$66:L$80,MATCH($R82,Method_input!$T$66:$T$80,0)) -> 0.2 | K82: =INDEX(Method_input!M$66:M$80,MATCH($R82,Method_input!$T$66:$T$80,0)) -> 0.2 | L82: =INDEX(Method_input!N$66:N$80,MATCH($R82,Method_input!$T$66:$T$80,0)) -> 0.2 | M82: =INDEX(Method_input!O$66:O$80,MATCH($R82,Method_input!$T$66:$T$80,0)) -> 0.2 | N82: =INDEX(Method_input!P$66:P$80,MATCH($R82,Method_input!$T$66:$T$80,0)) -> 0.2 | O82: =INDEX(Method_input!Q$66:Q$80,MATCH($R82,Method_input!$T$66:$T$80,0)) -> 0.2 | P82: =INDEX(Method_input!R$66:R$80,MATCH($R82,Method_input!$T$66:$T$80,0)) -> 0.2 | R82: =+R81 -> biomass | S82: INPUT | U82: Copy of weighting factor (input data)
A83: Conversion factor, ren | B83: fPren,del;cr,j | E83: =INDEX(Method_input!G$82:G$96,MATCH($R83,Method_input!$T$82:$T$96,0)) -> 1 | F83: =INDEX(Method_input!H$82:H$96,MATCH($R83,Method_input!$T$82:$T$96,0)) -> 1 | G83: =INDEX(Method_input!I$82:I$96,MATCH($R83,Method_input!$T$82:$T$96,0)) -> 1 | H83: =INDEX(Method_input!J$82:J$96,MATCH($R83,Method_input!$T$82:$T$96,0)) -> 1 | I83: =INDEX(Method_input!K$82:K$96,MATCH($R83,Method_input!$T$82:$T$96,0)) -> 1 | J83: =INDEX(Method_input!L$82:L$96,MATCH($R83,Method_input!$T$82:$T$96,0)) -> 1 | K83: =INDEX(Method_input!M$82:M$96,MATCH($R83,Method_input!$T$82:$T$96,0)) -> 1 | L83: =INDEX(Method_input!N$82:N$96,MATCH($R83,Method_input!$T$82:$T$96,0)) -> 1 | M83: =INDEX(Method_input!O$82:O$96,MATCH($R83,Method_input!$T$82:$T$96,0)) -> 1 | N83: =INDEX(Method_input!P$82:P$96,MATCH($R83,Method_input!$T$82:$T$96,0)) -> 1 | O83: =INDEX(Method_input!Q$82:Q$96,MATCH($R83,Method_input!$T$82:$T$96,0)) -> 1 | P83: =INDEX(Method_input!R$82:R$96,MATCH($R83,Method_input!$T$82:$T$96,0)) -> 1 | R83: =+R82 -> biomass | S83: INPUT | U83: Copy of weighting factor (input data)
A84: Primary energy, nren | B84: EPnren;del;cr,j | D84: kWh | E84: =+E81*E82 -> 0 | F84: =+F81*F82 -> 0 | G84: 0 | H84: 0 | I84: 0 | J84: 0 | K84: 0 | L84: 0 | M84: 0 | N84: 0 | O84: 0 | P84: 0 | Q84: =SUM(E84:P84) -> 0 | R84: EP_nren | S84: (50) (part) | U84: Calculate weighted delivered energy (nren)
A85: Primary energy, ren | B85: EPren;del;cr,j | D85: kWh | E85: =+E81*E83 -> 0 | F85: =+F81*F83 -> 0 | G85: 0 | H85: 0 | I85: 0 | J85: 0 | K85: 0 | L85: 0 | M85: 0 | N85: 0 | O85: 0 | P85: 0 | Q85: 0 | R85: EP_ren | U85: Calculate weighted delivered energy (ren)
A87: =+Method_input!A71 -> custom | B87: Edel;cr,j | D87: kWh | E87: =SUMIF($R$49:$R$55,$R87,E$49:E$55) -> 0 | F87: 0 | G87: 0 | H87: 0 | I87: 0 | J87: 0 | K87: 0 | L87: 0 | M87: 0 | N87: 0 | O87: 0 | P87: 0 | Q87: =SUM(E87:P87) -> 0 | R87: =+Method_input!A71 -> custom | S87: (51) | U87: Sum generation inputs with this carrier
A88: Conversion factor, nren | B88: fPnren,del;cr,j | E88: =INDEX(Method_input!G$66:G$80,MATCH($R88,Method_input!$T$66:$T$80,0)) -> 1 | F88: =INDEX(Method_input!H$66:H$80,MATCH($R88,Method_input!$T$66:$T$80,0)) -> 1 | G88: =INDEX(Method_input!I$66:I$80,MATCH($R88,Method_input!$T$66:$T$80,0)) -> 1 | H88: =INDEX(Method_input!J$66:J$80,MATCH($R88,Method_input!$T$66:$T$80,0)) -> 1 | I88: =INDEX(Method_input!K$66:K$80,MATCH($R88,Method_input!$T$66:$T$80,0)) -> 1 | J88: =INDEX(Method_input!L$66:L$80,MATCH($R88,Method_input!$T$66:$T$80,0)) -> 1 | K88: =INDEX(Method_input!M$66:M$80,MATCH($R88,Method_input!$T$66:$T$80,0)) -> 1 | L88: =INDEX(Method_input!N$66:N$80,MATCH($R88,Method_input!$T$66:$T$80,0)) -> 1 | M88: =INDEX(Method_input!O$66:O$80,MATCH($R88,Method_input!$T$66:$T$80,0)) -> 1 | N88: =INDEX(Method_input!P$66:P$80,MATCH($R88,Method_input!$T$66:$T$80,0)) -> 1 | O88: =INDEX(Method_input!Q$66:Q$80,MATCH($R88,Method_input!$T$66:$T$80,0)) -> 1 | P88: =INDEX(Method_input!R$66:R$80,MATCH($R88,Method_input!$T$66:$T$80,0)) -> 1 | R88: =+R87 -> custom | S88: INPUT | U88: Copy of weighting factor (input data)
A89: Conversion factor, ren | B89: fPren,del;cr,j | E89: =INDEX(Method_input!G$82:G$96,MATCH($R89,Method_input!$T$82:$T$96,0)) -> 0 | F89: =INDEX(Method_input!H$82:H$96,MATCH($R89,Method_input!$T$82:$T$96,0)) -> 0 | G89: =INDEX(Method_input!I$82:I$96,MATCH($R89,Method_input!$T$82:$T$96,0)) -> 0 | H89: =INDEX(Method_input!J$82:J$96,MATCH($R89,Method_input!$T$82:$T$96,0)) -> 0 | I89: =INDEX(Method_input!K$82:K$96,MATCH($R89,Method_input!$T$82:$T$96,0)) -> 0 | J89: =INDEX(Method_input!L$82:L$96,MATCH($R89,Method_input!$T$82:$T$96,0)) -> 0 | K89: =INDEX(Method_input!M$82:M$96,MATCH($R89,Method_input!$T$82:$T$96,0)) -> 0 | L89: =INDEX(Method_input!N$82:N$96,MATCH($R89,Method_input!$T$82:$T$96,0)) -> 0 | M89: =INDEX(Method_input!O$82:O$96,MATCH($R89,Method_input!$T$82:$T$96,0)) -> 0 | N89: =INDEX(Method_input!P$82:P$96,MATCH($R89,Method_input!$T$82:$T$96,0)) -> 0 | O89: =INDEX(Method_input!Q$82:Q$96,MATCH($R89,Method_input!$T$82:$T$96,0)) -> 0 | P89: =INDEX(Method_input!R$82:R$96,MATCH($R89,Method_input!$T$82:$T$96,0)) -> 0 | R89: =+R88 -> custom | S89: INPUT | U89: Copy of weighting factor (input data)
A90: Primary energy, nren | B90: EPnren;del;cr,j | D90: kWh | E90: =+E87*E88 -> 0 | F90: =+F87*F88 -> 0 | G90: 0 | H90: 0 | I90: 0 | J90: 0 | K90: 0 | L90: 0 | M90: 0 | N90: 0 | O90: 0 | P90: 0 | Q90: =SUM(E90:P90) -> 0 | R90: EP_nren | S90: (50) (part) | U90: Calculate weighted delivered energy (nren)
A91: Primary energy, ren | B91: EPren;del;cr,j | D91: kWh | E91: =+E87*E89 -> 0 | F91: =+F87*F89 -> 0 | G91: 0 | H91: 0 | I91: 0 | J91: 0 | K91: 0 | L91: 0 | M91: 0 | N91: 0 | O91: 0 | P91: 0 | Q91: 0 | R91: EP_ren | U91: Calculate weighted delivered energy (ren)
A93: =+Method_input!A72 -> District heating | B93: Edel;cr,j | D93: kWh | E93: =SUMIF($R$49:$R$55,$R93,E$49:E$55) -> 0 | F93: 0 | G93: 0 | H93: 0 | I93: 0 | J93: 0 | K93: 0 | L93: 0 | M93: 0 | N93: 0 | O93: 0 | P93: 0 | Q93: =SUM(E93:P93) -> 0 | R93: =+Method_input!T72 -> dh | S93: (51) | U93: Sum generation inputs with this carrier
A94: Conversion factor, nren | B94: fPnren,del;cr,j | E94: =INDEX(Method_input!G$66:G$80,MATCH($R94,Method_input!$T$66:$T$80,0)) -> 1.3 | F94: =INDEX(Method_input!H$66:H$80,MATCH($R94,Method_input!$T$66:$T$80,0)) -> 1.3 | G94: =INDEX(Method_input!I$66:I$80,MATCH($R94,Method_input!$T$66:$T$80,0)) -> 1.3 | H94: =INDEX(Method_input!J$66:J$80,MATCH($R94,Method_input!$T$66:$T$80,0)) -> 1.3 | I94: =INDEX(Method_input!K$66:K$80,MATCH($R94,Method_input!$T$66:$T$80,0)) -> 1.3 | J94: =INDEX(Method_input!L$66:L$80,MATCH($R94,Method_input!$T$66:$T$80,0)) -> 1.3 | K94: =INDEX(Method_input!M$66:M$80,MATCH($R94,Method_input!$T$66:$T$80,0)) -> 1.3 | L94: =INDEX(Method_input!N$66:N$80,MATCH($R94,Method_input!$T$66:$T$80,0)) -> 1.3 | M94: =INDEX(Method_input!O$66:O$80,MATCH($R94,Method_input!$T$66:$T$80,0)) -> 1.3 | N94: =INDEX(Method_input!P$66:P$80,MATCH($R94,Method_input!$T$66:$T$80,0)) -> 1.3 | O94: =INDEX(Method_input!Q$66:Q$80,MATCH($R94,Method_input!$T$66:$T$80,0)) -> 1.3 | P94: =INDEX(Method_input!R$66:R$80,MATCH($R94,Method_input!$T$66:$T$80,0)) -> 1.3 | R94: =+R93 -> dh | S94: INPUT | U94: Copy of weighting factor (input data)
A95: Conversion factor, ren | B95: fPren,del;cr,j | E95: =INDEX(Method_input!G$82:G$96,MATCH($R95,Method_input!$T$82:$T$96,0)) -> 0 | F95: =INDEX(Method_input!H$82:H$96,MATCH($R95,Method_input!$T$82:$T$96,0)) -> 0 | G95: =INDEX(Method_input!I$82:I$96,MATCH($R95,Method_input!$T$82:$T$96,0)) -> 0 | H95: =INDEX(Method_input!J$82:J$96,MATCH($R95,Method_input!$T$82:$T$96,0)) -> 0 | I95: =INDEX(Method_input!K$82:K$96,MATCH($R95,Method_input!$T$82:$T$96,0)) -> 0 | J95: =INDEX(Method_input!L$82:L$96,MATCH($R95,Method_input!$T$82:$T$96,0)) -> 0 | K95: =INDEX(Method_input!M$82:M$96,MATCH($R95,Method_input!$T$82:$T$96,0)) -> 0 | L95: =INDEX(Method_input!N$82:N$96,MATCH($R95,Method_input!$T$82:$T$96,0)) -> 0 | M95: =INDEX(Method_input!O$82:O$96,MATCH($R95,Method_input!$T$82:$T$96,0)) -> 0 | N95: =INDEX(Method_input!P$82:P$96,MATCH($R95,Method_input!$T$82:$T$96,0)) -> 0 | O95: =INDEX(Method_input!Q$82:Q$96,MATCH($R95,Method_input!$T$82:$T$96,0)) -> 0 | P95: =INDEX(Method_input!R$82:R$96,MATCH($R95,Method_input!$T$82:$T$96,0)) -> 0 | R95: =+R94 -> dh | S95: INPUT | U95: Copy of weighting factor (input data)
A96: Primary energy, nren | B96: EPnren;del;cr,j | D96: kWh | E96: =+E93*E94 -> 0 | F96: =+F93*F94 -> 0 | G96: 0 | H96: 0 | I96: 0 | J96: 0 | K96: 0 | L96: 0 | M96: 0 | N96: 0 | O96: 0 | P96: 0 | Q96: =SUM(E96:P96) -> 0 | R96: EP_nren | S96: (50) (part) | U96: Calculate weighted delivered energy (nren)
A97: Primary energy, ren | B97: EPren;del;cr,j | D97: kWh | E97: =+E93*E95 -> 0 | F97: =+F93*F95 -> 0 | G97: 0 | H97: 0 | I97: 0 | J97: 0 | K97: 0 | L97: 0 | M97: 0 | N97: 0 | O97: 0 | P97: 0 | Q97: 0 | R97: EP_ren | U97: Calculate weighted delivered energy (ren)
A99: =+Method_input!A73 -> District cooling | B99: Edel;cr,j | D99: kWh | E99: =SUMIF($R$49:$R$55,$R99,E$49:E$55) -> 0 | F99: 0 | G99: 0 | H99: 0 | I99: 0 | J99: 0 | K99: 0 | L99: 0 | M99: 0 | N99: 0 | O99: 0 | P99: 0 | Q99: =SUM(E99:P99) -> 0 | R99: =+Method_input!T73 -> dc | S99: (51) | U99: Sum generation inputs with this carrier
A100: Conversion factor, nren | B100: fPnren,del;cr,j | E100: =INDEX(Method_input!G$66:G$80,MATCH($R100,Method_input!$T$66:$T$80,0)) -> 1.3 | F100: =INDEX(Method_input!H$66:H$80,MATCH($R100,Method_input!$T$66:$T$80,0)) -> 1.3 | G100: =INDEX(Method_input!I$66:I$80,MATCH($R100,Method_input!$T$66:$T$80,0)) -> 1.3 | H100: =INDEX(Method_input!J$66:J$80,MATCH($R100,Method_input!$T$66:$T$80,0)) -> 1.3 | I100: =INDEX(Method_input!K$66:K$80,MATCH($R100,Method_input!$T$66:$T$80,0)) -> 1.3 | J100: =INDEX(Method_input!L$66:L$80,MATCH($R100,Method_input!$T$66:$T$80,0)) -> 1.3 | K100: =INDEX(Method_input!M$66:M$80,MATCH($R100,Method_input!$T$66:$T$80,0)) -> 1.3 | L100: =INDEX(Method_input!N$66:N$80,MATCH($R100,Method_input!$T$66:$T$80,0)) -> 1.3 | M100: =INDEX(Method_input!O$66:O$80,MATCH($R100,Method_input!$T$66:$T$80,0)) -> 1.3 | N100: =INDEX(Method_input!P$66:P$80,MATCH($R100,Method_input!$T$66:$T$80,0)) -> 1.3 | O100: =INDEX(Method_input!Q$66:Q$80,MATCH($R100,Method_input!$T$66:$T$80,0)) -> 1.3 | P100: =INDEX(Method_input!R$66:R$80,MATCH($R100,Method_input!$T$66:$T$80,0)) -> 1.3 | R100: =+R99 -> dc | S100: INPUT | U100: Copy of weighting factor (input data)
A101: Conversion factor, ren | B101: fPren,del;cr,j | E101: =INDEX(Method_input!G$82:G$96,MATCH($R101,Method_input!$T$82:$T$96,0)) -> 0 | F101: =INDEX(Method_input!H$82:H$96,MATCH($R101,Method_input!$T$82:$T$96,0)) -> 0 | G101: =INDEX(Method_input!I$82:I$96,MATCH($R101,Method_input!$T$82:$T$96,0)) -> 0 | H101: =INDEX(Method_input!J$82:J$96,MATCH($R101,Method_input!$T$82:$T$96,0)) -> 0 | I101: =INDEX(Method_input!K$82:K$96,MATCH($R101,Method_input!$T$82:$T$96,0)) -> 0 | J101: =INDEX(Method_input!L$82:L$96,MATCH($R101,Method_input!$T$82:$T$96,0)) -> 0 | K101: =INDEX(Method_input!M$82:M$96,MATCH($R101,Method_input!$T$82:$T$96,0)) -> 0 | L101: =INDEX(Method_input!N$82:N$96,MATCH($R101,Method_input!$T$82:$T$96,0)) -> 0 | M101: =INDEX(Method_input!O$82:O$96,MATCH($R101,Method_input!$T$82:$T$96,0)) -> 0 | N101: =INDEX(Method_input!P$82:P$96,MATCH($R101,Method_input!$T$82:$T$96,0)) -> 0 | O101: =INDEX(Method_input!Q$82:Q$96,MATCH($R101,Method_input!$T$82:$T$96,0)) -> 0 | P101: =INDEX(Method_input!R$82:R$96,MATCH($R101,Method_input!$T$82:$T$96,0)) -> 0 | R101: =+R100 -> dc | S101: INPUT | U101: Copy of weighting factor (input data)
A102: Primary energy, nren | B102: EPnren;del;cr,j | D102: kWh | E102: =+E99*E100 -> 0 | F102: =+F99*F100 -> 0 | G102: 0 | H102: 0 | I102: 0 | J102: 0 | K102: 0 | L102: 0 | M102: 0 | N102: 0 | O102: 0 | P102: 0 | Q102: =SUM(E102:P102) -> 0 | R102: EP_nren | S102: (50) (part) | U102: Calculate weighted delivered energy (nren)
A103: Primary energy, ren | B103: EPren;del;cr,j | D103: kWh | E103: =+E99*E101 -> 0 | F103: =+F99*F101 -> 0 | G103: 0 | H103: 0 | I103: 0 | J103: 0 | K103: 0 | L103: 0 | M103: 0 | N103: 0 | O103: 0 | P103: 0 | Q103: 0 | R103: EP_ren | U103: Calculate weighted delivered energy (ren)
A105: =+Method_input!A74 -> Thermal solar | B105: Edel;sol | D105: kWh | E105: =SUMIF($R$49:$R$55,$R105,E$49:E$55) -> 11.5 | F105: 23 | G105: 46 | H105: 92 | I105: 161 | J105: 184 | K105: 172.5 | L105: 161 | M105: 103.5 | N105: 34.5 | O105: 18.4 | P105: 11.5 | Q105: =SUM(E105:P105) -> 1018.9 | R105: =+Method_input!T74 -> sol | S105: (51) | U105: Sum generation inputs with this carrier
A106: Conversion factor, nren | B106: fPnren,del;sol | E106: =INDEX(Method_input!G$66:G$80,MATCH($R106,Method_input!$T$66:$T$80,0)) -> 0 | F106: =INDEX(Method_input!H$66:H$80,MATCH($R106,Method_input!$T$66:$T$80,0)) -> 0 | G106: =INDEX(Method_input!I$66:I$80,MATCH($R106,Method_input!$T$66:$T$80,0)) -> 0 | H106: =INDEX(Method_input!J$66:J$80,MATCH($R106,Method_input!$T$66:$T$80,0)) -> 0 | I106: =INDEX(Method_input!K$66:K$80,MATCH($R106,Method_input!$T$66:$T$80,0)) -> 0 | J106: =INDEX(Method_input!L$66:L$80,MATCH($R106,Method_input!$T$66:$T$80,0)) -> 0 | K106: =INDEX(Method_input!M$66:M$80,MATCH($R106,Method_input!$T$66:$T$80,0)) -> 0 | L106: =INDEX(Method_input!N$66:N$80,MATCH($R106,Method_input!$T$66:$T$80,0)) -> 0 | M106: =INDEX(Method_input!O$66:O$80,MATCH($R106,Method_input!$T$66:$T$80,0)) -> 0 | N106: =INDEX(Method_input!P$66:P$80,MATCH($R106,Method_input!$T$66:$T$80,0)) -> 0 | O106: =INDEX(Method_input!Q$66:Q$80,MATCH($R106,Method_input!$T$66:$T$80,0)) -> 0 | P106: =INDEX(Method_input!R$66:R$80,MATCH($R106,Method_input!$T$66:$T$80,0)) -> 0 | R106: =+R105 -> sol | S106: INPUT | U106: Copy of weighting factor (input data)
A107: Conversion factor, ren | B107: fPren,del;sol | E107: =INDEX(Method_input!G$82:G$96,MATCH($R107,Method_input!$T$82:$T$96,0)) -> 1 | F107: =INDEX(Method_input!H$82:H$96,MATCH($R107,Method_input!$T$82:$T$96,0)) -> 1 | G107: =INDEX(Method_input!I$82:I$96,MATCH($R107,Method_input!$T$82:$T$96,0)) -> 1 | H107: =INDEX(Method_input!J$82:J$96,MATCH($R107,Method_input!$T$82:$T$96,0)) -> 1 | I107: =INDEX(Method_input!K$82:K$96,MATCH($R107,Method_input!$T$82:$T$96,0)) -> 1 | J107: =INDEX(Method_input!L$82:L$96,MATCH($R107,Method_input!$T$82:$T$96,0)) -> 1 | K107: =INDEX(Method_input!M$82:M$96,MATCH($R107,Method_input!$T$82:$T$96,0)) -> 1 | L107: =INDEX(Method_input!N$82:N$96,MATCH($R107,Method_input!$T$82:$T$96,0)) -> 1 | M107: =INDEX(Method_input!O$82:O$96,MATCH($R107,Method_input!$T$82:$T$96,0)) -> 1 | N107: =INDEX(Method_input!P$82:P$96,MATCH($R107,Method_input!$T$82:$T$96,0)) -> 1 | O107: =INDEX(Method_input!Q$82:Q$96,MATCH($R107,Method_input!$T$82:$T$96,0)) -> 1 | P107: =INDEX(Method_input!R$82:R$96,MATCH($R107,Method_input!$T$82:$T$96,0)) -> 1 | R107: =+R106 -> sol | S107: INPUT | U107: Copy of weighting factor (input data)
A108: Primary energy, nren | B108: EPnren;del;sol | D108: kWh | E108: =+E105*E106 -> 0 | F108: =+F105*F106 -> 0 | G108: 0 | H108: 0 | I108: 0 | J108: 0 | K108: 0 | L108: 0 | M108: 0 | N108: 0 | O108: 0 | P108: 0 | Q108: =SUM(E108:P108) -> 0 | R108: EP_nren | S108: (50) (part) | U108: Calculate weighted delivered energy (nren)
A109: Primary energy, ren | B109: EPren;del;sol | D109: kWh | E109: =+E105*E107 -> 11.5 | F109: =+F105*F107 -> 23 | G109: 46 | H109: 92 | I109: 161 | J109: 184 | K109: 172.5 | L109: 161 | M109: 103.5 | N109: 34.5 | O109: 18.4 | P109: 11.5 | Q109: 1018.9 | R109: EP_ren | U109: Calculate weighted delivered energy (ren)
A111: =+Method_input!A75 -> Photovoltaic | B111: Edel;sol | D111: kWh | E111: =SUMIF($R$49:$R$55,$R111,E$49:E$55) -> 45 | F111: 60 | G111: 150 | H111: 210 | I111: 255 | J111: 285 | K111: 300 | L111: 270 | M111: 240 | N111: 180 | O111: 120 | P111: 90 | Q111: =SUM(E111:P111) -> 2205 | R111: =+Method_input!T75 -> pv | S111: (51) | U111: Sum generation inputs with this carrier
A112: Conversion factor, nren | B112: fPnren,del;pv | E112: =INDEX(Method_input!G$66:G$80,MATCH($R112,Method_input!$T$66:$T$80,0)) -> 0 | F112: =INDEX(Method_input!H$66:H$80,MATCH($R112,Method_input!$T$66:$T$80,0)) -> 0 | G112: =INDEX(Method_input!I$66:I$80,MATCH($R112,Method_input!$T$66:$T$80,0)) -> 0 | H112: =INDEX(Method_input!J$66:J$80,MATCH($R112,Method_input!$T$66:$T$80,0)) -> 0 | I112: =INDEX(Method_input!K$66:K$80,MATCH($R112,Method_input!$T$66:$T$80,0)) -> 0 | J112: =INDEX(Method_input!L$66:L$80,MATCH($R112,Method_input!$T$66:$T$80,0)) -> 0 | K112: =INDEX(Method_input!M$66:M$80,MATCH($R112,Method_input!$T$66:$T$80,0)) -> 0 | L112: =INDEX(Method_input!N$66:N$80,MATCH($R112,Method_input!$T$66:$T$80,0)) -> 0 | M112: =INDEX(Method_input!O$66:O$80,MATCH($R112,Method_input!$T$66:$T$80,0)) -> 0 | N112: =INDEX(Method_input!P$66:P$80,MATCH($R112,Method_input!$T$66:$T$80,0)) -> 0 | O112: =INDEX(Method_input!Q$66:Q$80,MATCH($R112,Method_input!$T$66:$T$80,0)) -> 0 | P112: =INDEX(Method_input!R$66:R$80,MATCH($R112,Method_input!$T$66:$T$80,0)) -> 0 | R112: =+R111 -> pv | S112: INPUT | U112: Copy of weighting factor (input data)
A113: Conversion factor, ren | B113: fPren,del;pv | E113: =INDEX(Method_input!G$82:G$96,MATCH($R113,Method_input!$T$82:$T$96,0)) -> 1 | F113: =INDEX(Method_input!H$82:H$96,MATCH($R113,Method_input!$T$82:$T$96,0)) -> 1 | G113: =INDEX(Method_input!I$82:I$96,MATCH($R113,Method_input!$T$82:$T$96,0)) -> 1 | H113: =INDEX(Method_input!J$82:J$96,MATCH($R113,Method_input!$T$82:$T$96,0)) -> 1 | I113: =INDEX(Method_input!K$82:K$96,MATCH($R113,Method_input!$T$82:$T$96,0)) -> 1 | J113: =INDEX(Method_input!L$82:L$96,MATCH($R113,Method_input!$T$82:$T$96,0)) -> 1 | K113: =INDEX(Method_input!M$82:M$96,MATCH($R113,Method_input!$T$82:$T$96,0)) -> 1 | L113: =INDEX(Method_input!N$82:N$96,MATCH($R113,Method_input!$T$82:$T$96,0)) -> 1 | M113: =INDEX(Method_input!O$82:O$96,MATCH($R113,Method_input!$T$82:$T$96,0)) -> 1 | N113: =INDEX(Method_input!P$82:P$96,MATCH($R113,Method_input!$T$82:$T$96,0)) -> 1 | O113: =INDEX(Method_input!Q$82:Q$96,MATCH($R113,Method_input!$T$82:$T$96,0)) -> 1 | P113: =INDEX(Method_input!R$82:R$96,MATCH($R113,Method_input!$T$82:$T$96,0)) -> 1 | R113: =+R112 -> pv | S113: INPUT | U113: Copy of weighting factor (input data)
A114: Primary energy, nren | B114: EPnren;del;pv | D114: kWh | E114: =+E111*E112 -> 0 | F114: =+F111*F112 -> 0 | G114: 0 | H114: 0 | I114: 0 | J114: 0 | K114: 0 | L114: 0 | M114: 0 | N114: 0 | O114: 0 | P114: 0 | Q114: =SUM(E114:P114) -> 0 | R114: EP_nren | S114: (50) (part) | U114: Calculate weighted delivered energy (nren)
A115: Primary energy, ren | B115: EPren;del;pv | D115: kWh | E115: =+E111*E113 -> 45 | F115: =+F111*F113 -> 60 | G115: 150 | H115: 210 | I115: 255 | J115: 285 | K115: 300 | L115: 270 | M115: 240 | N115: 180 | O115: 120 | P115: 90 | Q115: 2205 | R115: EP_ren | U115: Calculate weighted delivered energy (ren)
A117: Environment heat amount | B117: Edel;env | D117: kWh | E117: =SUMIF($R$49:$R$55,$R117,E$49:E$55) -> 33.33333333 | F117: 33.33333333 | G117: 33.33333333 | H117: 33.33333333 | I117: 0 | J117: 0 | K117: 0 | L117: 0 | M117: 6.666666667 | N117: 33.33333333 | O117: 33.33333333 | P117: 33.33333333 | Q117: =SUM(E117:P117) -> 240 | R117: env | S117: (51) | U117: Sum generation inputs with this carrier
A118: Conversion factor, nren | B118: fPnren,del;env | E118: =INDEX(Method_input!G$66:G$80,MATCH($R118,Method_input!$T$66:$T$80,0)) -> 0 | F118: =INDEX(Method_input!H$66:H$80,MATCH($R118,Method_input!$T$66:$T$80,0)) -> 0 | G118: =INDEX(Method_input!I$66:I$80,MATCH($R118,Method_input!$T$66:$T$80,0)) -> 0 | H118: =INDEX(Method_input!J$66:J$80,MATCH($R118,Method_input!$T$66:$T$80,0)) -> 0 | I118: =INDEX(Method_input!K$66:K$80,MATCH($R118,Method_input!$T$66:$T$80,0)) -> 0 | J118: =INDEX(Method_input!L$66:L$80,MATCH($R118,Method_input!$T$66:$T$80,0)) -> 0 | K118: =INDEX(Method_input!M$66:M$80,MATCH($R118,Method_input!$T$66:$T$80,0)) -> 0 | L118: =INDEX(Method_input!N$66:N$80,MATCH($R118,Method_input!$T$66:$T$80,0)) -> 0 | M118: =INDEX(Method_input!O$66:O$80,MATCH($R118,Method_input!$T$66:$T$80,0)) -> 0 | N118: =INDEX(Method_input!P$66:P$80,MATCH($R118,Method_input!$T$66:$T$80,0)) -> 0 | O118: =INDEX(Method_input!Q$66:Q$80,MATCH($R118,Method_input!$T$66:$T$80,0)) -> 0 | P118: =INDEX(Method_input!R$66:R$80,MATCH($R118,Method_input!$T$66:$T$80,0)) -> 0 | R118: =+R117 -> env | S118: INPUT | U118: Copy of weighting factor (input data)
A119: Conversion factor, ren | B119: fPren,del;env | E119: =INDEX(Method_input!G$82:G$96,MATCH($R119,Method_input!$T$82:$T$96,0)) -> 1 | F119: =INDEX(Method_input!H$82:H$96,MATCH($R119,Method_input!$T$82:$T$96,0)) -> 1 | G119: =INDEX(Method_input!I$82:I$96,MATCH($R119,Method_input!$T$82:$T$96,0)) -> 1 | H119: =INDEX(Method_input!J$82:J$96,MATCH($R119,Method_input!$T$82:$T$96,0)) -> 1 | I119: =INDEX(Method_input!K$82:K$96,MATCH($R119,Method_input!$T$82:$T$96,0)) -> 1 | J119: =INDEX(Method_input!L$82:L$96,MATCH($R119,Method_input!$T$82:$T$96,0)) -> 1 | K119: =INDEX(Method_input!M$82:M$96,MATCH($R119,Method_input!$T$82:$T$96,0)) -> 1 | L119: =INDEX(Method_input!N$82:N$96,MATCH($R119,Method_input!$T$82:$T$96,0)) -> 1 | M119: =INDEX(Method_input!O$82:O$96,MATCH($R119,Method_input!$T$82:$T$96,0)) -> 1 | N119: =INDEX(Method_input!P$82:P$96,MATCH($R119,Method_input!$T$82:$T$96,0)) -> 1 | O119: =INDEX(Method_input!Q$82:Q$96,MATCH($R119,Method_input!$T$82:$T$96,0)) -> 1 | P119: =INDEX(Method_input!R$82:R$96,MATCH($R119,Method_input!$T$82:$T$96,0)) -> 1 | R119: =+R118 -> env | S119: INPUT | U119: Copy of weighting factor (input data)
A120: Primary energy, nren | B120: EPnren;del;env | D120: kWh | E120: =+E117*E118 -> 0 | F120: =+F117*F118 -> 0 | G120: 0 | H120: 0 | I120: 0 | J120: 0 | K120: 0 | L120: 0 | M120: 0 | N120: 0 | O120: 0 | P120: 0 | Q120: =SUM(E120:P120) -> 0 | R120: EP_nren | S120: (50) (part) | U120: Calculate weighted delivered energy (nren)
A121: Primary energy, ren | B121: EPren;del;env | D121: kWh | E121: =+E117*E119 -> 33.33333333 | F121: =+F117*F119 -> 33.33333333 | G121: 33.33333333 | H121: 33.33333333 | I121: 0 | J121: 0 | K121: 0 | L121: 0 | M121: 6.666666667 | N121: 33.33333333 | O121: 33.33333333 | P121: 33.33333333 | Q121: 240 | R121: EP_ren | U121: Calculate weighted delivered energy (ren)
A123: Weighted delivered energy of non exported energy carriers | B123: EPnren;del;nexp | D123: kWh | E123: =SUMIF($R$57:$R$122,$R123,E$57:E$122) -> 3304.444444 | F123: =SUMIF($R$57:$R$122,$R123,F$57:F$122) -> 2528.333333 | G123: 1740 | H123: 927.2222222 | I123: 120 | J123: 80 | K123: 100 | L123: 120 | M123: 200 | N123: 1141.111111 | O123: 2227.666667 | P123: 2693.333333 | Q123: 15182.11111 | R123: EP_nren | S123: (50) | U123: Calculate the total weighted deliverd enrgy for non exported energy carriers
B124: EPren;del;nexp | D124: kWh | E124: =SUMIF($R$57:$R$122,$R124,E$57:E$122) -> 89.83333333 | F124: 116.3333333 | G124: 229.3333333 | H124: 335.3333333 | I124: 416 | J124: 469 | K124: 472.5 | L124: 431 | M124: 350.1666667 | N124: 247.8333333 | O124: 171.7333333 | P124: 134.8333333 | Q124: 3463.9 | R124: EP_ren | S124: (50)
W126: el_nep
A127: Corrected delivered electricity | B127: Edel;el;t;corr | E127: =+E41 -> 144.4969697 | F127: 89.88030303 | G127: 0 | H127: 0 | I127: 0 | J127: 0 | K127: 0 | L127: 0 | M127: 0 | N127: 0 | O127: 14.06030303 | P127: 67.83030303 | R127: el | T127: INFO | U127: Recall delivered electric energy
A128: Conversion factor, nren | B128: fPnren,del;el | E128: =INDEX(Method_input!G$66:G$80,MATCH($R127,Method_input!$T$66:$T$80,0)) -> 2.3 | F128: =INDEX(Method_input!H$66:H$80,MATCH($R127,Method_input!$T$66:$T$80,0)) -> 2.3 | G128: =INDEX(Method_input!I$66:I$80,MATCH($R127,Method_input!$T$66:$T$80,0)) -> 2.3 | H128: =INDEX(Method_input!J$66:J$80,MATCH($R127,Method_input!$T$66:$T$80,0)) -> 2.3 | I128: =INDEX(Method_input!K$66:K$80,MATCH($R127,Method_input!$T$66:$T$80,0)) -> 2.3 | J128: =INDEX(Method_input!L$66:L$80,MATCH($R127,Method_input!$T$66:$T$80,0)) -> 2.3 | K128: =INDEX(Method_input!M$66:M$80,MATCH($R127,Method_input!$T$66:$T$80,0)) -> 2.3 | L128: =INDEX(Method_input!N$66:N$80,MATCH($R127,Method_input!$T$66:$T$80,0)) -> 2.3 | M128: =INDEX(Method_input!O$66:O$80,MATCH($R127,Method_input!$T$66:$T$80,0)) -> 2.3 | N128: =INDEX(Method_input!P$66:P$80,MATCH($R127,Method_input!$T$66:$T$80,0)) -> 2.3 | O128: =INDEX(Method_input!Q$66:Q$80,MATCH($R127,Method_input!$T$66:$T$80,0)) -> 2.3 | P128: =INDEX(Method_input!R$66:R$80,MATCH($R127,Method_input!$T$66:$T$80,0)) -> 2.3 | S128: INPUT | T128: Copied input value for clarity | U128: Copy of weighting factor (input data)
A129: Conversion factor, ren | B129: fPren,del;el | E129: =INDEX(Method_input!G$82:G$96,MATCH($R127,Method_input!$T$82:$T$96,0)) -> 0.2 | F129: =INDEX(Method_input!H$82:H$96,MATCH($R127,Method_input!$T$82:$T$96,0)) -> 0.2 | G129: =INDEX(Method_input!I$82:I$96,MATCH($R127,Method_input!$T$82:$T$96,0)) -> 0.2 | H129: =INDEX(Method_input!J$82:J$96,MATCH($R127,Method_input!$T$82:$T$96,0)) -> 0.2 | I129: =INDEX(Method_input!K$82:K$96,MATCH($R127,Method_input!$T$82:$T$96,0)) -> 0.2 | J129: =INDEX(Method_input!L$82:L$96,MATCH($R127,Method_input!$T$82:$T$96,0)) -> 0.2 | K129: =INDEX(Method_input!M$82:M$96,MATCH($R127,Method_input!$T$82:$T$96,0)) -> 0.2 | L129: =INDEX(Method_input!N$82:N$96,MATCH($R127,Method_input!$T$82:$T$96,0)) -> 0.2 | M129: =INDEX(Method_input!O$82:O$96,MATCH($R127,Method_input!$T$82:$T$96,0)) -> 0.2 | N129: =INDEX(Method_input!P$82:P$96,MATCH($R127,Method_input!$T$82:$T$96,0)) -> 0.2 | O129: =INDEX(Method_input!Q$82:Q$96,MATCH($R127,Method_input!$T$82:$T$96,0)) -> 0.2 | P129: =INDEX(Method_input!R$82:R$96,MATCH($R127,Method_input!$T$82:$T$96,0)) -> 0.2 | S129: INPUT | T129: Copied input value for clarity | U129: Copy of weighting factor (input data)
A130: Primary energy, nren | B130: EPnren;del;el | D130: kWh | E130: =+E127*E128 -> 332.3430303 | F130: =+F127*F128 -> 206.724697 | G130: 0 | H130: 0 | I130: 0 | J130: 0 | K130: 0 | L130: 0 | M130: 0 | N130: 0 | O130: 32.33869697 | P130: 156.009697 | S130: (19) | U130: Calculate weighted delivered energy (nren)
A131: Primary energy, ren | B131: EPren;del;el | D131: kWh | E131: =+E127*E129 -> 28.89939394 | F131: =+F127*F129 -> 17.97606061 | G131: 0 | H131: 0 | I131: 0 | J131: 0 | K131: 0 | L131: 0 | M131: 0 | N131: 0 | O131: 2.812060606 | P131: 13.56606061 | S131: (19) | U131: Calculate weighted delivered energy (ren)
A133: Delivered weighted energy (nren) | B133: Ewe;del | D133: kWh | E133: =+E130+E123 -> 3636.787475 | F133: =+F130+F123 -> 2735.05803 | G133: 1740 | H133: 927.2222222 | I133: 120 | J133: 80 | K133: 100 | L133: 120 | M133: 200 | N133: 1141.111111 | O133: 2260.005364 | P133: 2849.34303 | Q133: =SUM(E133:P133) -> 15909.52723 | S133: (3) | U133: Total weighted delivered energy (electricity + others)
A134: Delivered weighted energy (ren) | B134: Ewe;del | D134: kWh | E134: =+E131+E124 -> 118.7327273 | F134: =+F131+F124 -> 134.3093939 | G134: 229.3333333 | H134: 335.3333333 | I134: 416 | J134: 469 | K134: 472.5 | L134: 431 | M134: 350.1666667 | N134: 247.8333333 | O134: 174.5453939 | P134: 148.3993939 | Q134: =SUM(E134:P134) -> 3527.153576 | S134: (3) | U134: Total weighted delivered energy (electricity + others)
A136: Calculate weighted exported energy according to the resources used to produce the exported energy (step A)
A137: Produced electricity weighting factors
A138: Weighting factors for PV el. | B138: fPnren;exp;el;stepA;pv;t | E138: =+Method_input!G75 -> 0 | F138: =+Method_input!H75 -> 0 | G138: =+Method_input!I75 -> 0 | H138: =+Method_input!J75 -> 0 | I138: =+Method_input!K75 -> 0 | J138: =+Method_input!L75 -> 0 | K138: =+Method_input!M75 -> 0 | L138: =+Method_input!N75 -> 0 | M138: =+Method_input!O75 -> 0 | N138: =+Method_input!P75 -> 0 | O138: =+Method_input!Q75 -> 0 | P138: =+Method_input!R75 -> 0 | S138: Text | T138: See clause 9.8.6.2.2
B139: fPren;exp;el;stepA;pv;t | E139: =+Method_input!G91 -> 1 | F139: =+Method_input!H91 -> 1 | G139: =+Method_input!I91 -> 1 | H139: =+Method_input!J91 -> 1 | I139: =+Method_input!K91 -> 1 | J139: =+Method_input!L91 -> 1 | K139: =+Method_input!M91 -> 1 | L139: =+Method_input!N91 -> 1 | M139: =+Method_input!O91 -> 1 | N139: =+Method_input!P91 -> 1 | O139: =+Method_input!Q91 -> 1 | P139: =+Method_input!R91 -> 1 | S139: Text | T139: See clause 9.8.6.2.2
A140: Weighting factors for wind el | E140: =+E138 -> 0 | F140: =+F138 -> 0 | G140: 0 | H140: 0 | I140: 0 | J140: 0 | K140: 0 | L140: 0 | M140: 0 | N140: 0 | O140: 0 | P140: 0 | U140: Weighting factors for wind to be added
E141: =+E139 -> 1 | F141: 1 | G141: 1 | H141: 1 | I141: 1 | J141: 1 | K141: 1 | L141: 1 | M141: 1 | N141: 1 | O141: 1 | P141: 1 | U141: Weighting factors for wind to be added
A143: CHP electricity allocation factor | B143: aW | E143: =+Method_input!G122 -> 0.65 | F143: =+Method_input!H122 -> 0.65 | G143: =+Method_input!I122 -> 0.65 | H143: =+Method_input!J122 -> 0.65 | I143: =+Method_input!K122 -> 0.65 | J143: =+Method_input!L122 -> 0.65 | K143: =+Method_input!M122 -> 0.65 | L143: =+Method_input!N122 -> 0.65 | M143: =+Method_input!O122 -> 0.65 | N143: =+Method_input!P122 -> 0.65 | O143: =+Method_input!Q122 -> 0.65 | P143: =+Method_input!R122 -> 0.65 | S143: INPUT | U143: Copied here for clarity
A145: CHP input | B145: =+B51 -> EHW,CHP,in | D145: kWh | E145: =+E51 -> 181.8181818 | F145: 181.8181818 | G145: 181.8181818 | H145: 181.8181818 | I145: 109.0909091 | J145: 72.72727273 | K145: 90.90909091 | L145: 109.0909091 | M145: 181.8181818 | N145: 181.8181818 | O145: 181.8181818 | P145: 181.8181818 | Q145: =SUM(E145:P145) -> 1836.363636 | R145: =+R51 -> gas | S145: INPUT | U145: Copied here for clarity
A146: Conversion factor, nren | B146: fPnren,del;chp | E146: =INDEX(Method_input!G$66:G$80,MATCH($R146,Method_input!$T$66:$T$80,0)) -> 1.1 | F146: =INDEX(Method_input!H$66:H$80,MATCH($R146,Method_input!$T$66:$T$80,0)) -> 1.1 | G146: =INDEX(Method_input!I$66:I$80,MATCH($R146,Method_input!$T$66:$T$80,0)) -> 1.1 | H146: =INDEX(Method_input!J$66:J$80,MATCH($R146,Method_input!$T$66:$T$80,0)) -> 1.1 | I146: =INDEX(Method_input!K$66:K$80,MATCH($R146,Method_input!$T$66:$T$80,0)) -> 1.1 | J146: =INDEX(Method_input!L$66:L$80,MATCH($R146,Method_input!$T$66:$T$80,0)) -> 1.1 | K146: =INDEX(Method_input!M$66:M$80,MATCH($R146,Method_input!$T$66:$T$80,0)) -> 1.1 | L146: =INDEX(Method_input!N$66:N$80,MATCH($R146,Method_input!$T$66:$T$80,0)) -> 1.1 | M146: =INDEX(Method_input!O$66:O$80,MATCH($R146,Method_input!$T$66:$T$80,0)) -> 1.1 | N146: =INDEX(Method_input!P$66:P$80,MATCH($R146,Method_input!$T$66:$T$80,0)) -> 1.1 | O146: =INDEX(Method_input!Q$66:Q$80,MATCH($R146,Method_input!$T$66:$T$80,0)) -> 1.1 | P146: =INDEX(Method_input!R$66:R$80,MATCH($R146,Method_input!$T$66:$T$80,0)) -> 1.1 | R146: =+R145 -> gas | S146: INFO
A147: Conversion factor, ren | B147: fPren,del;chp | E147: =INDEX(Method_input!G$82:G$96,MATCH($R147,Method_input!$T$82:$T$96,0)) -> 0 | F147: =INDEX(Method_input!H$82:H$96,MATCH($R147,Method_input!$T$82:$T$96,0)) -> 0 | G147: =INDEX(Method_input!I$82:I$96,MATCH($R147,Method_input!$T$82:$T$96,0)) -> 0 | H147: =INDEX(Method_input!J$82:J$96,MATCH($R147,Method_input!$T$82:$T$96,0)) -> 0 | I147: =INDEX(Method_input!K$82:K$96,MATCH($R147,Method_input!$T$82:$T$96,0)) -> 0 | J147: =INDEX(Method_input!L$82:L$96,MATCH($R147,Method_input!$T$82:$T$96,0)) -> 0 | K147: =INDEX(Method_input!M$82:M$96,MATCH($R147,Method_input!$T$82:$T$96,0)) -> 0 | L147: =INDEX(Method_input!N$82:N$96,MATCH($R147,Method_input!$T$82:$T$96,0)) -> 0 | M147: =INDEX(Method_input!O$82:O$96,MATCH($R147,Method_input!$T$82:$T$96,0)) -> 0 | N147: =INDEX(Method_input!P$82:P$96,MATCH($R147,Method_input!$T$82:$T$96,0)) -> 0 | O147: =INDEX(Method_input!Q$82:Q$96,MATCH($R147,Method_input!$T$82:$T$96,0)) -> 0 | P147: =INDEX(Method_input!R$82:R$96,MATCH($R147,Method_input!$T$82:$T$96,0)) -> 0 | R147: =+R146 -> gas | S147: INFO
A148: Weighted energy input | B148: EPnren;in;chp | D148: kWh | E148: =+E145*E146 -> 200 | F148: 200 | G148: 200 | H148: 200 | I148: 120 | J148: 80 | K148: 100 | L148: 120 | M148: 200 | N148: 200 | O148: 200 | P148: 200 | Q148: =SUM(E148:P148) -> 2020 | S148: (7)
B149: EPren;in;chp | D149: kWh | E149: =+E145*E147 -> 0 | F149: 0 | G149: 0 | H149: 0 | I149: 0 | J149: 0 | K149: 0 | L149: 0 | M149: 0 | N149: 0 | O149: 0 | P149: 0 | Q149: 0 | S149: (7)
A150: Weighted energy input allocated to electricity | B150: EPnren;in;chp;el | D150: kWh | E150: =+E148*E$143 -> 130 | F150: =+F148*F$143 -> 130 | G150: 130 | H150: 130 | I150: 78 | J150: 52 | K150: 65 | L150: 78 | M150: 130 | N150: 130 | O150: 130 | P150: 130 | Q150: 1313 | S150: (5)
B151: EPren;in;chp;el | D151: kWh | E151: =+E149*E$143 -> 0 | F151: =+F149*F$143 -> 0 | G151: 0 | H151: 0 | I151: 0 | J151: 0 | K151: 0 | L151: 0 | M151: 0 | N151: 0 | O151: 0 | P151: 0 | Q151: 0 | S151: (5)
A152: Cogenerated electricity | B152: Epr;el;chp;t | D152: kWh | E152: =+E16 -> 63.63636364 | F152: 63.63636364 | G152: 63.63636364 | H152: 63.63636364 | I152: 38.18181818 | J152: 25.45454545 | K152: 31.81818182 | L152: 38.18181818 | M152: 63.63636364 | N152: 63.63636364 | O152: 63.63636364 | P152: 63.63636364 | Q152: =SUM(E152:P152) -> 642.7272727 | S152: INFO | U152: Repeated for clarity
A153: Weighting factors for CHP el. | B153: fPnren;exp;el;stepA;pv;t | E153: =+IF(E$152>0,E150/E$152,0) -> 2.042857143 | F153: =+IF(F$152>0,F150/F$152,0) -> 2.042857143 | G153: 2.042857143 | H153: 2.042857143 | I153: 2.042857143 | J153: 2.042857143 | K153: 2.042857143 | L153: 2.042857143 | M153: 2.042857143 | N153: 2.042857143 | O153: 2.042857143 | P153: 2.042857143 | S153: (4)
B154: fPren;exp;el;stepA;pv;t | E154: =+IF(E$152>0,E151/E$152,0) -> 0 | F154: =+IF(F$152>0,F151/F$152,0) -> 0 | G154: 0 | H154: 0 | I154: 0 | J154: 0 | K154: 0 | L154: 0 | M154: 0 | N154: 0 | O154: 0 | P154: 0 | S154: (4)
A155: Priority selection
A156: Priority for produced electricity
A157: Piority level 1 | B157: EL_EXP_PRIO_LEVEL_1 | R157: =+Method_input!T124 -> el_pv | U157: Repeated for clarity
A158: Piority level 2 | B158: EL_EXP_PRIO_LEVEL_2 | R158: =+Method_input!T125 -> el_wind | U158: Repeated for clarity
A159: Piority level 3 | B159: EL_EXP_PRIO_LEVEL_3 | R159: =+Method_input!T126 -> el_chp | U159: Repeated for clarity
A161: Used electricity | B161: EEPus;el;left;t,1 | D161: kWh | E161: =+E12 -> 253.1333333 | F161: =+F12 -> 213.5166667 | G161: 173.8666667 | H161: 134.15 | I161: 97.72380952 | J161: 106.8952381 | K161: 112.3095238 | L161: 109.152381 | M161: 102.4380952 | N161: 142.2333333 | O161: 197.6966667 | P161: 221.4666667 | Q161: =SUM(E161:P161) -> 1864.582381 | S161: (9) | U161: Start iteration
A163: Level 1 production | B163: Epr;el;lvl,1;t | D163: kWh | E163: =SUMIF($R$15:$R$17,$R163,E$15:E$17) -> 45 | F163: =SUMIF($R$15:$R$17,$R163,F$15:F$17) -> 60 | G163: 150 | H163: 210 | I163: 255 | J163: 285 | K163: 300 | L163: 270 | M163: 240 | N163: 180 | O163: 120 | P163: 90 | Q163: =SUM(E163:P163) -> 2205 | R163: =+R157 -> el_pv | U163: Select electricity production for level 1
A164: Level 1 used | B164: Epr;el;lvl,1;usmax;t | D164: kWh | E164: =MIN(E163,E161) -> 45 | F164: 60 | G164: 150 | H164: 134.15 | I164: 97.72380952 | J164: 106.8952381 | K164: 112.3095238 | L164: 109.152381 | M164: 102.4380952 | N164: 142.2333333 | O164: 120 | P164: 90 | Q164: 1269.902381 | R164: =+R163&"_used" -> el_pv_used | S164: (10)
A166: Still to be used | B166: EEPus;el;left;t,2 | D166: kWh | E166: =+E161-E164 -> 208.1333333 | F166: 153.5166667 | G166: 23.86666667 | H166: 0 | I166: 0 | J166: 0 | K166: 0 | L166: 0 | M166: 0 | N166: 0 | O166: 77.69666667 | P166: 131.4666667 | Q166: =SUM(E166:P166) -> 594.68 | S166: (11) | U166: Still to be used
A167: Level 2 production | B167: Epr;el;lvl,2;t | D167: kWh | E167: =SUMIF($R$15:$R$17,$R167,E$15:E$17) -> 0 | F167: =SUMIF($R$15:$R$17,$R167,F$15:F$17) -> 0 | G167: 0 | H167: 0 | I167: 0 | J167: 0 | K167: 0 | L167: 0 | M167: 0 | N167: 0 | O167: 0 | P167: 0 | Q167: =SUM(E167:P167) -> 0 | R167: =+R158 -> el_wind | U167: Select electricity production for level 2
A168: Level 2 used | B168: Epr;el;lvl,2;usmax;t | D168: kWh | E168: =MIN(E167,E166) -> 0 | F168: =MIN(F167,F166) -> 0 | G168: 0 | H168: 0 | I168: 0 | J168: 0 | K168: 0 | L168: 0 | M168: 0 | N168: 0 | O168: 0 | P168: 0 | Q168: 0 | R168: =+R167&"_used" -> el_wind_used | S168: (10)
A170: Still to be used | B170: EEPus;el;left;t,3 | D170: kWh | E170: =+E166-E168 -> 208.1333333 | F170: =+F166-F168 -> 153.5166667 | G170: 23.86666667 | H170: 0 | I170: 0 | J170: 0 | K170: 0 | L170: 0 | M170: 0 | N170: 0 | O170: 77.69666667 | P170: 131.4666667 | Q170: 594.68 | S170: (11)
A171: Level 3 production | B171: Epr;el;lvl,3;t | D171: kWh | E171: =SUMIF($R$15:$R$17,$R171,E$15:E$17) -> 63.63636364 | F171: =SUMIF($R$15:$R$17,$R171,F$15:F$17) -> 63.63636364 | G171: 63.63636364 | H171: 63.63636364 | I171: 38.18181818 | J171: 25.45454545 | K171: 31.81818182 | L171: 38.18181818 | M171: 63.63636364 | N171: 63.63636364 | O171: 63.63636364 | P171: 63.63636364 | Q171: 642.7272727 | R171: =+R159 -> el_chp | U171: Select electricity production for level 3
A172: Level 3 used | B172: Epr;el;lvl,3;usmax;t | D172: kWh | E172: =MIN(E171,E170) -> 63.63636364 | F172: =MIN(F171,F170) -> 63.63636364 | G172: 23.86666667 | H172: 0 | I172: 0 | J172: 0 | K172: 0 | L172: 0 | M172: 0 | N172: 0 | O172: 63.63636364 | P172: 63.63636364 | Q172: 278.4121212 | R172: =+R171&"_used" -> el_chp_used | S172: (10)
A174: Still to be used | B174: EEPus;el;left;t | D174: kWh | E174: =+E170-E172 -> 144.4969697 | F174: =+F170-F172 -> 89.88030303 | G174: 0 | H174: 0 | I174: 0 | J174: 0 | K174: 0 | L174: 0 | M174: 0 | N174: 0 | O174: 14.06030303 | P174: 67.83030303 | Q174: 316.2678788 | S174: (11) | U174: This is exported anyway
A176: PV usable | B176: Epr;el;pv;usmax;t | D176: kWh | E176: =SUMIF($R$163:$R$172,$R176,E$163:E$172) -> 45 | F176: =SUMIF($R$163:$R$172,$R176,F$163:F$172) -> 60 | G176: 150 | H176: 134.15 | I176: 97.72380952 | J176: 106.8952381 | K176: 112.3095238 | L176: 109.152381 | M176: 102.4380952 | N176: 142.2333333 | O176: 120 | P176: 90 | Q176: =SUM(E176:P176) -> 1269.902381 | R176: =R15&"_used" -> el_pv_used | S176: INFO | T176: Parsing values according to prod. Type | U176: Parse used electricity (not in the standard, just for xls )
A177: CHP usable | B177: Epr;el;chp;usmax;t | D177: kWh | E177: =SUMIF($R$163:$R$172,$R177,E$163:E$172) -> 63.63636364 | F177: 63.63636364 | G177: 23.86666667 | H177: 0 | I177: 0 | J177: 0 | K177: 0 | L177: 0 | M177: 0 | N177: 0 | O177: 63.63636364 | P177: 63.63636364 | Q177: =SUM(E177:P177) -> 278.4121212 | R177: =R16&"_used" -> el_chp_used | S177: INFO | T177: Parsing values according to prod. Type | U177: Parse used electricity (not in the standard, just for xls )
A178: Wind useble | B178: Epr;el;wind;usmax;t | D178: kWh | E178: =SUMIF($R$163:$R$172,$R178,E$163:E$172) -> 0 | F178: 0 | G178: 0 | H178: 0 | I178: 0 | J178: 0 | K178: 0 | L178: 0 | M178: 0 | N178: 0 | O178: 0 | P178: 0 | Q178: =SUM(E178:P178) -> 0 | R178: =R17&"_used" -> el_wind_used | S178: INFO | T178: Parsing values according to prod. Type | U178: Parse used electricity (not in the standard, just for xls )
A180: PV used | B180: Epr;el;pv;used;t | D180: kWh | E180: =+E176*E$24 -> 28.69130435 | F180: 33.98115487 | G180: 76.56348994 | H180: 81.12687664 | I180: 68.40749782 | J180: 73.99028568 | K180: 78.20362028 | L180: 74.80170842 | M180: 71.41004272 | N180: 80.30465041 | O180: 60.162919 | P180: 47.84980238 | Q180: =SUM(E180:P180) -> 775.4933525 | S180: (12) | U180: Referred to production type instead of priority level
A181: CHP used | B181: Epr;el;chp;used;t | D181: kWh | E181: =+E177*E$24 -> 40.5735617 | F181: 36.0406188 | G181: 12.18210196 | H181: 0 | I181: 0 | J181: 0 | K181: 0 | L181: 0 | M181: 0 | N181: 0 | O181: 31.90457826 | P181: 33.8331936 | Q181: =SUM(E181:P181) -> 154.5340543 | S181: (12) | U181: Referred to production type instead of priority level
A182: Wind used | B182: Epr;el;wind;used;t | D182: kWh | E182: 0 | F182: 0 | G182: 0 | H182: 0 | I182: 0 | J182: 0 | K182: 0 | L182: 0 | M182: 0 | N182: 0 | O182: 0 | P182: 0 | Q182: 0 | S182: (12) | U182: Referred to production type instead of priority level
A184: PV exported | B184: Eexp;el;pv;t | D184: kWh | E184: =+E15-E180 -> 16.30869565 | F184: 26.01884513 | G184: 73.43651006 | H184: 128.8731234 | I184: 186.5925022 | J184: 211.0097143 | K184: 221.7963797 | L184: 195.1982916 | M184: 168.5899573 | N184: 99.69534959 | O184: 59.837081 | P184: 42.15019762 | Q184: =SUM(E184:P184) -> 1429.506647 | S184: (13) | U184: Referred to production type instead of priority level
A185: CHP exported | B185: Eexp;chp;pv;t | D185: kWh | E185: =+E16-E181 -> 23.06280193 | F185: 27.59574483 | G185: 51.45426168 | H185: 63.63636364 | I185: 38.18181818 | J185: 25.45454545 | K185: 31.81818182 | L185: 38.18181818 | M185: 63.63636364 | N185: 63.63636364 | O185: 31.73178538 | P185: 29.80317003 | Q185: 488.1932184 | S185: (13) | U185: Referred to production type instead of priority level
A186: WIND exported | B186: Eexp;wind;pv;t | D186: kWh | E186: =+E17-E182 -> 0 | F186: =+F17-F182 -> 0 | G186: 0 | H186: 0 | I186: 0 | J186: 0 | K186: 0 | L186: 0 | M186: 0 | N186: 0 | O186: 0 | P186: 0 | Q186: 0 | S186: (13) | U186: Referred to production type instead of priority level
A188: Without priority
A189: PV production fraction | B189: fpr;el;pv | E189: =IF(E$18>0,E15/E$18,0) -> 0.4142259414 | F189: 0.4852941176 | G189: 0.7021276596 | H189: 0.7674418605 | I189: 0.8697674419 | J189: 0.9180087848 | K189: 0.904109589 | L189: 0.8761061947 | M189: 0.7904191617 | N189: 0.7388059701 | O189: 0.6534653465 | P189: 0.5857988166 | S189: (14)
A190: CHP production fraction | B190: fpr;el;chp | E190: =IF(E$18>0,E16/E$18,0) -> 0.5857740586 | F190: 0.5147058824 | G190: 0.2978723404 | H190: 0.2325581395 | I190: 0.1302325581 | J190: 0.08199121523 | K190: 0.09589041096 | L190: 0.1238938053 | M190: 0.2095808383 | N190: 0.2611940299 | O190: 0.3465346535 | P190: 0.4142011834 | S190: (14)
A191: Wind production fraction | B191: fpr;el;wind | E191: =IF(E$18>0,E17/E$18,0) -> 0 | F191: 0 | G191: 0 | H191: 0 | I191: 0 | J191: 0 | K191: 0 | L191: 0 | M191: 0 | N191: 0 | O191: 0 | P191: 0 | S191: (14)
A192: PV used | B192: Epr;el;pv;used;t | D192: kWh | E192: =+E$26*E189 -> 45 | F192: 60 | G192: 122.0765957 | H192: 102.9523256 | I192: 84.99698782 | J192: 98.13076762 | K192: 101.5401174 | L192: 95.62907712 | M192: 80.96903336 | N192: 105.0828358 | O192: 120 | P192: 90 | Q192: =SUM(E192:P192) -> 1106.37774 | S192: (15)
A193: CHP used | B193: Epr;el;chp;used;t | D193: kWh | E193: =+E$26*E190 -> 63.63636364 | F193: 63.63636364 | G193: 51.79007092 | H193: 31.19767442 | I193: 12.72682171 | J193: 8.764470473 | K193: 10.76940639 | L193: 13.52330383 | M193: 21.46906188 | N193: 37.15049751 | O193: 63.63636364 | P193: 63.63636364 | Q193: =SUM(E193:P193) -> 441.9367617 | S193: (15) | U193: Matching factor, if any, is already in Epr;el;used;Epus,t
A194: Wind used | B194: Epr;el;wind;used;t | D194: kWh | E194: =+E$26*E191 -> 0 | F194: 0 | G194: 0 | H194: 0 | I194: 0 | J194: 0 | K194: 0 | L194: 0 | M194: 0 | N194: 0 | O194: 0 | P194: 0 | Q194: =SUM(E194:P194) -> 0 | S194: (15)
A195: PV exported | B195: Eexp;el;pv;t | D195: kWh | E195: =+E15-E192 -> 0 | F195: 0 | G195: 27.92340426 | H195: 107.0476744 | I195: 170.0030122 | J195: 186.8692324 | K195: 198.4598826 | L195: 174.3709229 | M195: 159.0309666 | N195: 74.91716418 | O195: 0 | P195: 0 | Q195: =SUM(E195:P195) -> 1098.62226 | S195: (16)
A196: CHP exported | B196: Eexp;chp;pv;t | D196: kWh | E196: =+E16-E193 -> 0 | F196: 0 | G196: 11.84629271 | H196: 32.43868922 | I196: 25.45499648 | J196: 16.69007498 | K196: 21.04877543 | L196: 24.65851435 | M196: 42.16730176 | N196: 26.48586612 | O196: 0 | P196: 0 | Q196: =SUM(E196:P196) -> 200.790511 | S196: (16)
A197: Wind exported | B197: Eexp;wind;pv;t | D197: kWh | E197: =+E17-E194 -> 0 | F197: 0 | G197: 0 | H197: 0 | I197: 0 | J197: 0 | K197: 0 | L197: 0 | M197: 0 | N197: 0 | O197: 0 | P197: 0 | Q197: =SUM(E197:P197) -> 0 | S197: (16)
A199: Really exported
A200: PV exported | B200: Eexp;el;pv;t | D200: kWh | E200: =IF($R$157='National options'!$R$11,E195,E184) -> 16.30869565 | F200: =IF($R$157='National options'!$R$11,F195,F184) -> 26.01884513 | G200: =IF($R$157='National options'!$R$11,G195,G184) -> 73.43651006 | H200: =IF($R$157='National options'!$R$11,H195,H184) -> 128.8731234 | I200: =IF($R$157='National options'!$R$11,I195,I184) -> 186.5925022 | J200: =IF($R$157='National options'!$R$11,J195,J184) -> 211.0097143 | K200: =IF($R$157='National options'!$R$11,K195,K184) -> 221.7963797 | L200: =IF($R$157='National options'!$R$11,L195,L184) -> 195.1982916 | M200: =IF($R$157='National options'!$R$11,M195,M184) -> 168.5899573 | N200: =IF($R$157='National options'!$R$11,N195,N184) -> 99.69534959 | O200: =IF($R$157='National options'!$R$11,O195,O184) -> 59.837081 | P200: =IF($R$157='National options'!$R$11,P195,P184) -> 42.15019762 | Q200: =SUM(E200:P200) -> 1429.506647 | S200: INFO | T200: Selection of the actual value | U200: Just for XLS working
A201: CHP exported | B201: Eexp;chp;pv;t | D201: kWh | E201: =IF($R$157='National options'!$R$11,E196,E185) -> 23.06280193 | F201: =IF($R$157='National options'!$R$11,F196,F185) -> 27.59574483 | G201: =IF($R$157='National options'!$R$11,G196,G185) -> 51.45426168 | H201: =IF($R$157='National options'!$R$11,H196,H185) -> 63.63636364 | I201: =IF($R$157='National options'!$R$11,I196,I185) -> 38.18181818 | J201: =IF($R$157='National options'!$R$11,J196,J185) -> 25.45454545 | K201: =IF($R$157='National options'!$R$11,K196,K185) -> 31.81818182 | L201: =IF($R$157='National options'!$R$11,L196,L185) -> 38.18181818 | M201: =IF($R$157='National options'!$R$11,M196,M185) -> 63.63636364 | N201: =IF($R$157='National options'!$R$11,N196,N185) -> 63.63636364 | O201: =IF($R$157='National options'!$R$11,O196,O185) -> 31.73178538 | P201: =IF($R$157='National options'!$R$11,P196,P185) -> 29.80317003 | Q201: =SUM(E201:P201) -> 488.1932184 | S201: INFO | T201: Selection of the actual value | U201: Just for XLS working
A202: Wind exported | B202: Eexp;wind;pv;t | D202: kWh | E202: =IF($R$157='National options'!$R$11,E197,E186) -> 0 | F202: =IF($R$157='National options'!$R$11,F197,F186) -> 0 | G202: =IF($R$157='National options'!$R$11,G197,G186) -> 0 | H202: =IF($R$157='National options'!$R$11,H197,H186) -> 0 | I202: =IF($R$157='National options'!$R$11,I197,I186) -> 0 | J202: =IF($R$157='National options'!$R$11,J197,J186) -> 0 | K202: =IF($R$157='National options'!$R$11,K197,K186) -> 0 | L202: =IF($R$157='National options'!$R$11,L197,L186) -> 0 | M202: =IF($R$157='National options'!$R$11,M197,M186) -> 0 | N202: =IF($R$157='National options'!$R$11,N197,N186) -> 0 | O202: =IF($R$157='National options'!$R$11,O197,O186) -> 0 | P202: =IF($R$157='National options'!$R$11,P197,P186) -> 0 | Q202: 0 | S202: INFO | T202: Selection of the actual value | U202: Just for XLS working
A204: Sum of exported | B204: Eexp;el;t | D204: kWh | E204: =SUM(E200:E202) -> 39.37149759 | F204: =SUM(F200:F202) -> 53.61458996 | G204: 124.8907717 | H204: 192.509487 | I204: 224.7743204 | J204: 236.4642598 | K204: 253.6145615 | L204: 233.3801098 | M204: 232.2263209 | N204: 163.3317132 | O204: 91.56886638 | P204: 71.95336765 | Q204: =SUM(E204:P204) -> 1917.699866 | S204: INFO | U204: Sum of exported to check if correct
A206: Step A weighting factor | B206: fPnren;exp;el;stepA,t | E206: =IF(E$204>0,(E$200*E138+E153*E$201+E$202*E140)/E$204,0) -> 1.19665272 | F206: =IF(F$204>0,(F$200*F138+F153*F$201+F$202*F140)/F$204,0) -> 1.051470588 | G206: 0.8416450995 | H206: 0.6752913949 | I206: 0.3470147296 | J206: 0.2199063827 | K206: 0.256294432 | L206: 0.3342187133 | M206: 0.5597987321 | N206: 0.7959262622 | O206: 0.7079207921 | P206: 0.8461538462 | S206: (8)
B207: fPren;exp;el;stepA,t | E207: =IF(E$204>0,(E$200*E139+E154*E$201+E$202*E141)/E$204,0) -> 0.4142259414 | F207: =IF(F$204>0,(F$200*F139+F154*F$201+F$202*F141)/F$204,0) -> 0.4852941176 | G207: 0.5880058953 | H207: 0.6694377787 | I207: 0.8301326499 | J207: 0.892353519 | K207: 0.8745411871 | L207: 0.836396434 | M207: 0.7259726486 | N207: 0.6103857458 | O207: 0.6534653465 | P207: 0.5857988166 | S207: (8)
A208: Weighted exported energy
A209: Exp. For non EPB uses | B209: EPnren;exp;el;used;nePus;t;A | D209: kWh | E209: =+E28*E206 -> 0 | F209: 0 | G209: 0 | H209: 0 | I209: 0 | J209: 0 | K209: 0 | L209: 0 | M209: 0 | N209: 0 | O209: 0 | P209: 0 | Q209: =SUM(E209:P209) -> 0 | S209: (24)
B210: EPren;exp;el;used;nePus;t;A | D210: kWh | E210: =+E28*E207 -> 0 | F210: 0 | G210: 0 | H210: 0 | I210: 0 | J210: 0 | K210: 0 | L210: 0 | M210: 0 | N210: 0 | O210: 0 | P210: 0 | Q210: 0 | S210: (24)
A211: Grid exp. temp. exp. energy | B211: EPnren;exp;el;tmp;A | D211: kWh | E211: =+E42*E206 -> 0 | F211: 0 | G211: 8.146840918 | H211: 22.92613911 | I211: 16.50856539 | J211: 10.89523882 | K211: 13.69300545 | L211: 16.19034238 | M211: 27.41347582 | N211: 19.64408133 | O211: 0 | P211: 0 | Q211: 135.4176892 | S211: (25)
B212: EPren;exp;el;tmp;A | D212: kWh | E212: =+E42*E207 -> 0 | F212: 0 | G212: 5.691698902 | H212: 22.72740887 | I212: 39.49198108 | J212: 44.21156213 | K212: 46.72398517 | L212: 40.51701504 | M212: 35.55105167 | N212: 15.06479658 | O212: 0 | P212: 0 | Q212: 249.9794995 | S212: (25)
A213: Grid exp. electricity | B213: EPnren;exp;el;grid;t;A | D213: kWh | E213: =+E36*E206 -> 0 | F213: 0 | G213: 25.32512965 | H213: 71.26780196 | I213: 51.31824263 | J213: 33.86875212 | K213: 42.56584138 | L213: 50.32902004 | M213: 85.21705972 | N213: 61.06525355 | O213: 0 | P213: 0 | Q213: 420.957101 | S213: (26)
B214: EPren;exp;el;grid;t;A | D214: kWh | E214: =+E36*E207 -> 0 | F214: 0 | G214: 17.69311737 | H214: 70.65003256 | I214: 122.7640936 | J214: 137.4353021 | K214: 145.2453772 | L214: 125.9504965 | M214: 110.5133881 | N214: 46.8301677 | O214: 0 | P214: 0 | Q214: 777.0819752 | S214: (26)
A215: Step A weighted exported | B215: EPnren;exp;el;t;A | D215: kWh | E215: =+E213+E211+E209 -> 0 | F215: =+F213+F211+F209 -> 0 | G215: 33.47197056 | H215: 94.19394106 | I215: 67.82680802 | J215: 44.76399094 | K215: 56.25884683 | L215: 66.51936243 | M215: 112.6305355 | N215: 80.70933488 | O215: 0 | P215: 0 | Q215: 556.3747903 | S215: (23)
B216: EPren;exp;el;t;A | D216: kWh | E216: =+E214+E212+E210 -> 0 | F216: =+F214+F212+F210 -> 0 | G216: 23.38481627 | H216: 93.37744144 | I216: 162.2560747 | J216: 181.6468642 | K216: 191.9693624 | L216: 166.4675116 | M216: 146.0644398 | N216: 61.89496428 | O216: 0 | P216: 0 | Q216: 1027.061475 | S216: (23)
A217: STEP A balance
A218: Step A EP;nren | B218: Epnren;A | D218: kWh | E218: =+E133-E215 -> 3636.787475 | F218: 2735.05803 | G218: 1706.528029 | H218: 833.0282812 | I218: 52.17319198 | J218: 35.23600906 | K218: 43.74115317 | L218: 53.48063757 | M218: 87.36946446 | N218: 1060.401776 | O218: 2260.005364 | P218: 2849.34303 | Q218: =SUM(E218:P218) -> 15353.15244 | S218: INFO | U218: Weighted delivered - weighted exported
A219: Step A EP;ren | B219: Epren;A | D219: kWh | E219: =+E134-E216 -> 118.7327273 | F219: 134.3093939 | G219: 205.9485171 | H219: 241.9558919 | I219: 253.7439253 | J219: 287.3531358 | K219: 280.5306376 | L219: 264.5324884 | M219: 204.1022269 | N219: 185.9383691 | O219: 174.5453939 | P219: 148.3993939 | Q219: =SUM(E219:P219) -> 2500.092101 | S219: INFO | U219: Result if Kexp is set to 0 (e.g. calculation is stopped at step A)
A220: Step A EP;tot | B220: Eptot;A | D220: kWh | E220: =+E218+E219 -> 3755.520202 | F220: =+F218+F219 -> 2869.367424 | G220: 1912.476546 | H220: 1074.984173 | I220: 305.9171173 | J220: 322.5891448 | K220: 324.2717908 | L220: 318.013126 | M220: 291.4716913 | N220: 1246.340145 | O220: 2434.550758 | P220: 2997.742424 | Q220: 17853.24454 | S220: INFO | U220: For information only
A221: RER | Q221: =+Q219/Q220 -> 0.1400357282 | S221: INFO
A222: Take into account (or not) exported energy in the energy performance
A223: Weighting factors for exported energy
A224: Exported for non EPBD uses | B224: fPnren;exp;el,t | E224: =+Method_input!G80 -> 2.3 | F224: =+Method_input!H80 -> 2.3 | G224: =+Method_input!I80 -> 2.3 | H224: =+Method_input!J80 -> 2.3 | I224: =+Method_input!K80 -> 2.3 | J224: =+Method_input!L80 -> 2.3 | K224: =+Method_input!M80 -> 2.3 | L224: =+Method_input!N80 -> 2.3 | M224: =+Method_input!O80 -> 2.3 | N224: =+Method_input!P80 -> 2.3 | O224: =+Method_input!Q80 -> 2.3 | P224: =+Method_input!R80 -> 2.3 | S224: Input | U224: Copy of weighting factor (input data)
A225: Exported for non EPBD uses | B225: fPren;exp;el,t | E225: =+Method_input!G96 -> 0.2 | F225: =+Method_input!H96 -> 0.2 | G225: =+Method_input!I96 -> 0.2 | H225: =+Method_input!J96 -> 0.2 | I225: =+Method_input!K96 -> 0.2 | J225: =+Method_input!L96 -> 0.2 | K225: =+Method_input!M96 -> 0.2 | L225: =+Method_input!N96 -> 0.2 | M225: =+Method_input!O96 -> 0.2 | N225: =+Method_input!P96 -> 0.2 | O225: =+Method_input!Q96 -> 0.2 | P225: =+Method_input!R96 -> 0.2 | S225: Input | U225: Copy of weighting factor (input data)
A226: Temporary exported | B226: fPnren;exp;el,t | E226: =+Method_input!G79 -> 2.3 | F226: =+Method_input!H79 -> 2.3 | G226: =+Method_input!I79 -> 2.3 | H226: =+Method_input!J79 -> 2.3 | I226: =+Method_input!K79 -> 2.3 | J226: =+Method_input!L79 -> 2.3 | K226: =+Method_input!M79 -> 2.3 | L226: =+Method_input!N79 -> 2.3 | M226: =+Method_input!O79 -> 2.3 | N226: =+Method_input!P79 -> 2.3 | O226: =+Method_input!Q79 -> 2.3 | P226: =+Method_input!R79 -> 2.3 | S226: Input | U226: Copy of weighting factor (input data)
A227: Temporary exported | B227: fPren;exp;el,t | E227: =+Method_input!G95 -> 0.2 | F227: =+Method_input!H95 -> 0.2 | G227: =+Method_input!I95 -> 0.2 | H227: =+Method_input!J95 -> 0.2 | I227: =+Method_input!K95 -> 0.2 | J227: =+Method_input!L95 -> 0.2 | K227: =+Method_input!M95 -> 0.2 | L227: =+Method_input!N95 -> 0.2 | M227: =+Method_input!O95 -> 0.2 | N227: =+Method_input!P95 -> 0.2 | O227: =+Method_input!Q95 -> 0.2 | P227: =+Method_input!R95 -> 0.2 | S227: Input | U227: Copy of weighting factor (input data)
A228: Grid exported | B228: fPnren;exp;el,t | E228: =+Method_input!G78 -> 2.3 | F228: =+Method_input!H78 -> 2.3 | G228: =+Method_input!I78 -> 2.3 | H228: =+Method_input!J78 -> 2.3 | I228: =+Method_input!K78 -> 2.3 | J228: =+Method_input!L78 -> 2.3 | K228: =+Method_input!M78 -> 2.3 | L228: =+Method_input!N78 -> 2.3 | M228: =+Method_input!O78 -> 2.3 | N228: =+Method_input!P78 -> 2.3 | O228: =+Method_input!Q78 -> 2.3 | P228: =+Method_input!R78 -> 2.3 | S228: Input | U228: Copy of weighting factor (input data)
A229: Grid exported | B229: fPren;exp;el,t | E229: =+Method_input!G94 -> 0.2 | F229: =+Method_input!H94 -> 0.2 | G229: =+Method_input!I94 -> 0.2 | H229: =+Method_input!J94 -> 0.2 | I229: =+Method_input!K94 -> 0.2 | J229: =+Method_input!L94 -> 0.2 | K229: =+Method_input!M94 -> 0.2 | L229: =+Method_input!N94 -> 0.2 | M229: =+Method_input!O94 -> 0.2 | N229: =+Method_input!P94 -> 0.2 | O229: =+Method_input!Q94 -> 0.2 | P229: =+Method_input!R94 -> 0.2 | S229: Input | U229: Copy of weighting factor (input data)
A231: Exp. For non EPB uses | B231: EPren;exp;el;used;nePus;t;AB | D231: kWh | E231: =+E29*(E224-E206) -> 0 | F231: 0 | G231: 57.99833247 | H231: 226.6246953 | I231: 381.7266119 | J231: 423.422416 | K231: 448.6110666 | L231: 391.2483432 | M231: 350.1254818 | N231: 152.5176348 | O231: 0 | P231: 0 | Q231: =SUM(E231:P231) -> 2432.274582 | S231: (28)
B232: EPnren;exp;el;used;nePus;t;AB | D232: kWh | E232: =+E29*(E225-E207) -> 0 | F232: 0 | G232: -15.43087688 | H232: -65.48016871 | I232: -123.1644729 | J232: -140.9350028 | K232: -148.0676308 | L232: -126.6616241 | M232: -105.8247861 | N232: -41.61435822 | O232: 0 | P232: 0 | Q232: -767.1789205 | S232: (28)
A233: Grid exp. temp. exp. Energy | B233: EPren;exp;el;tmp;AB | D233: kWh | E233: =+E42*(E226-E206) -> 0 | F233: 0 | G233: 14.11638395 | H233: 55.15884812 | I233: 92.90955773 | J233: 103.0580216 | K233: 109.188761 | L233: 95.22707979 | M233: 85.21806614 | N233: 37.1217137 | O233: 0 | P233: 0 | Q233: 591.998432 | S233: (29)
B234: EPnren;exp;el;tmp;AB | D234: kWh | E234: =+E42*(E227-E207) -> 0 | F234: 0 | G234: -3.755766304 | H234: -15.93740998 | I234: -29.97736168 | J234: -34.30258297 | K234: -36.03861418 | L234: -30.82854355 | M234: -25.75700454 | N234: -10.12864049 | O234: 0 | P234: 0 | Q234: -186.7259237 | S234: (29)
A235: Grid exp. electricity | B235: EPren;exp;el;grid;t;AB | D235: kWh | E235: =+E36*(E228-E206) -> 0 | F235: =+F36*(F228-F206) -> 0 | G235: 43.88194851 | H235: 171.4658472 | I235: 288.8170542 | J235: 320.3643944 | K235: 339.4223056 | L235: 296.0212634 | M235: 264.9074156 | N235: 115.3959211 | O235: 0 | P235: 0 | Q235: 1840.27615 | S235: (30)
B236: EPnren;exp;el;grid;t;AB | D236: kWh | E236: =+E36*(E229-E207) -> 0 | F236: =+F36*(F229-F207) -> 0 | G236: -11.67511058 | H236: -49.54275873 | I236: -93.18711125 | J236: -106.6324198 | K236: -112.0290166 | L236: -95.83308057 | M236: -80.06778159 | N236: -31.48571773 | O236: 0 | P236: 0 | Q236: -580.4529968 | S236: (30)
A237: Weighted exp. inclusion | B237: EPren;exp;el;t;AB | D237: kWh | E237: =+E231+E233+E235 -> 0 | F237: =+F231+F233+F235 -> 0 | G237: 115.9966649 | H237: 453.2493906 | I237: 763.4532238 | J237: 846.844832 | K237: 897.2221332 | L237: 782.4966864 | M237: 700.2509635 | N237: 305.0352696 | O237: 0 | P237: 0 | Q237: 4864.549164 | S237: (27)
... 20 more rows

Sheet Method_output
A1: THIS IS A MANDATORY SHEET Output of one step calculation shall be indicated here. Each cell in the column value shall be a reference to a single cell in the "Method_calculation" sheet. The macro will take the calculation step results and fill the values table in the "Output_series" sheet.
A4: Name | B4: Symbol | C4: Software name | D4: Unit | J4: VALUE | R4: Range | S4: Intended destination | T4: Varying | U4: Notes
A5: Time step | E5: 1 | F5: 2 | G5: 3 | H5: 4 | I5: 5 | J5: 6 | K5: 7 | L5: 8 | M5: 9 | N5: 10 | O5: 11 | P5: 12 | Q5: TOT
A6: Total yearly output data
A7: Weighted energy performance | B7: Ewe | R7: 0...∞ | S7: M1-4 | T7: Yes
A8: Non renewable primary energy | B8: EPnren | D8: kWh | E8: =+Method_calculation!E251 -> 3636.787475 | F8: =+Method_calculation!F251 -> 2735.05803 | G8: =+Method_calculation!G251 -> 1590.531365 | H8: =+Method_calculation!H251 -> 379.7788906 | I8: =+Method_calculation!I251 -> -711.2800318 | J8: =+Method_calculation!J251 -> -811.6088229 | K8: =+Method_calculation!K251 -> -853.48098 | L8: =+Method_calculation!L251 -> -729.0160488 | M8: =+Method_calculation!M251 -> -612.8814991 | N8: =+Method_calculation!N251 -> 755.3665066 | O8: =+Method_calculation!O251 -> 2260.005364 | P8: =+Method_calculation!P251 -> 2849.34303 | Q8: =+Method_calculation!Q251 -> 10488.60328 | R8: -∞...∞ | S8: M1-4 | T8: Yes | U8: Non renewable primary energy weighting
A9: Renewable primary energy | B9: EPren | D9: kWh | E9: =+Method_calculation!E252 -> 118.7327273 | F9: =+Method_calculation!F252 -> 134.3093939 | G9: =+Method_calculation!G252 -> 236.8102708 | H9: =+Method_calculation!H252 -> 372.9162293 | I9: =+Method_calculation!I252 -> 500.0728712 | J9: =+Method_calculation!J252 -> 569.2231413 | K9: =+Method_calculation!K252 -> 576.6658992 | L9: =+Method_calculation!L252 -> 517.8557367 | M9: =+Method_calculation!M252 -> 415.7517991 | N9: =+Method_calculation!N252 -> 269.1670855 | O9: =+Method_calculation!O252 -> 174.5453939 | P9: =+Method_calculation!P252 -> 148.3993939 | Q9: =+Method_calculation!Q252 -> 4034.449942 | R9: -∞...∞ | S9: M1-4 | T9: Yes | U9: Renewable primary energy weighting
A10: Total primary energy | B10: EPtot | D10: kWh | E10: =+Method_calculation!E253 -> 3755.520202 | F10: =+Method_calculation!F253 -> 2869.367424 | G10: =+Method_calculation!G253 -> 1827.341635 | H10: =+Method_calculation!H253 -> 752.6951199 | I10: =+Method_calculation!I253 -> -211.2071606 | J10: =+Method_calculation!J253 -> -242.3856816 | K10: =+Method_calculation!K253 -> -276.8150809 | L10: =+Method_calculation!L253 -> -211.1603122 | M10: =+Method_calculation!M253 -> -197.1297 | N10: =+Method_calculation!N253 -> 1024.533592 | O10: =+Method_calculation!O253 -> 2434.550758 | P10: =+Method_calculation!P253 -> 2997.742424 | Q10: =+Method_calculation!Q253 -> 14523.05322 | R10: -∞...∞ | S10: M1-4 | T10: Yes | U10: Total primary energy weighting
A11: RER | B11: RER | Q11: =+Method_calculation!Q254 -> 0.2777962651 | R11: -∞...∞ | S11: M1-4 | T11: Yes | U11: RER (EXAMPLE, RER including all perimeters, filter will be added)
A12: Electricity available for use outside the building | B12: Eexp;el;avl,t | D12: kWh | E12: =+Method_calculation!E256 -> 0 | F12: =+Method_calculation!F256 -> 0 | G12: =+Method_calculation!G256 -> 0 | H12: =+Method_calculation!H256 -> 0 | I12: =+Method_calculation!I256 -> 0 | J12: =+Method_calculation!J256 -> 0 | K12: =+Method_calculation!K256 -> 0 | L12: =+Method_calculation!L256 -> 0 | M12: =+Method_calculation!M256 -> 0 | N12: =+Method_calculation!N256 -> 0 | O12: =+Method_calculation!O256 -> 0 | P12: =+Method_calculation!P256 -> 0 | Q12: =SUM(E12:P12) -> 0 | R12: 0...∞ | S12: M1-4 | T12: Yes | U12: To be added in the standard
A13: Weighted electricity available for use outside the building | B13: EPnren;exp;el;avl,t | D13: kWh | E13: =+Method_calculation!E257 -> 0 | F13: =+Method_calculation!F257 -> 0 | G13: =+Method_calculation!G257 -> 0 | H13: =+Method_calculation!H257 -> 0 | I13: =+Method_calculation!I257 -> 0 | J13: =+Method_calculation!J257 -> 0 | K13: =+Method_calculation!K257 -> 0 | L13: =+Method_calculation!L257 -> 0 | M13: =+Method_calculation!M257 -> 0 | N13: =+Method_calculation!N257 -> 0 | O13: =+Method_calculation!O257 -> 0 | P13: =+Method_calculation!P257 -> 0 | Q13: =SUM(E13:P13) -> 0 | R13: -∞...∞ | S13: M1-4 | T13: Yes | U13: To be added in the standard
A14: Weighted electricity available for use outside the building | B14: EPren;exp;el;avl,t | D14: kWh | E14: =+Method_calculation!E258 -> 0 | F14: =+Method_calculation!F258 -> 0 | G14: =+Method_calculation!G258 -> 0 | H14: =+Method_calculation!H258 -> 0 | I14: =+Method_calculation!I258 -> 0 | J14: =+Method_calculation!J258 -> 0 | K14: =+Method_calculation!K258 -> 0 | L14: =+Method_calculation!L258 -> 0 | M14: =+Method_calculation!M258 -> 0 | N14: =+Method_calculation!N258 -> 0 | O14: =+Method_calculation!O258 -> 0 | P14: =+Method_calculation!P258 -> 0 | Q14: 0 | R14: -∞...∞ | S14: M1-4 | T14: Yes | U14: To be added in the standard
U16: To be added here: weighting by CO2 or cost
A19: Yearly output data per service or per building zone | U19: Annex E calculation
A20: Weighted energy performance per service | B20: Ewe;X
A21: Non renewable primary energy | B21: Epnren;X | U21: TO be added
A22: Renewable primary energy | B22: EPren;X | U22: TO be added
A23: Total primary energy | B23: EPtot;X | U23: TO be added
A24: RER | B24: RER;X | U24: TO be added
A27: Weighted energy performance per zone | B27: Ewe;z,i
A28: Non renewable primary energy | B28: Epnren;z,i | U28: TO be added
A29: Renewable primary energy | B29: EPren;z,i | U29: TO be added
A30: Total primary energy | B30: EPtot;z,i | U30: TO be added
A31: RER | B31: RER;z,i | U31: TO be added
A34: Weighted energy performance per service and zone | B34: Ewe;X;z,i
A35: Non renewable primary energy | B35: Epnren;X;z,i | U35: TO be added
A36: Renewable primary energy | B36: EPren;X;z,i | U36: TO be added
A37: Total primary energy | B37: EPtot;X;z,i | U37: TO be added
A38: RER | B38: RER;X;z,i | U38: TO be added
A40: OTHER RESULTS MIGHT BE THE UNWEIGHTED DELIVERED ENERGY BY ENERGY CARRIER AND BY SERVICE

Sheet Fmatch
B2: This is a possible default matching factor function.
B3: Perfect match is assumed when production and use are strongly unbalanced
B4: Minimum match is assumed when production and use are the same value
B5: Matching is relative: it is the quota of the minimum of the two.
B25: n | C25: 1 | D25: <-- factor controlling "sharpness" of the correlation
B26: k | C26: 1 | D26: <-- factor controlling the minimum value at 1 (1-K/2)
B28: The example in the calculattion is with k=1 and n=1
C30: used | D30: prod | E30: prod/used | F30: fmatch
E31: x | F31: fmatch
C32: 100 | D32: 0 | E32: =IF(C32>0,D32/C32,0) -> 0 | F32: =IF(E32>0,(E32^$C$25+1/(E32^$C$25)-$C$26)/(E32^$C$25+1/(E32^$C$25)),1) -> 1
C33: 100 | D33: 10 | E33: =IF(C33>0,D33/C33,0) -> 0.1 | F33: 0.900990099
C34: 100 | D34: 20 | E34: 0.2 | F34: 0.8076923077
C35: 100 | D35: 40 | E35: 0.4 | F35: 0.6551724138
C36: 100 | D36: 60 | E36: 0.6 | F36: 0.5588235294
C37: 100 | D37: 80 | E37: 0.8 | F37: 0.512195122
C38: 100 | D38: 100 | E38: 1 | F38: 0.5
C39: 100 | D39: 150 | E39: 1.5 | F39: 0.5384615385
C40: 100 | D40: 200 | E40: 2 | F40: 0.6
C41: 100 | D41: 300 | E41: 3 | F41: 0.7
C42: 100 | D42: 400 | E42: =IF(C42>0,D42/C42,0) -> 4 | F42: 0.7647058824
C43: 100 | D43: 500 | E43: 5 | F43: 0.8076923077

Sheet History
B2: Date | C2: Version scope | D2: Changes, notes
B4: 2012-07-04 | C4: Issued for discussion in CTL
B5: 2012-08-24 | C5: Issued for comments in TC 371 | D5: Improved readability
B6: 2013-02-24 | C6: Issued for OA TR | D6: Completed example according to DTR
B7: 2015-05-13 | C7: Prepared for II Penq | D7: Aligned to ISO DIS 52001-1
